Organisation Code,Organisation Label,Effective Date,Organisational Unit,Service Division Label,Category Internal Name,Purpose,Detailed Expenditure Code,Payment Date,Transaction Number,Irrecoverable VAT Amount,Amount,Capital Or Revenue,Beneficiary Name,Procurement Card
Http://opendatacommunities.org/id/metropolitan-district-council/leeds,Leeds City Council,30/04/2020,Adults and Health,Services For Older People Under 65 P/Dis,Third Party Payments,Sheltered Accommodation,569,01/04/2020,2004-00001,0.00,5400.00,R,A & V Transitional Homes,No
Http://opendatacommunities.org/id/metropolitan-district-council/leeds,Leeds City Council,30/04/2020,Adults and Health,Services For Older People Under 65 P/Dis,Third Party Payments,Sheltered Accommodation,569,29/04/2020,2004-00002,0.00,5400.00,R,A & V Transitional Homes,No
Http://opendatacommunities.org/id/metropolitan-district-council/leeds,Leeds City Council,30/04/2020,Resources and Housing,HRA Housing Leeds,Capital,Other Costs,7,02/04/2020,2004-00003,0.00,94.17,C,REDACTED PERSONAL DATA,No
Http://opendatacommunities.org/id/metropolitan-district-council/leeds,Leeds City Council,30/04/2020,Resources and Housing,Leeds Building Services,Supplies and Services,Operational Materials,205,03/04/2020,2004-00004,0.00,8.23,R,A Andrews & Sons (Marbles & Tiles),No
Http://opendatacommunities.org/id/metropolitan-district-council/leeds,Leeds City Council,30/04/2020,Resources and Housing,Leeds Building Services,Supplies and Services,Operational Materials,205,17/04/2020,2004-00005,0.00,15.88,R,A Andrews & Sons (Marbles & Tiles),No
Http://opendatacommunities.org/id/metropolitan-district-council/leeds,Leeds City Council,30/04/2020,Resources and Housing,HRA Housing Leeds,Capital,Other Costs,7,27/04/2020,2004-00006,0.00,100.00,C,REDACTED PERSONAL DATA,No
Http://opendatacommunities.org/id/metropolitan-district-council/leeds,Leeds City Council,30/04/2020,Children and Families,Social Care,Third Party Payments,Services Rendered By Other Organisations,511,03/04/2020,2004-00007,0.00,315.36,R,REDACTED PERSONAL DATA,No
Http://opendatacommunities.org/id/metropolitan-district-council/leeds,Leeds City Council,30/04/2020,Resources and Housing,HRA Housing Leeds,Capital,Other Costs,7,17/04/2020,2004-00008,0.00,60.00,C,REDACTED PERSONAL DATA,No
Http://opendatacommunities.org/id/metropolitan-district-council/leeds,Leeds City Council,30/04/2020,Resources and Housing,Leeds Building Services,Supplies and Services,Other Hired And Contracted Services,265,03/04/2020,2004-00009,0.00,5750.00,R,A Buckler (Haulage) Ltd,No
Http://opendatacommunities.org/id/metropolitan-district-council/leeds,Leeds City Council,30/04/2020,Resources and Housing,Leeds Building Services,Supplies and Services,Other Hired And Contracted Services,265,03/04/2020,2004-00010,0.00,48975.00,R,A Buckler (Haulage) Ltd,No
Http://opendatacommunities.org/id/metropolitan-district-council/leeds,Leeds City Council,30/04/2020,Resources and Housing,Leeds Building Services,Supplies and Services,Other Hired And Contracted Services,265,23/04/2020,2004-00011,0.00,98923.40,R,A Buckler (Haulage) Ltd,No
Http://opendatacommunities.org/id/metropolitan-district-council/leeds,Leeds City Council,30/04/2020,Resources and Housing,Leeds Building Services,Supplies and Services,Other Hired And Contracted Services,265,23/04/2020,2004-00012,0.00,24550.00,R,A Buckler (Haulage) Ltd,No
Http://opendatacommunities.org/id/metropolitan-district-council/leeds,Leeds City Council,30/04/2020,Resources and Housing,Leeds Building Services,Supplies and Services,Other Hired And Contracted Services,265,23/04/2020,2004-00013,0.00,21875.00,R,A Buckler (Haulage) Ltd,No
Http://opendatacommunities.org/id/metropolitan-district-council/leeds,Leeds City Council,30/04/2020,City Development,Libraries  Arts & Heritage,Supplies and Services,Other Hired And Contracted Services,265,09/04/2020,2004-00014,0.00,60.02,R,A C Entertainment Technologies Ltd,No
Http://opendatacommunities.org/id/metropolitan-district-council/leeds,Leeds City Council,30/04/2020,City Development,Libraries  Arts & Heritage,Income,Admissions  Booking Fees & Ticket Sales,933,23/04/2020,2004-00015,0.00,38.40,R,REDACTED PERSONAL DATA,No
Http://opendatacommunities.org/id/metropolitan-district-council/leeds,Leeds City Council,30/04/2020,Children and Families,Learning,Supplies and Services,Bought In Professional Services,277,16/04/2020,2004-00016,0.00,50.00,R,A C Peterson,No
Http://opendatacommunities.org/id/metropolitan-district-council/leeds,Leeds City Council,30/04/2020,Children and Families,Social Care,Third Party Payments,Services Rendered By Other Organisations,511,03/04/2020,2004-00017,0.00,861.98,R,REDACTED PERSONAL DATA,No
Http://opendatacommunities.org/id/metropolitan-district-council/leeds,Leeds City Council,30/04/2020,Children and Families,Social Care,Third Party Payments,Services Rendered By Other Organisations,511,03/04/2020,2004-00018,0.00,315.36,R,REDACTED PERSONAL DATA,No
Http://opendatacommunities.org/id/metropolitan-district-council/leeds,Leeds City Council,30/04/2020,Resources and Housing,HRA Housing Leeds,Capital,Construction,3,30/04/2020,2004-00019,0.00,35623.94,C,A Connolly Limited,No
Http://opendatacommunities.org/id/metropolitan-district-council/leeds,Leeds City Council,30/04/2020,Resources and Housing,Leeds Building Services,Supplies and Services,Other Hired And Contracted Services,265,03/04/2020,2004-00020,0.00,1290.00,R,A Coole Electrical Ltd,No
Http://opendatacommunities.org/id/metropolitan-district-council/leeds,Leeds City Council,30/04/2020,Resources and Housing,Leeds Building Services,Supplies and Services,Other Hired And Contracted Services,265,03/04/2020,2004-00021,0.00,1035.00,R,A Coole Electrical Ltd,No
Http://opendatacommunities.org/id/metropolitan-district-council/leeds,Leeds City Council,30/04/2020,Resources and Housing,Leeds Building Services,Supplies and Services,Other Hired And Contracted Services,265,03/04/2020,2004-00022,0.00,2775.00,R,A Coole Electrical Ltd,No
Http://opendatacommunities.org/id/metropolitan-district-council/leeds,Leeds City Council,30/04/2020,Resources and Housing,Leeds Building Services,Supplies and Services,Other Hired And Contracted Services,265,03/04/2020,2004-00023,0.00,85.00,R,A Coole Electrical Ltd,No
Http://opendatacommunities.org/id/metropolitan-district-council/leeds,Leeds City Council,30/04/2020,Resources and Housing,Leeds Building Services,Supplies and Services,Other Hired And Contracted Services,265,03/04/2020,2004-00024,0.00,160.00,R,A Coole Electrical Ltd,No
Http://opendatacommunities.org/id/metropolitan-district-council/leeds,Leeds City Council,30/04/2020,Resources and Housing,Leeds Building Services,Supplies and Services,Other Hired And Contracted Services,265,03/04/2020,2004-00025,0.00,2455.00,R,A Coole Electrical Ltd,No
Http://opendatacommunities.org/id/metropolitan-district-council/leeds,Leeds City Council,30/04/2020,Resources and Housing,Leeds Building Services,Supplies and Services,Other Hired And Contracted Services,265,03/04/2020,2004-00026,0.00,2380.00,R,A Coole Electrical Ltd,No
Http://opendatacommunities.org/id/metropolitan-district-council/leeds,Leeds City Council,30/04/2020,Resources and Housing,Leeds Building Services,Supplies and Services,Other Hired And Contracted Services,265,03/04/2020,2004-00027,0.00,2375.00,R,A Coole Electrical Ltd,No
Http://opendatacommunities.org/id/metropolitan-district-council/leeds,Leeds City Council,30/04/2020,Resources and Housing,Leeds Building Services,Supplies and Services,Other Hired And Contracted Services,265,03/04/2020,2004-00028,0.00,2380.00,R,A Coole Electrical Ltd,No
Http://opendatacommunities.org/id/metropolitan-district-council/leeds,Leeds City Council,30/04/2020,Resources and Housing,Leeds Building Services,Supplies and Services,Other Hired And Contracted Services,265,03/04/2020,2004-00029,0.00,1535.00,R,A Coole Electrical Ltd,No
Http://opendatacommunities.org/id/metropolitan-district-council/leeds,Leeds City Council,30/04/2020,Resources and Housing,Leeds Building Services,Supplies and Services,Other Hired And Contracted Services,265,17/04/2020,2004-00030,0.00,160.00,R,A Coole Electrical Ltd,No
Http://opendatacommunities.org/id/metropolitan-district-council/leeds,Leeds City Council,30/04/2020,Resources and Housing,Leeds Building Services,Supplies and Services,Other Hired And Contracted Services,265,17/04/2020,2004-00031,0.00,3005.00,R,A Coole Electrical Ltd,No
Http://opendatacommunities.org/id/metropolitan-district-council/leeds,Leeds City Council,30/04/2020,Resources and Housing,Leeds Building Services,Supplies and Services,Other Hired And Contracted Services,265,17/04/2020,2004-00032,0.00,2443.00,R,A Coole Electrical Ltd,No
Http://opendatacommunities.org/id/metropolitan-district-council/leeds,Leeds City Council,30/04/2020,Resources and Housing,Leeds Building Services,Supplies and Services,Other Hired And Contracted Services,265,17/04/2020,2004-00033,0.00,2488.00,R,A Coole Electrical Ltd,No
Http://opendatacommunities.org/id/metropolitan-district-council/leeds,Leeds City Council,30/04/2020,Resources and Housing,Leeds Building Services,Supplies and Services,Other Hired And Contracted Services,265,17/04/2020,2004-00034,0.00,2303.00,R,A Coole Electrical Ltd,No
Http://opendatacommunities.org/id/metropolitan-district-council/leeds,Leeds City Council,30/04/2020,Resources and Housing,Leeds Building Services,Supplies and Services,Other Hired And Contracted Services,265,17/04/2020,2004-00035,0.00,2353.00,R,A Coole Electrical Ltd,No
Http://opendatacommunities.org/id/metropolitan-district-council/leeds,Leeds City Council,30/04/2020,Resources and Housing,Leeds Building Services,Supplies and Services,Other Hired And Contracted Services,265,17/04/2020,2004-00036,0.00,2258.00,R,A Coole Electrical Ltd,No
Http://opendatacommunities.org/id/metropolitan-district-council/leeds,Leeds City Council,30/04/2020,Resources and Housing,Leeds Building Services,Supplies and Services,Other Hired And Contracted Services,265,17/04/2020,2004-00037,0.00,2385.00,R,A Coole Electrical Ltd,No
Http://opendatacommunities.org/id/metropolitan-district-council/leeds,Leeds City Council,30/04/2020,Resources and Housing,Leeds Building Services,Supplies and Services,Other Hired And Contracted Services,265,17/04/2020,2004-00038,0.00,2245.00,R,A Coole Electrical Ltd,No
Http://opendatacommunities.org/id/metropolitan-district-council/leeds,Leeds City Council,30/04/2020,Resources and Housing,Leeds Building Services,Supplies and Services,Other Hired And Contracted Services,265,17/04/2020,2004-00039,0.00,2353.00,R,A Coole Electrical Ltd,No
Http://opendatacommunities.org/id/metropolitan-district-council/leeds,Leeds City Council,30/04/2020,Resources and Housing,Leeds Building Services,Supplies and Services,Other Hired And Contracted Services,265,17/04/2020,2004-00040,0.00,2194.00,R,A Coole Electrical Ltd,No
Http://opendatacommunities.org/id/metropolitan-district-council/leeds,Leeds City Council,30/04/2020,Resources and Housing,Leeds Building Services,Supplies and Services,Other Hired And Contracted Services,265,17/04/2020,2004-00041,0.00,2360.00,R,A Coole Electrical Ltd,No
Http://opendatacommunities.org/id/metropolitan-district-council/leeds,Leeds City Council,30/04/2020,Resources and Housing,Leeds Building Services,Supplies and Services,Other Hired And Contracted Services,265,24/04/2020,2004-00042,0.00,2353.00,R,A Coole Electrical Ltd,No
Http://opendatacommunities.org/id/metropolitan-district-council/leeds,Leeds City Council,30/04/2020,Resources and Housing,Leeds Building Services,Supplies and Services,Other Hired And Contracted Services,265,24/04/2020,2004-00043,0.00,2283.00,R,A Coole Electrical Ltd,No
Http://opendatacommunities.org/id/metropolitan-district-council/leeds,Leeds City Council,30/04/2020,Resources and Housing,Leeds Building Services,Supplies and Services,Other Hired And Contracted Services,265,30/04/2020,2004-00044,0.00,2493.00,R,A Coole Electrical Ltd,No
Http://opendatacommunities.org/id/metropolitan-district-council/leeds,Leeds City Council,30/04/2020,Resources and Housing,Leeds Building Services,Supplies and Services,Other Hired And Contracted Services,265,30/04/2020,2004-00045,0.00,2263.00,R,A Coole Electrical Ltd,No
Http://opendatacommunities.org/id/metropolitan-district-council/leeds,Leeds City Council,30/04/2020,Resources and Housing,Leeds Building Services,Supplies and Services,Other Hired And Contracted Services,265,30/04/2020,2004-00046,0.00,1120.00,R,A Coole Electrical Ltd,No
Http://opendatacommunities.org/id/metropolitan-district-council/leeds,Leeds City Council,30/04/2020,Resources and Housing,Leeds Building Services,Supplies and Services,Other Hired And Contracted Services,265,30/04/2020,2004-00047,0.00,2690.00,R,A Coole Electrical Ltd,No
Http://opendatacommunities.org/id/metropolitan-district-council/leeds,Leeds City Council,30/04/2020,Resources and Housing,Leeds Building Services,Supplies and Services,Other Hired And Contracted Services,265,30/04/2020,2004-00048,0.00,2383.00,R,A Coole Electrical Ltd,No
Http://opendatacommunities.org/id/metropolitan-district-council/leeds,Leeds City Council,30/04/2020,Communities and Environment,Customer Access,Supplies and Services,Bought In Professional Services,277,01/04/2020,2004-00049,0.00,18.00,R,A D Dumitru,No
Http://opendatacommunities.org/id/metropolitan-district-council/leeds,Leeds City Council,30/04/2020,Children and Families,Social Care,Third Party Payments,Services Rendered By Voluntary Sector,505,01/04/2020,2004-00050,0.00,950.40,R,REDACTED PERSONAL DATA,No
Http://opendatacommunities.org/id/metropolitan-district-council/leeds,Leeds City Council,30/04/2020,Children and Families,Social Care,Third Party Payments,Services Rendered By Voluntary Sector,505,03/04/2020,2004-00051,0.00,4910.86,R,REDACTED PERSONAL DATA,No
Http://opendatacommunities.org/id/metropolitan-district-council/leeds,Leeds City Council,30/04/2020,Resources and Housing,HRA Housing Leeds,Capital,Other Costs,7,08/04/2020,2004-00052,0.00,80.00,C,REDACTED PERSONAL DATA,No
Http://opendatacommunities.org/id/metropolitan-district-council/leeds,Leeds City Council,30/04/2020,Communities and Environment,Parks And Countryside  ,Supplies and Services,Food & Drink,231,26/03/2020,2004-00053,0.00,416.67,R,A F Blakemore & Son Ltd,Yes
Http://opendatacommunities.org/id/metropolitan-district-council/leeds,Leeds City Council,30/04/2020,Communities and Environment,Parks And Countryside  ,Supplies and Services,Food & Drink,231,26/03/2020,2004-00054,0.00,325.38,R,A F Blakemore & Son Ltd,Yes
Http://opendatacommunities.org/id/metropolitan-district-council/leeds,Leeds City Council,30/04/2020,Children and Families,Social Care,Third Party Payments,Services Rendered By Other Organisations,511,01/04/2020,2004-00055,0.00,570.24,R,REDACTED PERSONAL DATA,No
Http://opendatacommunities.org/id/metropolitan-district-council/leeds,Leeds City Council,30/04/2020,Children and Families,Social Care,Third Party Payments,Services Rendered By Other Organisations,511,03/04/2020,2004-00056,0.00,630.72,R,REDACTED PERSONAL DATA,No
Http://opendatacommunities.org/id/metropolitan-district-council/leeds,Leeds City Council,30/04/2020,Resources and Housing,HRA Housing Leeds,Capital,Other Costs,7,23/04/2020,2004-00057,0.00,80.00,C,REDACTED PERSONAL DATA,No
Http://opendatacommunities.org/id/metropolitan-district-council/leeds,Leeds City Council,30/04/2020,City Development,Libraries  Arts & Heritage,Income,Admissions  Booking Fees & Ticket Sales,933,16/04/2020,2004-00058,0.00,148.80,R,REDACTED PERSONAL DATA,No
Http://opendatacommunities.org/id/metropolitan-district-council/leeds,Leeds City Council,30/04/2020,Children and Families,Social Care,Third Party Payments,Services Rendered By Other Organisations,511,03/04/2020,2004-00059,0.00,478.30,R,REDACTED PERSONAL DATA,No
Http://opendatacommunities.org/id/metropolitan-district-council/leeds,Leeds City Council,30/04/2020,Children and Families,Social Care,Third Party Payments,Services Rendered By Other Organisations,511,01/04/2020,2004-00060,0.00,190.08,R,REDACTED PERSONAL DATA,No
Http://opendatacommunities.org/id/metropolitan-district-council/leeds,Leeds City Council,30/04/2020,Children and Families,Social Care,Third Party Payments,Services Rendered By Other Organisations,511,03/04/2020,2004-00061,0.00,315.36,R,REDACTED PERSONAL DATA,No
Http://opendatacommunities.org/id/metropolitan-district-council/leeds,Leeds City Council,30/04/2020,Children and Families,Social Care,Third Party Payments,Services Rendered By Other Organisations,511,03/04/2020,2004-00062,0.00,157.68,R,REDACTED PERSONAL DATA,No
Http://opendatacommunities.org/id/metropolitan-district-council/leeds,Leeds City Council,30/04/2020,Adults and Health,Other Generic Services,Third Party Payments,Fees To Carers,563,09/04/2020,2004-00063,0.00,18.25,R,REDACTED PERSONAL DATA,No
Http://opendatacommunities.org/id/metropolitan-district-council/leeds,Leeds City Council,30/04/2020,Adults and Health,Other Generic Services,Third Party Payments,Fees To Carers,563,16/04/2020,2004-00064,0.00,218.75,R,REDACTED PERSONAL DATA,No
Http://opendatacommunities.org/id/metropolitan-district-council/leeds,Leeds City Council,30/04/2020,Adults and Health,Other Generic Services,Third Party Payments,Fees To Carers,563,16/04/2020,2004-00065,0.00,25.20,R,REDACTED PERSONAL DATA,No
Http://opendatacommunities.org/id/metropolitan-district-council/leeds,Leeds City Council,30/04/2020,Adults and Health,Other Generic Services,Third Party Payments,Fees To Carers,563,16/04/2020,2004-00066,0.00,36.50,R,REDACTED PERSONAL DATA,No
Http://opendatacommunities.org/id/metropolitan-district-council/leeds,Leeds City Council,30/04/2020,Adults and Health,Other Generic Services,Third Party Payments,Fees To Carers,563,17/04/2020,2004-00067,0.00,61.25,R,REDACTED PERSONAL DATA,No
Http://opendatacommunities.org/id/metropolitan-district-council/leeds,Leeds City Council,30/04/2020,Adults and Health,Other Generic Services,Third Party Payments,Fees To Carers,563,17/04/2020,2004-00068,0.00,6.30,R,REDACTED PERSONAL DATA,No
Http://opendatacommunities.org/id/metropolitan-district-council/leeds,Leeds City Council,30/04/2020,City Development,Libraries  Arts & Heritage,Income,Admissions  Booking Fees & Ticket Sales,933,09/04/2020,2004-00069,0.00,33.60,R,REDACTED PERSONAL DATA,No
Http://opendatacommunities.org/id/metropolitan-district-council/leeds,Leeds City Council,30/04/2020,Resources and Housing,Leeds Building Services,Supplies and Services,Operational Materials,205,17/04/2020,2004-00070,0.00,9.25,R,A J H  Pump Supply & Repair Ltd,No
Http://opendatacommunities.org/id/metropolitan-district-council/leeds,Leeds City Council,30/04/2020,Resources and Housing,Leeds Building Services,Supplies and Services,Operational Materials,205,17/04/2020,2004-00071,0.00,895.00,R,A J H  Pump Supply & Repair Ltd,No
Http://opendatacommunities.org/id/metropolitan-district-council/leeds,Leeds City Council,30/04/2020,Resources and Housing,Leeds Building Services,Supplies and Services,Operational Materials,205,17/04/2020,2004-00072,0.00,300.90,R,A J H  Pump Supply & Repair Ltd,No
Http://opendatacommunities.org/id/metropolitan-district-council/leeds,Leeds City Council,30/04/2020,Resources and Housing,Leeds Building Services,Supplies and Services,Operational Materials,205,17/04/2020,2004-00073,0.00,21.63,R,A J H  Pump Supply & Repair Ltd,No
Http://opendatacommunities.org/id/metropolitan-district-council/leeds,Leeds City Council,30/04/2020,Resources and Housing,Leeds Building Services,Supplies and Services,Operational Materials,205,17/04/2020,2004-00074,0.00,21.44,R,A J H  Pump Supply & Repair Ltd,No
Http://opendatacommunities.org/id/metropolitan-district-council/leeds,Leeds City Council,30/04/2020,Resources and Housing,Leeds Building Services,Supplies and Services,Operational Materials,205,17/04/2020,2004-00075,0.00,490.00,R,A J H  Pump Supply & Repair Ltd,No
Http://opendatacommunities.org/id/metropolitan-district-council/leeds,Leeds City Council,30/04/2020,Resources and Housing,Leeds Building Services,Supplies and Services,Operational Materials,205,17/04/2020,2004-00076,0.00,147.50,R,A J H  Pump Supply & Repair Ltd,No
Http://opendatacommunities.org/id/metropolitan-district-council/leeds,Leeds City Council,30/04/2020,Resources and Housing,Leeds Building Services,Supplies and Services,Operational Materials,205,17/04/2020,2004-00077,0.00,1009.24,R,A J H  Pump Supply & Repair Ltd,No
Http://opendatacommunities.org/id/metropolitan-district-council/leeds,Leeds City Council,30/04/2020,Resources and Housing,Leeds Building Services,Supplies and Services,Operational Materials,205,17/04/2020,2004-00078,0.00,64.12,R,A J H  Pump Supply & Repair Ltd,No
Http://opendatacommunities.org/id/metropolitan-district-council/leeds,Leeds City Council,30/04/2020,Resources and Housing,Leeds Building Services,Supplies and Services,Operational Materials,205,17/04/2020,2004-00079,0.00,55.00,R,A J H  Pump Supply & Repair Ltd,No
Http://opendatacommunities.org/id/metropolitan-district-council/leeds,Leeds City Council,30/04/2020,Resources and Housing,Leeds Building Services,Supplies and Services,Operational Materials,205,28/04/2020,2004-00080,0.00,9.98,R,A J H  Pump Supply & Repair Ltd,No
Http://opendatacommunities.org/id/metropolitan-district-council/leeds,Leeds City Council,30/04/2020,City Development,Libraries  Arts & Heritage,Supplies and Services,Art Galleries Total Stores,3,08/04/2020,2004-00081,0.00,454.70,R,A J Promotions,No
Http://opendatacommunities.org/id/metropolitan-district-council/leeds,Leeds City Council,30/04/2020,City Development,Libraries  Arts & Heritage,Supplies and Services,Art Galleries Total Stores,3,09/04/2020,2004-00082,0.00,150.00,R,A J Promotions,No
Http://opendatacommunities.org/id/metropolitan-district-council/leeds,Leeds City Council,30/04/2020,Adults and Health,Public Health,Supplies and Services,Publication And Promotion,267,09/04/2020,2004-00083,0.00,1040.00,R,A J Promotions,No
Http://opendatacommunities.org/id/metropolitan-district-council/leeds,Leeds City Council,30/04/2020,Resources and Housing,HRA Housing Leeds,Capital,Other Costs,7,02/04/2020,2004-00084,0.00,94.17,C,REDACTED PERSONAL DATA,No
Http://opendatacommunities.org/id/metropolitan-district-council/leeds,Leeds City Council,30/04/2020,Children and Families,Social Care,Third Party Payments,Services Rendered By Other Organisations,511,03/04/2020,2004-00085,0.00,2049.84,R,REDACTED PERSONAL DATA,No
Http://opendatacommunities.org/id/metropolitan-district-council/leeds,Leeds City Council,30/04/2020,City Development,Libraries  Arts & Heritage,Income,Admissions  Booking Fees & Ticket Sales,933,09/04/2020,2004-00086,0.00,283.05,R,REDACTED PERSONAL DATA,No
Http://opendatacommunities.org/id/metropolitan-district-council/leeds,Leeds City Council,30/04/2020,Communities and Environment,Customer Access,Supplies and Services,Bought In Professional Services,277,01/04/2020,2004-00087,0.00,22.50,R,A Mohammed,No
Http://opendatacommunities.org/id/metropolitan-district-council/leeds,Leeds City Council,30/04/2020,Communities and Environment,Customer Access,Supplies and Services,Bought In Professional Services,277,01/04/2020,2004-00088,0.00,36.00,R,A Mohammed,No
Http://opendatacommunities.org/id/metropolitan-district-council/leeds,Leeds City Council,30/04/2020,Communities and Environment,Customer Access,Supplies and Services,Bought In Professional Services,277,01/04/2020,2004-00089,0.00,18.00,R,A Mohammed,No
Http://opendatacommunities.org/id/metropolitan-district-council/leeds,Leeds City Council,30/04/2020,Communities and Environment,Customer Access,Supplies and Services,Bought In Professional Services,277,01/04/2020,2004-00090,0.00,18.00,R,A Mohammed,No
Http://opendatacommunities.org/id/metropolitan-district-council/leeds,Leeds City Council,30/04/2020,Communities and Environment,Customer Access,Supplies and Services,Bought In Professional Services,277,01/04/2020,2004-00091,0.00,18.00,R,A Mohammed,No
Http://opendatacommunities.org/id/metropolitan-district-council/leeds,Leeds City Council,30/04/2020,Communities and Environment,Customer Access,Supplies and Services,Bought In Professional Services,277,02/04/2020,2004-00092,0.00,18.00,R,A Musalam,No
Http://opendatacommunities.org/id/metropolitan-district-council/leeds,Leeds City Council,30/04/2020,Communities and Environment,Customer Access,Supplies and Services,Bought In Professional Services,277,02/04/2020,2004-00093,0.00,18.00,R,A Musalam,No
Http://opendatacommunities.org/id/metropolitan-district-council/leeds,Leeds City Council,30/04/2020,Children and Families,Social Care,Third Party Payments,Services Rendered By Other Organisations,511,01/04/2020,2004-00094,0.00,570.24,R,REDACTED PERSONAL DATA,No
Http://opendatacommunities.org/id/metropolitan-district-council/leeds,Leeds City Council,30/04/2020,Children and Families,Social Care,Third Party Payments,Services Rendered By Other Organisations,511,03/04/2020,2004-00095,0.00,2522.88,R,REDACTED PERSONAL DATA,No
Http://opendatacommunities.org/id/metropolitan-district-council/leeds,Leeds City Council,30/04/2020,Communities and Environment,Customer Access,Supplies and Services,Bought In Professional Services,277,08/04/2020,2004-00096,0.00,18.00,R,A Namaki,No
Http://opendatacommunities.org/id/metropolitan-district-council/leeds,Leeds City Council,30/04/2020,Communities and Environment,Customer Access,Supplies and Services,Bought In Professional Services,277,08/04/2020,2004-00097,0.00,18.00,R,A Namaki,No
Http://opendatacommunities.org/id/metropolitan-district-council/leeds,Leeds City Council,30/04/2020,Communities and Environment,Customer Access,Supplies and Services,Bought In Professional Services,277,08/04/2020,2004-00098,0.00,18.00,R,A Namaki,No
Http://opendatacommunities.org/id/metropolitan-district-council/leeds,Leeds City Council,30/04/2020,Communities and Environment,Customer Access,Supplies and Services,Bought In Professional Services,277,08/04/2020,2004-00099,0.00,18.00,R,A Namaki,No
Http://opendatacommunities.org/id/metropolitan-district-council/leeds,Leeds City Council,30/04/2020,Communities and Environment,Customer Access,Supplies and Services,Bought In Professional Services,277,08/04/2020,2004-00100,0.00,18.00,R,A Namaki,No
Http://opendatacommunities.org/id/metropolitan-district-council/leeds,Leeds City Council,30/04/2020,Communities and Environment,Customer Access,Supplies and Services,Bought In Professional Services,277,08/04/2020,2004-00101,0.00,18.00,R,A Namaki,No
Http://opendatacommunities.org/id/metropolitan-district-council/leeds,Leeds City Council,30/04/2020,Communities and Environment,Customer Access,Supplies and Services,Bought In Professional Services,277,08/04/2020,2004-00102,0.00,18.00,R,A Namaki,No
Http://opendatacommunities.org/id/metropolitan-district-council/leeds,Leeds City Council,30/04/2020,Communities and Environment,Customer Access,Supplies and Services,Bought In Professional Services,277,17/04/2020,2004-00103,0.00,18.00,R,A Namaki,No
Http://opendatacommunities.org/id/metropolitan-district-council/leeds,Leeds City Council,30/04/2020,Communities and Environment,Customer Access,Supplies and Services,Bought In Professional Services,277,17/04/2020,2004-00104,0.00,18.00,R,A Namaki,No
Http://opendatacommunities.org/id/metropolitan-district-council/leeds,Leeds City Council,30/04/2020,Communities and Environment,Customer Access,Supplies and Services,Bought In Professional Services,277,17/04/2020,2004-00105,0.00,18.00,R,A Namaki,No
Http://opendatacommunities.org/id/metropolitan-district-council/leeds,Leeds City Council,30/04/2020,Communities and Environment,Customer Access,Supplies and Services,Bought In Professional Services,277,17/04/2020,2004-00106,0.00,18.00,R,A Namaki,No
Http://opendatacommunities.org/id/metropolitan-district-council/leeds,Leeds City Council,30/04/2020,Children and Families,Social Care,Third Party Payments,Services Rendered By Other Organisations,511,03/04/2020,2004-00107,0.00,252.29,R,REDACTED PERSONAL DATA,No
Http://opendatacommunities.org/id/metropolitan-district-council/leeds,Leeds City Council,30/04/2020,Communities and Environment,Parks and Countryside,Supplies and Services,Operational Materials,205,01/04/2020,2004-00108,0.00,1684.00,R,A Newton,No
Http://opendatacommunities.org/id/metropolitan-district-council/leeds,Leeds City Council,30/04/2020,Communities and Environment,Parks and Countryside,Supplies and Services,Operational Materials,205,28/04/2020,2004-00109,0.00,200.00,R,A Newton,No
Http://opendatacommunities.org/id/metropolitan-district-council/leeds,Leeds City Council,30/04/2020,Communities and Environment,Parks and Countryside,Supplies and Services,Operational Materials,205,28/04/2020,2004-00110,0.00,980.00,R,A Newton,No
Http://opendatacommunities.org/id/metropolitan-district-council/leeds,Leeds City Council,30/04/2020,City Development,Libraries  Arts & Heritage,Income,Admissions  Booking Fees & Ticket Sales,933,23/04/2020,2004-00111,0.00,224.00,R,REDACTED PERSONAL DATA,No
Http://opendatacommunities.org/id/metropolitan-district-council/leeds,Leeds City Council,30/04/2020,City Development,Libraries  Arts & Heritage,Income,Admissions  Booking Fees & Ticket Sales,933,23/04/2020,2004-00112,0.00,40.80,R,REDACTED PERSONAL DATA,No
Http://opendatacommunities.org/id/metropolitan-district-council/leeds,Leeds City Council,30/04/2020,City Development,Libraries  Arts & Heritage,Supplies and Services,Non-Recurring Grants,227,07/04/2020,2004-00113,0.00,3600.00,R,A Quiet Word Ltd,No
Http://opendatacommunities.org/id/metropolitan-district-council/leeds,Leeds City Council,30/04/2020,Resources and Housing,HRA Housing Leeds,Capital,Other Costs,7,23/04/2020,2004-00114,0.00,170.09,C,REDACTED PERSONAL DATA,No
Http://opendatacommunities.org/id/metropolitan-district-council/leeds,Leeds City Council,30/04/2020,City Development,Libraries  Arts & Heritage,Income,Admissions  Booking Fees & Ticket Sales,933,14/04/2020,2004-00115,0.00,67.20,R,REDACTED PERSONAL DATA,No
Http://opendatacommunities.org/id/metropolitan-district-council/leeds,Leeds City Council,30/04/2020,City Development,Libraries  Arts & Heritage,Income,Sales Of Printed Materials,911,16/04/2020,2004-00116,0.00,6.00,R,REDACTED PERSONAL DATA,No
Http://opendatacommunities.org/id/metropolitan-district-council/leeds,Leeds City Council,30/04/2020,City Development,Libraries  Arts & Heritage,Income,Admissions  Booking Fees & Ticket Sales,933,16/04/2020,2004-00117,0.00,119.00,R,REDACTED PERSONAL DATA,No
Http://opendatacommunities.org/id/metropolitan-district-council/leeds,Leeds City Council,30/04/2020,Resources and Housing,HRA Housing Leeds,Capital,Other Costs,7,15/04/2020,2004-00118,0.00,80.00,C,REDACTED PERSONAL DATA,No
Http://opendatacommunities.org/id/metropolitan-district-council/leeds,Leeds City Council,30/04/2020,Resources and Housing,HRA Housing Leeds,Capital,Other Costs,7,27/04/2020,2004-00119,0.00,80.00,C,REDACTED PERSONAL DATA,No
Http://opendatacommunities.org/id/metropolitan-district-council/leeds,Leeds City Council,30/04/2020,Resources and Housing,HRA Housing Leeds,Capital,Other Costs,7,27/04/2020,2004-00120,0.00,100.00,C,REDACTED PERSONAL DATA,No
Http://opendatacommunities.org/id/metropolitan-district-council/leeds,Leeds City Council,30/04/2020,Children and Families,Social Care,Third Party Payments,Services Rendered By Other Organisations,511,01/04/2020,2004-00121,0.00,190.08,R,REDACTED PERSONAL DATA,No
Http://opendatacommunities.org/id/metropolitan-district-council/leeds,Leeds City Council,30/04/2020,Children and Families,Social Care,Third Party Payments,Services Rendered By Other Organisations,511,03/04/2020,2004-00122,0.00,157.68,R,REDACTED PERSONAL DATA,No
Http://opendatacommunities.org/id/metropolitan-district-council/leeds,Leeds City Council,30/04/2020,Resources and Housing,Shared Services,Supplies and Services,Other Hired And Contracted Services,265,16/04/2020,2004-00123,0.00,350.00,R,A Star Couriers Ltd,No
Http://opendatacommunities.org/id/metropolitan-district-council/leeds,Leeds City Council,30/04/2020,Communities and Environment,Communities,Supplies and Services,Other Hired And Contracted Services,265,30/04/2020,2004-00124,0.00,75.00,R,REDACTED PERSONAL DATA,No
Http://opendatacommunities.org/id/metropolitan-district-council/leeds,Leeds City Council,30/04/2020,Resources and Housing,HRA Housing Leeds,Capital,Other Costs,7,23/04/2020,2004-00125,0.00,80.00,C,REDACTED PERSONAL DATA,No
Http://opendatacommunities.org/id/metropolitan-district-council/leeds,Leeds City Council,30/04/2020,Children and Families,Social Care,Third Party Payments,Services Rendered By Other Organisations,511,03/04/2020,2004-00126,0.00,473.04,R,REDACTED PERSONAL DATA,No
Http://opendatacommunities.org/id/metropolitan-district-council/leeds,Leeds City Council,30/04/2020,Resources and Housing,HRA Housing Leeds,Capital,Other Costs,7,02/04/2020,2004-00127,0.00,249.22,C,REDACTED PERSONAL DATA,No
Http://opendatacommunities.org/id/metropolitan-district-council/leeds,Leeds City Council,30/04/2020,City Development,Libraries  Arts & Heritage,Supplies and Services,Computer Software & Equipment,214,01/04/2020,2004-00128,0.00,158.99,R,A V Parts Master Ltd,No
Http://opendatacommunities.org/id/metropolitan-district-council/leeds,Leeds City Council,30/04/2020,City Development,Libraries  Arts & Heritage,Supplies and Services,Computer Software & Equipment,214,09/04/2020,2004-00129,0.00,3053.99,R,A V Parts Master Ltd,No
Http://opendatacommunities.org/id/metropolitan-district-council/leeds,Leeds City Council,30/04/2020,Children and Families,Social Care,Third Party Payments,Services Rendered By Other Organisations,511,03/04/2020,2004-00130,0.00,473.04,R,REDACTED PERSONAL DATA,No
Http://opendatacommunities.org/id/metropolitan-district-council/leeds,Leeds City Council,30/04/2020,Children and Families,Social Care,Third Party Payments,Services Rendered By Other Organisations,511,03/04/2020,2004-00131,0.00,315.36,R,REDACTED PERSONAL DATA,No
Http://opendatacommunities.org/id/metropolitan-district-council/leeds,Leeds City Council,30/04/2020,Children and Families,Social Care,Third Party Payments,General External Residential Placements,507,01/04/2020,2004-00132,0.00,6542.00,R,A Wilderness Way Ltd,No
Http://opendatacommunities.org/id/metropolitan-district-council/leeds,Leeds City Council,30/04/2020,Children and Families,Social Care,Third Party Payments,General External Residential Placements,507,01/04/2020,2004-00133,0.00,400.00,R,A Wilderness Way Ltd,No
Http://opendatacommunities.org/id/metropolitan-district-council/leeds,Leeds City Council,30/04/2020,Children and Families,Social Care,Third Party Payments,General External Residential Placements,507,02/04/2020,2004-00134,0.00,14018.55,R,A Wilderness Way Ltd,No
Http://opendatacommunities.org/id/metropolitan-district-council/leeds,Leeds City Council,30/04/2020,Children and Families,Social Care,Third Party Payments,General External Residential Placements,507,02/04/2020,2004-00135,0.00,800.00,R,A Wilderness Way Ltd,No
Http://opendatacommunities.org/id/metropolitan-district-council/leeds,Leeds City Council,30/04/2020,Children and Families,Social Care,Third Party Payments,General External Residential Placements,507,08/04/2020,2004-00136,0.00,9301.68,R,A Wilderness Way Ltd,No
Http://opendatacommunities.org/id/metropolitan-district-council/leeds,Leeds City Council,30/04/2020,Children and Families,Social Care,Third Party Payments,General External Residential Placements,507,17/04/2020,2004-00137,0.00,529.10,R,A Wilderness Way Ltd,No
Http://opendatacommunities.org/id/metropolitan-district-council/leeds,Leeds City Council,30/04/2020,Children and Families,Social Care,Third Party Payments,General External Residential Placements,507,17/04/2020,2004-00138,0.00,383.40,R,A Wilderness Way Ltd,No
Http://opendatacommunities.org/id/metropolitan-district-council/leeds,Leeds City Council,30/04/2020,Children and Families,Social Care,Third Party Payments,General External Residential Placements,507,20/04/2020,2004-00139,0.00,11214.84,R,A Wilderness Way Ltd,No
Http://opendatacommunities.org/id/metropolitan-district-council/leeds,Leeds City Council,30/04/2020,Children and Families,Social Care,Third Party Payments,General External Residential Placements,507,27/04/2020,2004-00140,0.00,1200.00,R,A Wilderness Way Ltd,No
Http://opendatacommunities.org/id/metropolitan-district-council/leeds,Leeds City Council,30/04/2020,Children and Families,Social Care,Third Party Payments,General External Residential Placements,507,28/04/2020,2004-00141,0.00,305.10,R,A Wilderness Way Ltd,No
Http://opendatacommunities.org/id/metropolitan-district-council/leeds,Leeds City Council,30/04/2020,Children and Families,Social Care,Third Party Payments,General External Residential Placements,507,28/04/2020,2004-00142,0.00,33604.00,R,A Wilderness Way Ltd,No
Http://opendatacommunities.org/id/metropolitan-district-council/leeds,Leeds City Council,30/04/2020,Children and Families,Social Care,Third Party Payments,General External Residential Placements,507,28/04/2020,2004-00143,0.00,4334.84,R,A Wilderness Way Ltd,No
Http://opendatacommunities.org/id/metropolitan-district-council/leeds,Leeds City Council,30/04/2020,Children and Families,Social Care,Third Party Payments,General External Residential Placements,507,28/04/2020,2004-00144,0.00,1040.00,R,A Wilderness Way Ltd,No
Http://opendatacommunities.org/id/metropolitan-district-council/leeds,Leeds City Council,30/04/2020,Children and Families,Social Care,Third Party Payments,General External Residential Placements,507,28/04/2020,2004-00145,0.00,32511.30,R,A Wilderness Way Ltd,No
Http://opendatacommunities.org/id/metropolitan-district-council/leeds,Leeds City Council,30/04/2020,Children and Families,Social Care,Third Party Payments,General External Residential Placements,507,28/04/2020,2004-00146,0.00,27857.10,R,A Wilderness Way Ltd,No
Http://opendatacommunities.org/id/metropolitan-district-council/leeds,Leeds City Council,30/04/2020,Children and Families,Social Care,Third Party Payments,General External Residential Placements,507,29/04/2020,2004-00147,0.00,20596.00,R,A Wilderness Way Ltd,No
Http://opendatacommunities.org/id/metropolitan-district-council/leeds,Leeds City Council,30/04/2020,Children and Families,Social Care,Third Party Payments,General External Residential Placements,507,29/04/2020,2004-00148,0.00,140.40,R,A Wilderness Way Ltd,No
Http://opendatacommunities.org/id/metropolitan-district-council/leeds,Leeds City Council,30/04/2020,Children and Families,Social Care,Third Party Payments,General External Residential Placements,507,29/04/2020,2004-00149,0.00,-52.68,R,A Wilderness Way Ltd,No
Http://opendatacommunities.org/id/metropolitan-district-council/leeds,Leeds City Council As Accountable Body,30/04/2020,Social Services Pooled Budgets,Leeds Community Equip Store Pooled Budgt,Supplies and Services,Other Equipment,203,09/04/2020,2004-00150,0.00,1278.00,R,Aat (Gb) Ltd,No
Http://opendatacommunities.org/id/metropolitan-district-council/leeds,Leeds City Council,30/04/2020,Adults and Health,Social Services Support Services,Transport,Public Transport Expenses,310,03/04/2020,2004-00151,0.00,342.00,R,Ab Cars,No
Http://opendatacommunities.org/id/metropolitan-district-council/leeds,Leeds City Council,30/04/2020,City Development,Highways  ,Supplies and Services,Postages,212,02/03/2020,2004-00152,0.00,16.50,R,Abacus Express,Yes
Http://opendatacommunities.org/id/metropolitan-district-council/leeds,Leeds City Council,30/04/2020,Children and Families,Social Care,Third Party Payments,Services Rendered By Voluntary Sector,505,06/04/2020,2004-00153,0.00,568.44,R,Abbey Multi Academy Trust,No
Http://opendatacommunities.org/id/metropolitan-district-council/leeds,Leeds City Council,30/04/2020,Children and Families,Learning,Supplies and Services,Other Hired And Contracted Services,265,09/04/2020,2004-00154,0.00,75.00,R,Abbey Multi Academy Trust,No
Http://opendatacommunities.org/id/metropolitan-district-council/leeds,Leeds City Council,30/04/2020,Children and Families,Learning,Supplies and Services,Other Hired And Contracted Services,265,09/04/2020,2004-00155,0.00,75.00,R,Abbey Multi Academy Trust,No
Http://opendatacommunities.org/id/metropolitan-district-council/leeds,Leeds City Council,30/04/2020,Children and Families,Learning,Supplies and Services,Other Hired And Contracted Services,265,09/04/2020,2004-00156,0.00,265.05,R,Abbey Multi Academy Trust,No
Http://opendatacommunities.org/id/metropolitan-district-council/leeds,Leeds City Council,30/04/2020,Children and Families,Learning,Supplies and Services,Other Hired And Contracted Services,265,09/04/2020,2004-00157,0.00,170.00,R,Abbey Multi Academy Trust,No
Http://opendatacommunities.org/id/metropolitan-district-council/leeds,Leeds City Council,30/04/2020,Children and Families,Learning,Supplies and Services,Other Hired And Contracted Services,265,09/04/2020,2004-00158,0.00,200.00,R,Abbey Multi Academy Trust,No
Http://opendatacommunities.org/id/metropolitan-district-council/leeds,Leeds City Council,30/04/2020,Children and Families,Learning,Supplies and Services,Other Hired And Contracted Services,265,09/04/2020,2004-00159,0.00,182.00,R,Abbey Multi Academy Trust,No
Http://opendatacommunities.org/id/metropolitan-district-council/leeds,Leeds City Council,30/04/2020,Children and Families,Learning,Supplies and Services,Other Hired And Contracted Services,265,09/04/2020,2004-00160,0.00,102.00,R,Abbey Multi Academy Trust,No
Http://opendatacommunities.org/id/metropolitan-district-council/leeds,Leeds City Council,30/04/2020,Children and Families,Social Care,Third Party Payments,Services Rendered By Other Organisations,511,14/04/2020,2004-00161,0.00,30753.60,R,Abbey Multi Academy Trust,No
Http://opendatacommunities.org/id/metropolitan-district-council/leeds,Leeds City Council,30/04/2020,Children and Families,Learning,Supplies and Services,Other Hired And Contracted Services,265,16/04/2020,2004-00162,0.00,257.00,R,Abbey Multi Academy Trust,No
Http://opendatacommunities.org/id/metropolitan-district-council/leeds,Leeds City Council,30/04/2020,Children and Families,Learning,Supplies and Services,Other Hired And Contracted Services,265,16/04/2020,2004-00163,0.00,133.90,R,Abbey Multi Academy Trust.,No
Http://opendatacommunities.org/id/metropolitan-district-council/leeds,Leeds City Council,30/04/2020,Children and Families,Learning,Supplies and Services,Other Hired And Contracted Services,265,16/04/2020,2004-00164,0.00,49.00,R,Abbey Multi Academy Trust.,No
Http://opendatacommunities.org/id/metropolitan-district-council/leeds,Leeds City Council,30/04/2020,Children and Families,Learning,Supplies and Services,Other Hired And Contracted Services,265,16/04/2020,2004-00165,0.00,425.50,R,Abbey Multi Academy Trust.,No
Http://opendatacommunities.org/id/metropolitan-district-council/leeds,Leeds City Council,30/04/2020,Children and Families,Learning,Supplies and Services,Other Hired And Contracted Services,265,17/04/2020,2004-00166,0.00,67.00,R,Abbey Multi Academy Trust.,No
Http://opendatacommunities.org/id/metropolitan-district-council/leeds,Leeds City Council,30/04/2020,Children and Families,Social Care,Third Party Payments,Allowances,546,16/04/2020,2004-00167,0.00,652.69,R,ABBIE O'MAHONY,No
Http://opendatacommunities.org/id/metropolitan-district-council/leeds,Leeds City Council,30/04/2020,Communities and Environment,Parks and Countryside,Supplies and Services,Other Hired And Contracted Services,265,17/04/2020,2004-00168,0.00,550.00,R,Abbotts Memorials,No
Http://opendatacommunities.org/id/metropolitan-district-council/leeds,Leeds City Council,30/04/2020,Communities and Environment,Parks and Countryside,Supplies and Services,Other Hired And Contracted Services,265,17/04/2020,2004-00169,0.00,700.00,R,Abbotts Memorials,No
Http://opendatacommunities.org/id/metropolitan-district-council/leeds,Leeds City Council,30/04/2020,Communities and Environment,Parks and Countryside,Supplies and Services,Other Hired And Contracted Services,265,20/04/2020,2004-00170,0.00,1070.00,R,Abbotts Memorials,No
Http://opendatacommunities.org/id/metropolitan-district-council/leeds,Leeds City Council,30/04/2020,Communities and Environment,Parks and Countryside,Supplies and Services,Other Hired And Contracted Services,265,20/04/2020,2004-00171,0.00,550.00,R,Abbotts Memorials,No
Http://opendatacommunities.org/id/metropolitan-district-council/leeds,Leeds City Council,30/04/2020,Communities and Environment,Parks and Countryside,Supplies and Services,Other Hired And Contracted Services,265,20/04/2020,2004-00172,0.00,670.00,R,Abbotts Memorials,No
Http://opendatacommunities.org/id/metropolitan-district-council/leeds,Leeds City Council,30/04/2020,Children and Families,Social Care,Third Party Payments,Services Rendered By Other Organisations,511,01/04/2020,2004-00173,0.00,950.40,R,Abc Daycare And Ozone Out Of School,No
Http://opendatacommunities.org/id/metropolitan-district-council/leeds,Leeds City Council,30/04/2020,Children and Families,Social Care,Third Party Payments,Services Rendered By Other Organisations,511,03/04/2020,2004-00174,0.00,7253.28,R,Abc Daycare And Ozone Out Of School,No
Http://opendatacommunities.org/id/metropolitan-district-council/leeds,Leeds City Council,30/04/2020,Children and Families,Social Care,Third Party Payments,Services Rendered By Voluntary Sector,505,30/04/2020,2004-00175,0.00,2052.63,R,Abc Daycare And Ozone Out Of School,No
Http://opendatacommunities.org/id/metropolitan-district-council/leeds,Leeds City Council,30/04/2020,Communities and Environment,Environmental Health,Supplies and Services,Other Hired And Contracted Services,265,08/04/2020,2004-00176,0.00,1950.00,R,Abc Food Law Limited,No
Http://opendatacommunities.org/id/metropolitan-district-council/leeds,Leeds City Council,30/04/2020,Children and Families,Social Care,Third Party Payments,Services Rendered By Other Organisations,511,03/04/2020,2004-00177,0.00,7726.32,R,Abc Nursery At Lufc,No
Http://opendatacommunities.org/id/metropolitan-district-council/leeds,Leeds City Council,30/04/2020,Children and Families,Social Care,Third Party Payments,Services Rendered By Voluntary Sector,505,03/04/2020,2004-00178,0.00,663.18,R,Abc Nursery At Lufc,No
Http://opendatacommunities.org/id/metropolitan-district-council/leeds,Leeds City Council,30/04/2020,Children and Families,Social Care,Third Party Payments,Services Rendered By Voluntary Sector,505,30/04/2020,2004-00179,0.00,1231.58,R,Abc Nursery At Lufc,No
Http://opendatacommunities.org/id/metropolitan-district-council/leeds,Leeds City Council,30/04/2020,Children and Families,Social Care,Third Party Payments,Services Rendered By Other Organisations,511,01/04/2020,2004-00180,0.00,126.72,R,Abc@D'S Childcare,No
Http://opendatacommunities.org/id/metropolitan-district-council/leeds,Leeds City Council,30/04/2020,Children and Families,Social Care,Third Party Payments,Services Rendered By Other Organisations,511,03/04/2020,2004-00181,0.00,486.18,R,Abc@D'S Childcare,No
Http://opendatacommunities.org/id/metropolitan-district-council/leeds,Leeds City Council,30/04/2020,Children and Families,Social Care,Third Party Payments,Services Rendered By Other Organisations,511,08/04/2020,2004-00182,0.00,1393.92,R,Abc@D'S Childcare,No
Http://opendatacommunities.org/id/metropolitan-district-council/leeds,Leeds City Council,30/04/2020,Children and Families,Social Care,Third Party Payments,Services Rendered By Other Organisations,511,08/04/2020,2004-00183,0.00,4874.94,R,Abc@D'S Childcare,No
Http://opendatacommunities.org/id/metropolitan-district-council/leeds,Leeds City Council,30/04/2020,Communities and Environment,Customer Access,Supplies and Services,Bought In Professional Services,277,01/04/2020,2004-00184,0.00,18.00,R,Abdul Kalam,No
Http://opendatacommunities.org/id/metropolitan-district-council/leeds,Leeds City Council,30/04/2020,Communities and Environment,Customer Access,Supplies and Services,Bought In Professional Services,277,01/04/2020,2004-00185,0.00,18.00,R,Abdul Kalam,No
Http://opendatacommunities.org/id/metropolitan-district-council/leeds,Leeds City Council,30/04/2020,Communities and Environment,Customer Access,Supplies and Services,Bought In Professional Services,277,01/04/2020,2004-00186,0.00,18.00,R,Abdul Kalam,No
Http://opendatacommunities.org/id/metropolitan-district-council/leeds,Leeds City Council,30/04/2020,Communities and Environment,Customer Access,Supplies and Services,Bought In Professional Services,277,01/04/2020,2004-00187,0.00,18.00,R,Abdul Kalam,No
Http://opendatacommunities.org/id/metropolitan-district-council/leeds,Leeds City Council,30/04/2020,Communities and Environment,Customer Access,Supplies and Services,Bought In Professional Services,277,01/04/2020,2004-00188,0.00,18.00,R,Abdul Kalam,No
Http://opendatacommunities.org/id/metropolitan-district-council/leeds,Leeds City Council,30/04/2020,Communities and Environment,Customer Access,Supplies and Services,Bought In Professional Services,277,01/04/2020,2004-00189,0.00,18.00,R,Abdul Kalam,No
Http://opendatacommunities.org/id/metropolitan-district-council/leeds,Leeds City Council,30/04/2020,Communities and Environment,Customer Access,Supplies and Services,Bought In Professional Services,277,01/04/2020,2004-00190,0.00,18.00,R,Abdul Kalam,No
Http://opendatacommunities.org/id/metropolitan-district-council/leeds,Leeds City Council,30/04/2020,Communities and Environment,Customer Access,Supplies and Services,Bought In Professional Services,277,08/04/2020,2004-00191,0.00,18.00,R,Abdul Kalam,No
Http://opendatacommunities.org/id/metropolitan-district-council/leeds,Leeds City Council,30/04/2020,Communities and Environment,Customer Access,Supplies and Services,Bought In Professional Services,277,17/04/2020,2004-00192,0.00,18.00,R,Abdul Kalam,No
Http://opendatacommunities.org/id/metropolitan-district-council/leeds,Leeds City Council,30/04/2020,Communities and Environment,Customer Access,Supplies and Services,Bought In Professional Services,277,17/04/2020,2004-00193,0.00,9.00,R,Abdul Kalam,No
Http://opendatacommunities.org/id/metropolitan-district-council/leeds,Leeds City Council,30/04/2020,Communities and Environment,Customer Access,Supplies and Services,Bought In Professional Services,277,17/04/2020,2004-00194,0.00,18.00,R,Abdul Kalam,No
Http://opendatacommunities.org/id/metropolitan-district-council/leeds,Leeds City Council,30/04/2020,Communities and Environment,Customer Access,Supplies and Services,Bought In Professional Services,277,22/04/2020,2004-00195,0.00,18.00,R,Abdul Kalam,No
Http://opendatacommunities.org/id/metropolitan-district-council/leeds,Leeds City Council,30/04/2020,Communities and Environment,Customer Access,Supplies and Services,Bought In Professional Services,277,22/04/2020,2004-00196,0.00,18.00,R,Abdul Kalam,No
Http://opendatacommunities.org/id/metropolitan-district-council/leeds,Leeds City Council,30/04/2020,Resources and Housing,Sustainable Energy & Climate Change,Capital,Other Costs,7,14/04/2020,2004-00197,0.00,1500.00,C,REDACTED COMMERCIAL CONFIDENTIALITY,No
Http://opendatacommunities.org/id/metropolitan-district-council/leeds,Leeds City Council,30/04/2020,Resources and Housing,Sustainable Energy & Climate Change,Capital,Other Costs,7,14/04/2020,2004-00198,0.00,1500.00,C,REDACTED COMMERCIAL CONFIDENTIALITY,No
Http://opendatacommunities.org/id/metropolitan-district-council/leeds,Leeds City Council,30/04/2020,Communities and Environment,Customer Access,Supplies and Services,Bought In Professional Services,277,01/04/2020,2004-00199,0.00,18.00,R,Abdulahad Denha,No
Http://opendatacommunities.org/id/metropolitan-district-council/leeds,Leeds City Council,30/04/2020,Communities and Environment,Customer Access,Supplies and Services,Bought In Professional Services,277,01/04/2020,2004-00200,0.00,18.00,R,Abdulahad Denha,No
Http://opendatacommunities.org/id/metropolitan-district-council/leeds,Leeds City Council,30/04/2020,Communities and Environment,Customer Access,Supplies and Services,Bought In Professional Services,277,01/04/2020,2004-00201,0.00,108.00,R,Abdulahad Denha,No
Http://opendatacommunities.org/id/metropolitan-district-council/leeds,Leeds City Council,30/04/2020,Communities and Environment,Customer Access,Supplies and Services,Bought In Professional Services,277,01/04/2020,2004-00202,0.00,18.00,R,Abdulahad Denha,No
Http://opendatacommunities.org/id/metropolitan-district-council/leeds,Leeds City Council,30/04/2020,Communities and Environment,Customer Access,Supplies and Services,Bought In Professional Services,277,17/04/2020,2004-00203,0.00,27.00,R,Abdulahad Denha,No
Http://opendatacommunities.org/id/metropolitan-district-council/leeds,Leeds City Council,30/04/2020,Communities and Environment,Customer Access,Supplies and Services,Bought In Professional Services,277,17/04/2020,2004-00204,0.00,27.00,R,Abdulahad Denha,No
Http://opendatacommunities.org/id/metropolitan-district-council/leeds,Leeds City Council,30/04/2020,Communities and Environment,Customer Access,Supplies and Services,Bought In Professional Services,277,01/04/2020,2004-00205,0.00,22.50,R,Abdulrahim Dastyar,No
Http://opendatacommunities.org/id/metropolitan-district-council/leeds,Leeds City Council,30/04/2020,Communities and Environment,Customer Access,Supplies and Services,Bought In Professional Services,277,01/04/2020,2004-00206,0.00,27.00,R,Abdulrahim Dastyar,No
Http://opendatacommunities.org/id/metropolitan-district-council/leeds,Leeds City Council,30/04/2020,Children and Families,Social Care,Income,Nursery Fees Income,926,30/04/2020,2004-00207,0.00,46.90,R,REDACTED PERSONAL DATA,No
Http://opendatacommunities.org/id/metropolitan-district-council/leeds,Leeds City Council,30/04/2020,Strategic Accounts,Strategic,Supplies and Services,Non-Recurring Grants,227,01/04/2020,2004-00208,0.00,340.00,R,Aberford And District Parish Council,No
Http://opendatacommunities.org/id/metropolitan-district-council/leeds,Leeds City Council,30/04/2020,Strategic Accounts,Strategic,Supplies and Services,Office Consumables,210,01/04/2020,2004-00209,0.00,21000.00,R,Aberford And District Parish Council,No
Http://opendatacommunities.org/id/metropolitan-district-council/leeds,Leeds City Council,30/04/2020,Adults and Health,Services For Older People - 65 And Over,Third Party Payments,Nursing Home,570,01/04/2020,2004-00210,0.00,29623.21,R,Aberford Hall,No
Http://opendatacommunities.org/id/metropolitan-district-council/leeds,Leeds City Council,30/04/2020,Adults and Health,Services For Older People Under 65 P/Dis,Third Party Payments,Nursing Home,570,01/04/2020,2004-00211,0.00,849.30,R,Aberford Hall,No
Http://opendatacommunities.org/id/metropolitan-district-council/leeds,Leeds City Council,30/04/2020,Adults and Health,Services For Older People - 65 And Over,Third Party Payments,Nursing Home,570,29/04/2020,2004-00212,0.00,92600.27,R,Aberford Hall,No
Http://opendatacommunities.org/id/metropolitan-district-council/leeds,Leeds City Council,30/04/2020,Resources and Housing,Leeds Building Services,Supplies and Services,Operational Materials,205,17/04/2020,2004-00213,0.00,281.04,R,Abi Garage Doors Ltd,No
Http://opendatacommunities.org/id/metropolitan-district-council/leeds,Leeds City Council,30/04/2020,Adults and Health,Social Services Support Services,Support Services,Legal Disbursements,411,09/04/2020,2004-00214,0.00,1850.00,R,Abid Mahmood,No
Http://opendatacommunities.org/id/metropolitan-district-council/leeds,Leeds City Council,30/04/2020,Children and Families,Social Care,Third Party Payments,Placement Support,550,06/04/2020,2004-00215,0.00,251.00,R,REDACTED PERSONAL DATA,No
Http://opendatacommunities.org/id/metropolitan-district-council/leeds,Leeds City Council,30/04/2020,Adults and Health,Assessment And Care Management,Supplies and Services,Other Hired And Contracted Services,265,24/04/2020,2004-00216,0.00,110.00,R,Able Group,No
Http://opendatacommunities.org/id/metropolitan-district-council/leeds,Leeds City Council,30/04/2020,City Development,Libraries  Arts & Heritage  ,Supplies and Services,Operational Furniture And Equipment,203,11/03/2020,2004-00217,0.00,102.92,R,Absoluteproduct.Co,Yes
Http://opendatacommunities.org/id/metropolitan-district-council/leeds,Leeds City Council,30/04/2020,Children and Families,Social Care  ,Supplies and Services,Food & Drink,231,30/03/2020,2004-00218,0.00,52.25,R,Abu Bakar Limited,Yes
Http://opendatacommunities.org/id/metropolitan-district-council/leeds,Leeds City Council,30/04/2020,Adults and Health,Services For Adults Under 65 Mental/Dis,Third Party Payments,Fees - Level 4,520,09/04/2020,2004-00219,0.00,230.40,R,Abubaker Denja Mohammed,No
Http://opendatacommunities.org/id/metropolitan-district-council/leeds,Leeds City Council,30/04/2020,Adults and Health,Services For Adults Under 65 Mental/Dis,Third Party Payments,Fees - Level 4,520,09/04/2020,2004-00220,0.00,230.04,R,Abubaker Denja Mohammed,No
Http://opendatacommunities.org/id/metropolitan-district-council/leeds,Leeds City Council,30/04/2020,Adults and Health,Services For Adults Under 65 Mental/Dis,Third Party Payments,Fees - Level 4,520,09/04/2020,2004-00221,0.00,232.60,R,Abubaker Denja Mohammed,No
Http://opendatacommunities.org/id/metropolitan-district-council/leeds,Leeds City Council,30/04/2020,Adults and Health,Services For Adults Under 65 Mental/Dis,Third Party Payments,Fees - Level 4,520,09/04/2020,2004-00222,0.00,175.00,R,Abubaker Denja Mohammed,No
Http://opendatacommunities.org/id/metropolitan-district-council/leeds,Leeds City Council,30/04/2020,Adults and Health,Services For Adults Under 65 Mental/Dis,Third Party Payments,Fees - Level 4,520,09/04/2020,2004-00223,0.00,232.60,R,Abubaker Denja Mohammed,No
Http://opendatacommunities.org/id/metropolitan-district-council/leeds,Leeds City Council,30/04/2020,Adults and Health,Services For Adults Under 65 Mental/Dis,Third Party Payments,Fees - Level 4,520,09/04/2020,2004-00224,0.00,175.00,R,Abubaker Denja Mohammed,No
Http://opendatacommunities.org/id/metropolitan-district-council/leeds,Leeds City Council,30/04/2020,Adults and Health,Services For Adults Under 65 Mental/Dis,Third Party Payments,Fees - Level 4,520,09/04/2020,2004-00225,0.00,175.00,R,Abubaker Denja Mohammed,No
Http://opendatacommunities.org/id/metropolitan-district-council/leeds,Leeds City Council,30/04/2020,Adults and Health,Services For Adults Under 65 Mental/Dis,Third Party Payments,Fees - Level 4,520,09/04/2020,2004-00226,0.00,175.00,R,Abubaker Denja Mohammed,No
Http://opendatacommunities.org/id/metropolitan-district-council/leeds,Leeds City Council,30/04/2020,Children and Families,Social Care,Third Party Payments,Services Rendered By Other Organisations,511,14/04/2020,2004-00227,0.00,38700.00,R,Academies Enterprise Trust (Aet),No
Http://opendatacommunities.org/id/metropolitan-district-council/leeds,Leeds City Council,30/04/2020,Children and Families,Social Care,Third Party Payments,Services Rendered By Other Organisations,511,14/04/2020,2004-00228,0.00,572.40,R,Academies Enterprise Trust (Aet),No
Http://opendatacommunities.org/id/metropolitan-district-council/leeds,Leeds City Council,30/04/2020,Adults and Health,Services For Older People - 65 And Over,Third Party Payments,Home Care,568,29/04/2020,2004-00229,0.00,3513.51,R,Academy Care Ltd,No
Http://opendatacommunities.org/id/metropolitan-district-council/leeds,Leeds City Council,30/04/2020,Adults and Health,Services For Older People - 65 And Over,Third Party Payments,Home Care,568,29/04/2020,2004-00230,0.00,2087.20,R,Academy Care Ltd,No
Http://opendatacommunities.org/id/metropolitan-district-council/leeds,Leeds City Council,30/04/2020,Adults and Health,Services For Older People - 65 And Over,Third Party Payments,Home Care,568,29/04/2020,2004-00231,0.00,5870.97,R,Academy Care Ltd,No
Http://opendatacommunities.org/id/metropolitan-district-council/leeds,Leeds City Council,30/04/2020,Adults and Health,Social Services Support Services,Employees,Training & Development,70,15/04/2020,2004-00232,0.00,8275.00,R,Acas,No
Http://opendatacommunities.org/id/metropolitan-district-council/leeds,Leeds City Council,30/04/2020,Communities and Environment,Community Safety,Transport,Hire Of Movable Plant & Machinery,315,15/04/2020,2004-00233,0.00,1434.86,R,Access Hire Nationwide Ltd,No
Http://opendatacommunities.org/id/metropolitan-district-council/leeds,Leeds City Council,30/04/2020,Strategic Landlord,Property and Contracts,Premises,General Maintenance,104,09/04/2020,2004-00234,0.00,265.60,R,Access Locksmiths (Leeds) Limited,No
Http://opendatacommunities.org/id/metropolitan-district-council/leeds,Leeds City Council,30/04/2020,Resources and Housing,Leeds Building Services,Supplies and Services,Operational Materials,205,17/04/2020,2004-00235,0.00,372.12,R,Access Locksmiths (Leeds) Limited,No
Http://opendatacommunities.org/id/metropolitan-district-council/leeds,Leeds City Council,30/04/2020,Resources and Housing,Leeds Building Services,Supplies and Services,Operational Materials,205,17/04/2020,2004-00236,0.00,121.05,R,Access Locksmiths (Leeds) Limited,No
Http://opendatacommunities.org/id/metropolitan-district-council/leeds,Leeds City Council,30/04/2020,Resources and Housing,Leeds Building Services,Supplies and Services,Operational Materials,205,17/04/2020,2004-00237,0.00,94.88,R,Access Locksmiths (Leeds) Limited,No
Http://opendatacommunities.org/id/metropolitan-district-council/leeds,Leeds City Council,30/04/2020,Resources and Housing,Leeds Building Services,Supplies and Services,Operational Furniture And Equipment,203,17/04/2020,2004-00238,0.00,15.60,R,Access Locksmiths (Leeds) Limited,No
Http://opendatacommunities.org/id/metropolitan-district-council/leeds,Leeds City Council,30/04/2020,Resources and Housing,Leeds Building Services,Supplies and Services,Operational Furniture And Equipment,203,24/04/2020,2004-00239,0.00,7.50,R,Access Locksmiths (Leeds) Limited,No
Http://opendatacommunities.org/id/metropolitan-district-council/leeds,Leeds City Council,30/04/2020,Strategic Landlord,Housing Management,Supplies and Services,Resaleable Materials,204,27/04/2020,2004-00240,0.00,228.00,R,Access Locksmiths (Leeds) Limited,No
Http://opendatacommunities.org/id/metropolitan-district-council/leeds,Leeds City Council,30/04/2020,Communities and Environment,Environmental Action (City Centre),Supplies and Services,CCTV,252,17/04/2020,2004-00241,0.00,468.00,R,Accesscctv,No
Http://opendatacommunities.org/id/metropolitan-district-council/leeds,Leeds City Council,30/04/2020,Insurance,Insurance,Supplies and Services,Insurance Claims,248,21/04/2020,2004-00242,0.00,839.70,R,Accident Exchange Ltd,No
Http://opendatacommunities.org/id/metropolitan-district-council/leeds,Leeds City Council As Accountable Body,30/04/2020,Social Services Pooled Budgets,Leeds Community Equip Store Pooled Budgt,Supplies and Services,Other Equipment,203,17/04/2020,2004-00243,0.00,48.50,R,Accora,No
Http://opendatacommunities.org/id/metropolitan-district-council/leeds,Leeds City Council,30/04/2020,Insurance,Insurance,Supplies and Services,Insurance Claims,248,02/04/2020,2004-00244,0.00,3510.08,R,Accountant General Of The Senior Courts,No
Http://opendatacommunities.org/id/metropolitan-district-council/leeds,Leeds City Council,30/04/2020,City Development,Libraries  Arts & Heritage,Supplies and Services,Other Hired And Contracted Services,265,01/04/2020,2004-00245,0.00,46.50,R,Ace Container Services Limited,No
Http://opendatacommunities.org/id/metropolitan-district-council/leeds,Leeds City Council,30/04/2020,City Development,Recreation,Supplies and Services,Other Hired And Contracted Services,265,09/04/2020,2004-00246,0.00,93.00,R,Ace Container Services Limited,No
Http://opendatacommunities.org/id/metropolitan-district-council/leeds,Leeds City Council,30/04/2020,City Development,Recreation,Supplies and Services,Operational Furniture And Equipment,203,17/04/2020,2004-00247,0.00,93.00,R,Ace Container Services Limited,No
Http://opendatacommunities.org/id/metropolitan-district-council/leeds,Leeds City Council,30/04/2020,City Development,Recreation,Supplies and Services,Operational Furniture And Equipment,203,17/04/2020,2004-00248,0.00,90.00,R,Ace Container Services Limited,No
Http://opendatacommunities.org/id/metropolitan-district-council/leeds,Leeds City Council,30/04/2020,City Development,Recreation,Transport,External Hire -Occasional,304,17/04/2020,2004-00249,0.00,124.50,R,Ace Container Services Limited,No
Http://opendatacommunities.org/id/metropolitan-district-council/leeds,Leeds City Council,30/04/2020,City Development,Libraries  Arts & Heritage,Supplies and Services,Other Hired And Contracted Services,265,21/04/2020,2004-00250,0.00,45.00,R,Ace Container Services Limited,No
Http://opendatacommunities.org/id/metropolitan-district-council/leeds,Leeds City Council,30/04/2020,Children and Families,Partnerships & Health,Third Party Payments,SEN Placements,566,17/04/2020,2004-00251,0.00,18033.84,R,Ackworth School,No
Http://opendatacommunities.org/id/metropolitan-district-council/leeds,Leeds City Council,30/04/2020,Children and Families,Partnerships & Health,Third Party Payments,SEN Placements,566,17/04/2020,2004-00252,0.00,18033.84,R,Ackworth School,No
Http://opendatacommunities.org/id/metropolitan-district-council/leeds,Leeds City Council,30/04/2020,Children and Families,Partnerships & Health,Third Party Payments,SEN Placements,566,17/04/2020,2004-00253,0.00,18033.84,R,Ackworth School,No
Http://opendatacommunities.org/id/metropolitan-district-council/leeds,Leeds City Council,30/04/2020,Children and Families,Partnerships & Health,Third Party Payments,SEN Placements,566,17/04/2020,2004-00254,0.00,18033.84,R,Ackworth School,No
Http://opendatacommunities.org/id/metropolitan-district-council/leeds,Leeds City Council,30/04/2020,Children and Families,Partnerships & Health,Third Party Payments,SEN Placements,566,17/04/2020,2004-00255,0.00,18033.84,R,Ackworth School,No
Http://opendatacommunities.org/id/metropolitan-district-council/leeds,Leeds City Council,30/04/2020,Children and Families,Partnerships & Health,Third Party Payments,SEN Placements,566,17/04/2020,2004-00256,0.00,25326.84,R,Ackworth School,No
Http://opendatacommunities.org/id/metropolitan-district-council/leeds,Leeds City Council,30/04/2020,Children and Families,Partnerships & Health,Third Party Payments,SEN Placements,566,17/04/2020,2004-00257,0.00,18033.84,R,Ackworth School,No
Http://opendatacommunities.org/id/metropolitan-district-council/leeds,Leeds City Council,30/04/2020,Children and Families,Partnerships & Health,Third Party Payments,SEN Placements,566,17/04/2020,2004-00258,0.00,18033.84,R,Ackworth School,No
Http://opendatacommunities.org/id/metropolitan-district-council/leeds,Leeds City Council,30/04/2020,Children and Families,Partnerships & Health,Third Party Payments,SEN Placements,566,17/04/2020,2004-00259,0.00,18033.84,R,Ackworth School,No
Http://opendatacommunities.org/id/metropolitan-district-council/leeds,Leeds City Council,30/04/2020,Children and Families,Partnerships & Health,Third Party Payments,SEN Placements,566,17/04/2020,2004-00260,0.00,18033.84,R,Ackworth School,No
Http://opendatacommunities.org/id/metropolitan-district-council/leeds,Leeds City Council,30/04/2020,Resources and Housing,Strategic Housing Partnership & Support,Supplies and Services,Other Hired And Contracted Services,265,28/04/2020,2004-00261,0.00,1050.00,R,Acl Rents,No
Http://opendatacommunities.org/id/metropolitan-district-council/leeds,Leeds City Council,30/04/2020,Children and Families,Partnerships & Health,Third Party Payments,SEN Placements,566,15/04/2020,2004-00262,0.00,-18138.66,R,Acorn Care & Education Ltd (Sales),No
Http://opendatacommunities.org/id/metropolitan-district-council/leeds,Leeds City Council,30/04/2020,Children and Families,Partnerships & Health,Third Party Payments,SEN Placements,566,15/04/2020,2004-00263,0.00,-18138.66,R,Acorn Care & Education Ltd (Sales),No
Http://opendatacommunities.org/id/metropolitan-district-council/leeds,Leeds City Council,30/04/2020,Children and Families,Partnerships & Health,Third Party Payments,SEN Placements,566,15/04/2020,2004-00264,0.00,16640.07,R,Acorn Care & Education Ltd (Sales),No
Http://opendatacommunities.org/id/metropolitan-district-council/leeds,Leeds City Council,30/04/2020,Children and Families,Partnerships & Health,Third Party Payments,SEN Placements,566,15/04/2020,2004-00265,0.00,18472.00,R,Acorn Care & Education Ltd (Sales),No
Http://opendatacommunities.org/id/metropolitan-district-council/leeds,Leeds City Council,30/04/2020,Children and Families,Partnerships & Health,Third Party Payments,SEN Placements,566,15/04/2020,2004-00266,0.00,18472.00,R,Acorn Care & Education Ltd (Sales),No
Http://opendatacommunities.org/id/metropolitan-district-council/leeds,Leeds City Council,30/04/2020,Children and Families,Partnerships & Health,Third Party Payments,SEN Placements,566,15/04/2020,2004-00267,0.00,18472.00,R,Acorn Care & Education Ltd (Sales),No
Http://opendatacommunities.org/id/metropolitan-district-council/leeds,Leeds City Council,30/04/2020,Children and Families,Partnerships & Health,Third Party Payments,SEN Placements,566,15/04/2020,2004-00268,0.00,18472.00,R,Acorn Care & Education Ltd (Sales),No
Http://opendatacommunities.org/id/metropolitan-district-council/leeds,Leeds City Council,30/04/2020,Children and Families,Partnerships & Health,Third Party Payments,SEN Placements,566,15/04/2020,2004-00269,0.00,18472.00,R,Acorn Care & Education Ltd (Sales),No
Http://opendatacommunities.org/id/metropolitan-district-council/leeds,Leeds City Council,30/04/2020,Children and Families,Partnerships & Health,Third Party Payments,SEN Placements,566,15/04/2020,2004-00270,0.00,18472.00,R,Acorn Care & Education Ltd (Sales),No
Http://opendatacommunities.org/id/metropolitan-district-council/leeds,Leeds City Council,30/04/2020,Children and Families,Partnerships & Health,Third Party Payments,SEN Placements,566,15/04/2020,2004-00271,0.00,18907.94,R,Acorn Care & Education Ltd (Sales),No
Http://opendatacommunities.org/id/metropolitan-district-council/leeds,Leeds City Council,30/04/2020,Children and Families,Partnerships & Health,Third Party Payments,SEN Placements,566,15/04/2020,2004-00272,0.00,18566.74,R,Acorn Care & Education Ltd (Sales),No
Http://opendatacommunities.org/id/metropolitan-district-council/leeds,Leeds City Council,30/04/2020,Children and Families,Partnerships & Health,Third Party Payments,SEN Placements,566,15/04/2020,2004-00273,0.00,18566.74,R,Acorn Care & Education Ltd (Sales),No
Http://opendatacommunities.org/id/metropolitan-district-council/leeds,Leeds City Council,30/04/2020,Children and Families,Partnerships & Health,Third Party Payments,SEN Placements,566,15/04/2020,2004-00274,0.00,18907.94,R,Acorn Care & Education Ltd (Sales),No
Http://opendatacommunities.org/id/metropolitan-district-council/leeds,Leeds City Council,30/04/2020,Children and Families,Partnerships & Health,Third Party Payments,SEN Placements,566,22/04/2020,2004-00275,0.00,510.59,R,Acorn Care & Education Ltd (Sales),No
Http://opendatacommunities.org/id/metropolitan-district-council/leeds,Leeds City Council,30/04/2020,Children and Families,Partnerships & Health,Third Party Payments,SEN Placements,566,22/04/2020,2004-00276,0.00,519.97,R,Acorn Care & Education Ltd (Sales),No
Http://opendatacommunities.org/id/metropolitan-district-council/leeds,Leeds City Council,30/04/2020,Children and Families,Partnerships & Health,Third Party Payments,SEN Placements,566,22/04/2020,2004-00277,0.00,519.97,R,Acorn Care & Education Ltd (Sales),No
Http://opendatacommunities.org/id/metropolitan-district-council/leeds,Leeds City Council,30/04/2020,Children and Families,Partnerships & Health,Third Party Payments,SEN Placements,566,22/04/2020,2004-00278,0.00,507.98,R,Acorn Care & Education Ltd (Sales),No
Http://opendatacommunities.org/id/metropolitan-district-council/leeds,Leeds City Council,30/04/2020,Children and Families,Partnerships & Health,Third Party Payments,SEN Placements,566,22/04/2020,2004-00279,0.00,507.98,R,Acorn Care & Education Ltd (Sales),No
Http://opendatacommunities.org/id/metropolitan-district-council/leeds,Leeds City Council,30/04/2020,Children and Families,Partnerships & Health,Third Party Payments,SEN Placements,566,22/04/2020,2004-00280,0.00,514.67,R,Acorn Care & Education Ltd (Sales),No
Http://opendatacommunities.org/id/metropolitan-district-council/leeds,Leeds City Council,30/04/2020,Children and Families,Partnerships & Health,Third Party Payments,SEN Placements,566,22/04/2020,2004-00281,0.00,507.98,R,Acorn Care & Education Ltd (Sales),No
Http://opendatacommunities.org/id/metropolitan-district-council/leeds,Leeds City Council,30/04/2020,Children and Families,Partnerships & Health,Third Party Payments,SEN Placements,566,22/04/2020,2004-00282,0.00,507.98,R,Acorn Care & Education Ltd (Sales),No
Http://opendatacommunities.org/id/metropolitan-district-council/leeds,Leeds City Council,30/04/2020,Children and Families,Partnerships & Health,Third Party Payments,SEN Placements,566,22/04/2020,2004-00283,0.00,510.59,R,Acorn Care & Education Ltd (Sales),No
Http://opendatacommunities.org/id/metropolitan-district-council/leeds,Leeds City Council,30/04/2020,Children and Families,Partnerships & Health,Third Party Payments,SEN Placements,566,22/04/2020,2004-00284,0.00,507.98,R,Acorn Care & Education Ltd (Sales),No
Http://opendatacommunities.org/id/metropolitan-district-council/leeds,Leeds City Council,30/04/2020,Children and Families,Partnerships & Health,Third Party Payments,SEN Placements,566,22/04/2020,2004-00285,0.00,507.98,R,Acorn Care & Education Ltd (Sales),No
Http://opendatacommunities.org/id/metropolitan-district-council/leeds,Leeds City Council,30/04/2020,Children and Families,Partnerships & Health,Third Party Payments,SEN Placements,566,22/04/2020,2004-00286,0.00,1284.22,R,Acorn Care & Education Ltd (Sales),No
Http://opendatacommunities.org/id/metropolitan-district-council/leeds,Leeds City Council,30/04/2020,Children and Families,Partnerships & Health,Third Party Payments,SEN Placements,566,22/04/2020,2004-00287,0.00,1307.82,R,Acorn Care & Education Ltd (Sales),No
Http://opendatacommunities.org/id/metropolitan-district-council/leeds,Leeds City Council,30/04/2020,Children and Families,Partnerships & Health,Third Party Payments,SEN Placements,566,22/04/2020,2004-00288,0.00,1284.22,R,Acorn Care & Education Ltd (Sales),No
Http://opendatacommunities.org/id/metropolitan-district-council/leeds,Leeds City Council,30/04/2020,Children and Families,Partnerships & Health,Third Party Payments,SEN Placements,566,23/04/2020,2004-00289,0.00,8892.01,R,Acorn Care & Education Ltd (Sales),No
Http://opendatacommunities.org/id/metropolitan-district-council/leeds,Leeds City Council,30/04/2020,Children and Families,Partnerships & Health,Third Party Payments,SEN Placements,566,23/04/2020,2004-00290,0.00,1307.82,R,Acorn Care & Education Ltd (Sales),No
Http://opendatacommunities.org/id/metropolitan-district-council/leeds,Leeds City Council,30/04/2020,Children and Families,Partnerships & Health,Third Party Payments,SEN Placements,566,23/04/2020,2004-00291,0.00,1307.82,R,Acorn Care & Education Ltd (Sales),No
Http://opendatacommunities.org/id/metropolitan-district-council/leeds,Leeds City Council,30/04/2020,City Development,Libraries  Arts & Heritage,Supplies and Services,Other Hired And Contracted Services,265,06/04/2020,2004-00292,0.00,700.00,R,Acorn Construction (Yorkshire) Ltd,No
Http://opendatacommunities.org/id/metropolitan-district-council/leeds,Leeds City Council,30/04/2020,City Development,Libraries  Arts & Heritage,Supplies and Services,Other Hired And Contracted Services,265,06/04/2020,2004-00293,0.00,104.50,R,Acorn Construction (Yorkshire) Ltd,No
Http://opendatacommunities.org/id/metropolitan-district-council/leeds,Leeds City Council,30/04/2020,Resources and Housing,Sustainable Energy & Air Quality,Supplies and Services,Schools related grant expenditure,299,16/04/2020,2004-00294,0.00,3308.00,R,Acorn Construction (Yorkshire) Ltd,No
Http://opendatacommunities.org/id/metropolitan-district-council/leeds,Leeds City Council,30/04/2020,City Development,Libraries  Arts & Heritage,Supplies and Services,Other Hired And Contracted Services,265,16/04/2020,2004-00295,0.00,1560.00,R,Acorn Construction (Yorkshire) Ltd,No
Http://opendatacommunities.org/id/metropolitan-district-council/leeds,Leeds City Council,30/04/2020,Adults and Health,Services For Older People - 65 And Over,Third Party Payments,Residential Care Dementia,571,01/04/2020,2004-00296,0.00,1521.16,R,Acorn Nursing Home,No
Http://opendatacommunities.org/id/metropolitan-district-council/leeds,Leeds City Council,30/04/2020,Adults and Health,Services For Older People - 65 And Over,Third Party Payments,Nursing Care Dementia,574,01/04/2020,2004-00297,0.00,1646.24,R,Acorn Nursing Home,No
Http://opendatacommunities.org/id/metropolitan-district-council/leeds,Leeds City Council,30/04/2020,Adults and Health,Services For Older People - 65 And Over,Third Party Payments,Residential Care Dementia,571,29/04/2020,2004-00298,0.00,1641.14,R,Acorn Nursing Home,No
Http://opendatacommunities.org/id/metropolitan-district-council/leeds,Leeds City Council,30/04/2020,Adults and Health,Services For Older People - 65 And Over,Third Party Payments,Nursing Care Dementia,574,29/04/2020,2004-00299,0.00,1775.46,R,Acorn Nursing Home,No
Http://opendatacommunities.org/id/metropolitan-district-council/leeds,Leeds City Council,30/04/2020,Children and Families,Social Care,Third Party Payments,Services Rendered By Other Organisations,511,01/04/2020,2004-00300,0.00,190.08,R,Acorns Nursery,No
Http://opendatacommunities.org/id/metropolitan-district-council/leeds,Leeds City Council,30/04/2020,Children and Families,Social Care,Third Party Payments,Services Rendered By Other Organisations,511,03/04/2020,2004-00301,0.00,6622.56,R,Acorns Nursery,No
Http://opendatacommunities.org/id/metropolitan-district-council/leeds,Leeds City Council,30/04/2020,City Development,Libraries  Arts & Heritage,Supplies and Services,Operational Furniture And Equipment,203,09/04/2020,2004-00302,0.00,750.00,R,Acoustiguide Ltd,No
Http://opendatacommunities.org/id/metropolitan-district-council/leeds,Leeds City Council,30/04/2020,Adults and Health,Services For Older People - 65 And Over,Third Party Payments,Nursing Home,570,01/04/2020,2004-00303,0.00,28291.59,R,Acre Green,No
Http://opendatacommunities.org/id/metropolitan-district-council/leeds,Leeds City Council,30/04/2020,Adults and Health,Services For Older People - 65 And Over,Third Party Payments,Residential,580,01/04/2020,2004-00304,0.00,3742.60,R,Acre Green,No
Http://opendatacommunities.org/id/metropolitan-district-council/leeds,Leeds City Council,30/04/2020,Adults and Health,Services For Older People Under 65 P/Dis,Third Party Payments,Nursing Home,570,01/04/2020,2004-00305,0.00,2268.00,R,Acre Green,No
Http://opendatacommunities.org/id/metropolitan-district-council/leeds,Leeds City Council,30/04/2020,Adults and Health,Services For Older People Under 65 P/Dis,Third Party Payments,Residential,580,01/04/2020,2004-00306,0.00,1574.20,R,Acre Green,No
Http://opendatacommunities.org/id/metropolitan-district-council/leeds,Leeds City Council,30/04/2020,Adults and Health,Services For Older People - 65 And Over,Third Party Payments,Nursing Home,570,29/04/2020,2004-00307,0.00,23017.84,R,Acre Green,No
Http://opendatacommunities.org/id/metropolitan-district-council/leeds,Leeds City Council,30/04/2020,Adults and Health,Services For Older People - 65 And Over,Third Party Payments,Residential,580,29/04/2020,2004-00308,0.00,4062.34,R,Acre Green,No
Http://opendatacommunities.org/id/metropolitan-district-council/leeds,Leeds City Council,30/04/2020,Adults and Health,Services For Older People Under 65 P/Dis,Third Party Payments,Nursing Home,570,29/04/2020,2004-00309,0.00,2445.43,R,Acre Green,No
Http://opendatacommunities.org/id/metropolitan-district-council/leeds,Leeds City Council,30/04/2020,Adults and Health,Services For Older People Under 65 P/Dis,Third Party Payments,Residential,580,29/04/2020,2004-00310,0.00,1708.19,R,Acre Green,No
Http://opendatacommunities.org/id/metropolitan-district-council/leeds,Leeds City Council,30/04/2020,Children and Families,Social Care,Third Party Payments,Services Rendered By Other Organisations,511,01/04/2020,2004-00311,0.00,2090.88,R,Acre Wood Day Nursery,No
Http://opendatacommunities.org/id/metropolitan-district-council/leeds,Leeds City Council,30/04/2020,Children and Families,Social Care,Third Party Payments,Services Rendered By Other Organisations,511,03/04/2020,2004-00312,0.00,10722.24,R,Acre Wood Day Nursery,No
Http://opendatacommunities.org/id/metropolitan-district-council/leeds,Leeds City Council,30/04/2020,Children and Families,Social Care,Third Party Payments,Services Rendered By Voluntary Sector,505,30/04/2020,2004-00313,0.00,2052.63,R,Acre Wood Day Nursery,No
Http://opendatacommunities.org/id/metropolitan-district-council/leeds,Leeds City Council,30/04/2020,Resources and Housing,Technology  ,Supplies and Services,Computer Software & Equipment,214,27/03/2020,2004-00314,0.00,13291.91,R,Acs Business Supplies Lt,Yes
Http://opendatacommunities.org/id/metropolitan-district-council/leeds,Leeds City Council,30/04/2020,Resources and Housing,Leeds Building Services,Supplies and Services,Other Hired And Contracted Services,265,17/04/2020,2004-00315,0.00,165.29,R,Actavo Hire And Sales Uk Limited,No
Http://opendatacommunities.org/id/metropolitan-district-council/leeds,Leeds City Council,30/04/2020,Resources and Housing,Leeds Building Services,Supplies and Services,Operational Materials,205,17/04/2020,2004-00316,0.00,122.40,R,Actavo Hire And Sales Uk Limited,No
Http://opendatacommunities.org/id/metropolitan-district-council/leeds,Leeds City Council,30/04/2020,Children and Families,Social Care,Third Party Payments,Independent Fostering Agencies,509,17/04/2020,2004-00317,0.00,5163.67,R,Action For Children Services Ltd,No
Http://opendatacommunities.org/id/metropolitan-district-council/leeds,Leeds City Council,30/04/2020,Children and Families,Social Care,Third Party Payments,Independent Fostering Agencies,509,24/04/2020,2004-00318,0.00,4997.10,R,Action For Children Services Ltd,No
Http://opendatacommunities.org/id/metropolitan-district-council/leeds,Leeds City Council,30/04/2020,Adults and Health,Services For Older People - 65 And Over,Third Party Payments,Payments To Voluntary Organisations,561,01/04/2020,2004-00319,0.00,38586.91,R,Action For Gipton Elderly,No
Http://opendatacommunities.org/id/metropolitan-district-council/leeds,Leeds City Council,30/04/2020,Adults and Health,Services For Older People - 65 And Over,Third Party Payments,Payments To Voluntary Organisations,561,01/04/2020,2004-00320,0.00,10828.91,R,Action For Gipton Elderly,No
Http://opendatacommunities.org/id/metropolitan-district-council/leeds,Leeds City Council,30/04/2020,Adults and Health,Social Services Support Services,Third Party Payments,Payments To Voluntary Organisations,561,30/04/2020,2004-00321,0.00,5000.00,R,Action For Gipton Elderly,No
Http://opendatacommunities.org/id/metropolitan-district-council/leeds,Leeds City Council,30/04/2020,Children and Families,Social Care,Third Party Payments,Services Rendered By Other Organisations,511,01/04/2020,2004-00322,0.00,411.84,R,Active Kids Yeadon Llp,No
Http://opendatacommunities.org/id/metropolitan-district-council/leeds,Leeds City Council,30/04/2020,Children and Families,Social Care,Third Party Payments,Services Rendered By Other Organisations,511,03/04/2020,2004-00323,0.00,6616.43,R,Active Kids Yeadon Llp,No
Http://opendatacommunities.org/id/metropolitan-district-council/leeds,Leeds City Council,30/04/2020,Children and Families,Social Care,Third Party Payments,Services Rendered By Voluntary Sector,505,30/04/2020,2004-00324,0.00,568.44,R,Active Kids Yeadon Llp,No
Http://opendatacommunities.org/id/metropolitan-district-council/leeds,Leeds City Council As Accountable Body,30/04/2020,Social Services Pooled Budgets,Leeds Community Equip Store Pooled Budgt,Supplies and Services,Other Equipment,203,03/04/2020,2004-00325,0.00,255.00,R,Active Mobility Centre Ltd,No
Http://opendatacommunities.org/id/metropolitan-district-council/leeds,Leeds City Council,30/04/2020,Adults and Health,Services For Adults Under 65 Mental/Dis,Third Party Payments,Sheltered Accommodation,569,01/04/2020,2004-00326,0.00,22314.95,R,Active Pathways,No
Http://opendatacommunities.org/id/metropolitan-district-council/leeds,Leeds City Council As Accountable Body,30/04/2020,Social Services Pooled Budgets,Jcs For People With Learning Disabilitie,Third Party Payments,Sheltered Accommodation,569,01/04/2020,2004-00327,0.00,8005.52,R,Active Pathways,No
Http://opendatacommunities.org/id/metropolitan-district-council/leeds,Leeds City Council,30/04/2020,Adults and Health,Services For Adults Under 65 Mental/Dis,Third Party Payments,Sheltered Accommodation,569,29/04/2020,2004-00328,0.00,8691.48,R,Active Pathways,No
Http://opendatacommunities.org/id/metropolitan-district-council/leeds,Leeds City Council,30/04/2020,Adults and Health,Services For Adults Under 65 Mental/Dis,Third Party Payments,Residential,580,29/04/2020,2004-00329,0.00,12608.64,R,Active Pathways,No
Http://opendatacommunities.org/id/metropolitan-district-council/leeds,Leeds City Council,30/04/2020,Adults and Health,Services For Older People Under 65 P/Dis,Third Party Payments,Sheltered Accommodation,569,29/04/2020,2004-00330,0.00,8090.30,R,Active Pathways,No
Http://opendatacommunities.org/id/metropolitan-district-council/leeds,Leeds City Council As Accountable Body,30/04/2020,Social Services Pooled Budgets,Jcs For People With Learning Disabilitie,Third Party Payments,Sheltered Accommodation,569,29/04/2020,2004-00331,0.00,8005.52,R,Active Pathways,No
Http://opendatacommunities.org/id/metropolitan-district-council/leeds,Leeds City Council,30/04/2020,Communities and Environment,Cleaner Neighbourhood Teams,Premises,Removal Of Workplace Waste,126,01/04/2020,2004-00332,0.00,116.60,R,Acumen Waste Services Ltd,No
Http://opendatacommunities.org/id/metropolitan-district-council/leeds,Leeds City Council,30/04/2020,Communities and Environment,Cleaner Neighbourhood Teams,Premises,Removal Of Workplace Waste,126,01/04/2020,2004-00333,0.00,116.60,R,Acumen Waste Services Ltd,No
Http://opendatacommunities.org/id/metropolitan-district-council/leeds,Leeds City Council,30/04/2020,Communities and Environment,Cleaner Neighbourhood Teams,Premises,Removal Of Workplace Waste,126,01/04/2020,2004-00334,0.00,116.60,R,Acumen Waste Services Ltd,No
Http://opendatacommunities.org/id/metropolitan-district-council/leeds,Leeds City Council,30/04/2020,Communities and Environment,Cleaner Neighbourhood Teams,Premises,Removal Of Workplace Waste,126,01/04/2020,2004-00335,0.00,116.60,R,Acumen Waste Services Ltd,No
Http://opendatacommunities.org/id/metropolitan-district-council/leeds,Leeds City Council,30/04/2020,Communities and Environment,Cleaner Neighbourhood Teams,Premises,Removal Of Workplace Waste,126,03/04/2020,2004-00336,0.00,116.60,R,Acumen Waste Services Ltd,No
Http://opendatacommunities.org/id/metropolitan-district-council/leeds,Leeds City Council,30/04/2020,Communities and Environment,Cleaner Neighbourhood Teams,Premises,Removal Of Workplace Waste,126,03/04/2020,2004-00337,0.00,116.60,R,Acumen Waste Services Ltd,No
Http://opendatacommunities.org/id/metropolitan-district-council/leeds,Leeds City Council,30/04/2020,Communities and Environment,Cleaner Neighbourhood Teams,Premises,Removal Of Workplace Waste,126,03/04/2020,2004-00338,0.00,116.60,R,Acumen Waste Services Ltd,No
Http://opendatacommunities.org/id/metropolitan-district-council/leeds,Leeds City Council,30/04/2020,Communities and Environment,Cleaner Neighbourhood Teams,Premises,Removal Of Workplace Waste,126,07/04/2020,2004-00339,0.00,116.60,R,Acumen Waste Services Ltd,No
Http://opendatacommunities.org/id/metropolitan-district-council/leeds,Leeds City Council,30/04/2020,Communities and Environment,Cleaner Neighbourhood Teams,Premises,Removal Of Workplace Waste,126,07/04/2020,2004-00340,0.00,116.60,R,Acumen Waste Services Ltd,No
Http://opendatacommunities.org/id/metropolitan-district-council/leeds,Leeds City Council,30/04/2020,Communities and Environment,Cleaner Neighbourhood Teams,Premises,Removal Of Workplace Waste,126,08/04/2020,2004-00341,0.00,116.60,R,Acumen Waste Services Ltd,No
Http://opendatacommunities.org/id/metropolitan-district-council/leeds,Leeds City Council,30/04/2020,Communities and Environment,Cleaner Neighbourhood Teams,Premises,Removal Of Workplace Waste,126,08/04/2020,2004-00342,0.00,116.60,R,Acumen Waste Services Ltd,No
Http://opendatacommunities.org/id/metropolitan-district-council/leeds,Leeds City Council,30/04/2020,Communities and Environment,Waste Management,Supplies and Services,Recycling & Reuse Charges,234,09/04/2020,2004-00343,0.00,7763.91,R,Acumen Waste Services Ltd,No
Http://opendatacommunities.org/id/metropolitan-district-council/leeds,Leeds City Council,30/04/2020,Communities and Environment,Cleaner Neighbourhood Teams,Premises,Removal Of Workplace Waste,126,09/04/2020,2004-00344,0.00,116.60,R,Acumen Waste Services Ltd,No
Http://opendatacommunities.org/id/metropolitan-district-council/leeds,Leeds City Council,30/04/2020,Communities and Environment,Cleaner Neighbourhood Teams,Premises,Removal Of Workplace Waste,126,14/04/2020,2004-00345,0.00,116.60,R,Acumen Waste Services Ltd,No
Http://opendatacommunities.org/id/metropolitan-district-council/leeds,Leeds City Council,30/04/2020,Communities and Environment,Cleaner Neighbourhood Teams,Premises,Removal Of Workplace Waste,126,14/04/2020,2004-00346,0.00,116.60,R,Acumen Waste Services Ltd,No
Http://opendatacommunities.org/id/metropolitan-district-council/leeds,Leeds City Council,30/04/2020,Communities and Environment,Cleaner Neighbourhood Teams,Premises,Removal Of Workplace Waste,126,14/04/2020,2004-00347,0.00,116.60,R,Acumen Waste Services Ltd,No
Http://opendatacommunities.org/id/metropolitan-district-council/leeds,Leeds City Council,30/04/2020,Communities and Environment,Cleaner Neighbourhood Teams,Premises,Removal Of Workplace Waste,126,14/04/2020,2004-00348,0.00,116.60,R,Acumen Waste Services Ltd,No
Http://opendatacommunities.org/id/metropolitan-district-council/leeds,Leeds City Council,30/04/2020,Communities and Environment,Cleaner Neighbourhood Teams,Premises,Removal Of Workplace Waste,126,15/04/2020,2004-00349,0.00,116.60,R,Acumen Waste Services Ltd,No
Http://opendatacommunities.org/id/metropolitan-district-council/leeds,Leeds City Council,30/04/2020,Communities and Environment,Waste Management,Supplies and Services,Recycling & Reuse Charges,234,15/04/2020,2004-00350,0.00,3881.24,R,Acumen Waste Services Ltd,No
Http://opendatacommunities.org/id/metropolitan-district-council/leeds,Leeds City Council,30/04/2020,Communities and Environment,Waste Management,Supplies and Services,Recycling & Reuse Charges,234,16/04/2020,2004-00351,0.00,4754.08,R,Acumen Waste Services Ltd,No
Http://opendatacommunities.org/id/metropolitan-district-council/leeds,Leeds City Council,30/04/2020,Communities and Environment,Waste Management,Supplies and Services,Recycling & Reuse Charges,234,17/04/2020,2004-00352,0.00,3925.28,R,Acumen Waste Services Ltd,No
Http://opendatacommunities.org/id/metropolitan-district-council/leeds,Leeds City Council,30/04/2020,Communities and Environment,Waste Management,Supplies and Services,Recycling & Reuse Charges,234,17/04/2020,2004-00353,0.00,5920.23,R,Acumen Waste Services Ltd,No
Http://opendatacommunities.org/id/metropolitan-district-council/leeds,Leeds City Council,30/04/2020,Communities and Environment,Waste Management,Supplies and Services,Recycling & Reuse Charges,234,24/04/2020,2004-00354,0.00,1014.88,R,Acumen Waste Services Ltd,No
Http://opendatacommunities.org/id/metropolitan-district-council/leeds,Leeds City Council,30/04/2020,Communities and Environment,Waste Management,Supplies and Services,Recycling & Reuse Charges,234,28/04/2020,2004-00355,0.00,1016.30,R,Acumen Waste Services Ltd,No
Http://opendatacommunities.org/id/metropolitan-district-council/leeds,Leeds City Council,30/04/2020,Resources and Housing,Shared Services,Supplies and Services,Operational Materials,205,01/04/2020,2004-00356,0.00,1131.75,R,Ad3 Envelope Printers Limited,No
Http://opendatacommunities.org/id/metropolitan-district-council/leeds,Leeds City Council,30/04/2020,Resources and Housing,Shared Services,Supplies and Services,Other Hired And Contracted Services,265,07/04/2020,2004-00357,0.00,363.50,R,Ad3 Envelope Printers Limited,No
Http://opendatacommunities.org/id/metropolitan-district-council/leeds,Leeds City Council,30/04/2020,Resources and Housing,Shared Services,Supplies and Services,Other Hired And Contracted Services,265,07/04/2020,2004-00358,0.00,70.40,R,Ad3 Envelope Printers Limited,No
Http://opendatacommunities.org/id/metropolitan-district-council/leeds,Leeds City Council,30/04/2020,Resources and Housing,Shared Services,Supplies and Services,Other Hired And Contracted Services,265,30/04/2020,2004-00359,0.00,245.63,R,Ad3 Envelope Printers Limited,No
Http://opendatacommunities.org/id/metropolitan-district-council/leeds,Leeds City Council,30/04/2020,City Development,Libraries  Arts & Heritage,Supplies and Services,Bought In Professional Services,277,01/04/2020,2004-00360,0.00,250.00,R,Adam Clarke,No
Http://opendatacommunities.org/id/metropolitan-district-council/leeds,Leeds City Council,30/04/2020,Adults and Health,Social Services Support Services,Employees,Training & Development,70,24/04/2020,2004-00361,0.00,13.00,R,REDACTED PERSONAL DATA,No
Http://opendatacommunities.org/id/metropolitan-district-council/leeds,Leeds City Council,30/04/2020,Adults and Health,Services For Older People - 65 And Over,Third Party Payments,Nursing Home,570,01/04/2020,2004-00362,0.00,2480.00,R,Adbolton Hall,No
Http://opendatacommunities.org/id/metropolitan-district-council/leeds,Leeds City Council,30/04/2020,Adults and Health,Services For Older People - 65 And Over,Third Party Payments,Nursing Home,570,29/04/2020,2004-00363,0.00,2662.00,R,Adbolton Hall,No
Http://opendatacommunities.org/id/metropolitan-district-council/leeds,Leeds City Council,30/04/2020,City Development,Libraries  Arts & Heritage,Supplies and Services,Other Hired And Contracted Services,265,03/04/2020,2004-00364,0.00,1200.00,R,Addictive Audio,No
Http://opendatacommunities.org/id/metropolitan-district-council/leeds,Leeds City Council,30/04/2020,City Development,Libraries  Arts & Heritage,Supplies and Services,Other Hired And Contracted Services,265,15/04/2020,2004-00365,0.00,1200.00,R,Addictive Audio,No
Http://opendatacommunities.org/id/metropolitan-district-council/leeds,Leeds City Council,30/04/2020,Resources and Housing,Commercial Services,Transport,Road Fund Licences,323,17/04/2020,2004-00366,0.00,55.00,R,Addison Motors Limited,No
Http://opendatacommunities.org/id/metropolitan-district-council/leeds,Leeds City Council,30/04/2020,Resources and Housing,PPPU and Procurement,Supplies and Services,Other Hired And Contracted Services,265,16/04/2020,2004-00367,0.00,3430.70,R,Addleshaw Goddard Llp,No
Http://opendatacommunities.org/id/metropolitan-district-council/leeds,Leeds City Council,30/04/2020,Resources and Housing,Sustainable Energy & Climate Change,Capital,Other Costs,7,16/04/2020,2004-00368,0.00,9714.50,C,REDACTED COMMERCIAL CONFIDENTIALITY,No
Http://opendatacommunities.org/id/metropolitan-district-council/leeds,Leeds City Council,30/04/2020,City Development,Asset Management Services,Support Services,Legal Disbursements,411,21/04/2020,2004-00369,0.00,2000.00,R,Addleshaw Goddard Llp,No
Http://opendatacommunities.org/id/metropolitan-district-council/leeds,Leeds City Council,30/04/2020,Resources and Housing,PPPU and Procurement,Supplies and Services,Other Hired And Contracted Services,265,23/04/2020,2004-00370,0.00,1000.00,R,Addleshaw Goddard Llp,No
Http://opendatacommunities.org/id/metropolitan-district-council/leeds,Leeds City Council,30/04/2020,Adults and Health,Public Health,Third Party Payments,Public Health Commissioned Services,526,16/04/2020,2004-00371,0.00,232.00,R,Addlestone & Partners,No
Http://opendatacommunities.org/id/metropolitan-district-council/leeds,Leeds City Council,30/04/2020,Communities and Environment,Parks and Countryside,Supplies and Services,Other Hired And Contracted Services,265,17/04/2020,2004-00372,0.00,9296.00,R,Addlestone & Partners,No
Http://opendatacommunities.org/id/metropolitan-district-council/leeds,Leeds City Council,30/04/2020,Resources and Housing,Technology  ,Employees,Agency Staff,8,02/03/2020,2004-00373,0.00,29684.10,R,Adecco Alfred Marks,Yes
Http://opendatacommunities.org/id/metropolitan-district-council/leeds,Leeds City Council,30/04/2020,Resources and Housing,Technology  ,Employees,Agency Staff,8,06/03/2020,2004-00374,0.00,702.65,R,Adecco Alfred Marks,Yes
Http://opendatacommunities.org/id/metropolitan-district-council/leeds,Leeds City Council,30/04/2020,Resources and Housing,Technology  ,Employees,Agency Staff,8,13/03/2020,2004-00375,0.00,32973.20,R,Adecco Alfred Marks,Yes
Http://opendatacommunities.org/id/metropolitan-district-council/leeds,Leeds City Council,30/04/2020,Resources and Housing,Technology  ,Employees,Agency Staff,8,17/03/2020,2004-00376,0.00,45515.55,R,Adecco Alfred Marks,Yes
Http://opendatacommunities.org/id/metropolitan-district-council/leeds,Leeds City Council,30/04/2020,Resources and Housing,Technology  ,Employees,Agency Staff,8,23/03/2020,2004-00377,0.00,5922.05,R,Adecco Alfred Marks,Yes
Http://opendatacommunities.org/id/metropolitan-district-council/leeds,Leeds City Council,30/04/2020,Resources and Housing,Technology  ,Employees,Agency Staff,8,30/03/2020,2004-00378,0.00,14224.45,R,Adecco Alfred Marks,Yes
Http://opendatacommunities.org/id/metropolitan-district-council/leeds,Leeds City Council,30/04/2020,Children and Families,Social Care,Third Party Payments,Services Rendered By Voluntary Sector,505,01/04/2020,2004-00379,0.00,721.14,R,Adel Pre School,No
Http://opendatacommunities.org/id/metropolitan-district-council/leeds,Leeds City Council,30/04/2020,Children and Families,Social Care,Third Party Payments,Services Rendered By Voluntary Sector,505,03/04/2020,2004-00380,0.00,6710.16,R,Adel Pre School,No
Http://opendatacommunities.org/id/metropolitan-district-council/leeds,Leeds City Council,30/04/2020,Children and Families,Social Care,Third Party Payments,Services Rendered By Voluntary Sector,505,30/04/2020,2004-00381,0.00,3284.21,R,Adel Pre School,No
Http://opendatacommunities.org/id/metropolitan-district-council/leeds,Leeds City Council,30/04/2020,City Development,Recreation,Supplies and Services,Bought In Professional Services,277,01/04/2020,2004-00382,0.00,190.00,R,Adele Battersby,No
Http://opendatacommunities.org/id/metropolitan-district-council/leeds,Leeds City Council,30/04/2020,City Development,Recreation,Supplies and Services,Bought In Professional Services,277,01/04/2020,2004-00383,0.00,180.00,R,Adele Battersby,No
Http://opendatacommunities.org/id/metropolitan-district-council/leeds,Leeds City Council,30/04/2020,City Development,Recreation,Supplies and Services,Bought In Professional Services,277,17/04/2020,2004-00384,0.00,70.00,R,Adele Battersby,No
Http://opendatacommunities.org/id/metropolitan-district-council/leeds,Leeds City Council,30/04/2020,City Development,Recreation,Supplies and Services,Bought In Professional Services,277,23/04/2020,2004-00385,0.00,30.00,R,Adele Battersby,No
Http://opendatacommunities.org/id/metropolitan-district-council/leeds,Leeds City Council,30/04/2020,City Development,Recreation,Supplies and Services,Bought In Professional Services,277,23/04/2020,2004-00386,0.00,30.00,R,Adele Battersby,No
Http://opendatacommunities.org/id/metropolitan-district-council/leeds,Leeds City Council,30/04/2020,Children and Families,Social Care,Third Party Payments,Services Rendered By Other Organisations,511,01/04/2020,2004-00387,0.00,380.16,R,REDACTED PERSONAL DATA,No
Http://opendatacommunities.org/id/metropolitan-district-council/leeds,Leeds City Council,30/04/2020,Strategic Landlord,Housing Management,Employees,Training & Development,70,07/04/2020,2004-00388,0.00,200.00,R,Adele Rae,No
Http://opendatacommunities.org/id/metropolitan-district-council/leeds,Leeds City Council,30/04/2020,Children and Families,Social Care,Third Party Payments,Services Rendered By Other Organisations,511,03/04/2020,2004-00389,0.00,452.02,R,REDACTED PERSONAL DATA,No
Http://opendatacommunities.org/id/metropolitan-district-council/leeds,Leeds City Council,30/04/2020,Resources and Housing,Commercial Services,Supplies and Services,Food & Drink,231,01/04/2020,2004-00390,0.00,305.59,R,Adelie Foods Ltd,No
Http://opendatacommunities.org/id/metropolitan-district-council/leeds,Leeds City Council,30/04/2020,Resources and Housing,Commercial Services,Supplies and Services,Food & Drink,231,09/04/2020,2004-00391,0.00,276.70,R,Adelie Foods Ltd,No
Http://opendatacommunities.org/id/metropolitan-district-council/leeds,Leeds City Council,30/04/2020,Resources and Housing,Commercial Services,Supplies and Services,Food & Drink,231,14/04/2020,2004-00392,0.00,301.81,R,Adelie Foods Ltd,No
Http://opendatacommunities.org/id/metropolitan-district-council/leeds,Leeds City Council,30/04/2020,Resources and Housing,Commercial Services,Supplies and Services,Food & Drink,231,15/04/2020,2004-00393,0.00,238.83,R,Adelie Foods Ltd,No
Http://opendatacommunities.org/id/metropolitan-district-council/leeds,Leeds City Council,30/04/2020,Resources and Housing,Commercial Services,Supplies and Services,Food & Drink,231,24/04/2020,2004-00394,0.00,131.88,R,Adelie Foods Ltd,No
Http://opendatacommunities.org/id/metropolitan-district-council/leeds,Leeds City Council,30/04/2020,Resources and Housing,Commercial Services,Supplies and Services,Food & Drink,231,24/04/2020,2004-00395,0.00,-3.26,R,Adelie Foods Ltd,No
Http://opendatacommunities.org/id/metropolitan-district-council/leeds,Leeds City Council,30/04/2020,Resources and Housing,Commercial Services,Supplies and Services,Food & Drink,231,24/04/2020,2004-00396,0.00,-11.60,R,Adelie Foods Ltd,No
Http://opendatacommunities.org/id/metropolitan-district-council/leeds,Leeds City Council,30/04/2020,Resources and Housing,Commercial Services,Supplies and Services,Food & Drink,231,24/04/2020,2004-00397,0.00,-7.62,R,Adelie Foods Ltd,No
Http://opendatacommunities.org/id/metropolitan-district-council/leeds,Leeds City Council,30/04/2020,Resources and Housing,Commercial Services,Supplies and Services,Food & Drink,231,24/04/2020,2004-00398,0.00,-3.83,R,Adelie Foods Ltd,No
Http://opendatacommunities.org/id/metropolitan-district-council/leeds,Leeds City Council,30/04/2020,Resources and Housing,Commercial Services,Supplies and Services,Food & Drink,231,24/04/2020,2004-00399,0.00,102.45,R,Adelie Foods Ltd,No
Http://opendatacommunities.org/id/metropolitan-district-council/leeds,Leeds City Council,30/04/2020,Resources and Housing,Commercial Services,Supplies and Services,Food & Drink,231,28/04/2020,2004-00400,0.00,338.26,R,Adelie Foods Ltd,No
Http://opendatacommunities.org/id/metropolitan-district-council/leeds,Leeds City Council,30/04/2020,Resources and Housing,Commercial Services,Supplies and Services,Food & Drink,231,28/04/2020,2004-00401,0.00,421.59,R,Adelie Foods Ltd,No
Http://opendatacommunities.org/id/metropolitan-district-council/leeds,Leeds City Council,30/04/2020,Resources and Housing,Commercial Services,Supplies and Services,Food & Drink,231,28/04/2020,2004-00402,0.00,-35.00,R,Adelie Foods Ltd,No
Http://opendatacommunities.org/id/metropolitan-district-council/leeds,Leeds City Council,30/04/2020,City Development,Libraries  Arts & Heritage  ,Supplies and Services,Computer Software & Equipment,214,02/03/2020,2004-00403,0.00,9.98,R,Adobe Photogphy Plan,Yes
Http://opendatacommunities.org/id/metropolitan-district-council/leeds,Leeds City Council,30/04/2020,Children and Families,Social Care,Third Party Payments,Independent Fostering Agencies,509,03/04/2020,2004-00404,0.00,3159.26,R,Adolescent And Childrens Trust,No
Http://opendatacommunities.org/id/metropolitan-district-council/leeds,Leeds City Council,30/04/2020,Children and Families,Social Care,Third Party Payments,Independent Fostering Agencies,509,03/04/2020,2004-00405,0.00,2755.00,R,Adolescent And Childrens Trust,No
Http://opendatacommunities.org/id/metropolitan-district-council/leeds,Leeds City Council,30/04/2020,Children and Families,Social Care,Third Party Payments,Independent Fostering Agencies,509,03/04/2020,2004-00406,0.00,3345.44,R,Adolescent And Childrens Trust,No
Http://opendatacommunities.org/id/metropolitan-district-council/leeds,Leeds City Council,30/04/2020,Children and Families,Social Care,Third Party Payments,Independent Fostering Agencies,509,03/04/2020,2004-00407,0.00,3096.07,R,Adolescent And Childrens Trust,No
Http://opendatacommunities.org/id/metropolitan-district-council/leeds,Leeds City Council,30/04/2020,Children and Families,Social Care,Third Party Payments,Independent Fostering Agencies,509,03/04/2020,2004-00408,0.00,3096.07,R,Adolescent And Childrens Trust,No
Http://opendatacommunities.org/id/metropolitan-district-council/leeds,Leeds City Council,30/04/2020,Children and Families,Social Care,Third Party Payments,Independent Fostering Agencies,509,03/04/2020,2004-00409,0.00,3345.44,R,Adolescent And Childrens Trust,No
Http://opendatacommunities.org/id/metropolitan-district-council/leeds,Leeds City Council,30/04/2020,Children and Families,Social Care,Third Party Payments,Independent Fostering Agencies,509,03/04/2020,2004-00410,0.00,3345.44,R,Adolescent And Childrens Trust,No
Http://opendatacommunities.org/id/metropolitan-district-council/leeds,Leeds City Council,30/04/2020,Children and Families,Social Care,Third Party Payments,Independent Fostering Agencies,509,03/04/2020,2004-00411,0.00,3096.07,R,Adolescent And Childrens Trust,No
Http://opendatacommunities.org/id/metropolitan-district-council/leeds,Leeds City Council,30/04/2020,Children and Families,Social Care,Third Party Payments,Independent Fostering Agencies,509,03/04/2020,2004-00412,0.00,3096.07,R,Adolescent And Childrens Trust,No
Http://opendatacommunities.org/id/metropolitan-district-council/leeds,Leeds City Council,30/04/2020,Children and Families,Social Care,Third Party Payments,Independent Fostering Agencies,509,03/04/2020,2004-00413,0.00,3096.07,R,Adolescent And Childrens Trust,No
Http://opendatacommunities.org/id/metropolitan-district-council/leeds,Leeds City Council,30/04/2020,Children and Families,Social Care,Third Party Payments,Independent Fostering Agencies,509,03/04/2020,2004-00414,0.00,3096.07,R,Adolescent And Childrens Trust,No
Http://opendatacommunities.org/id/metropolitan-district-council/leeds,Leeds City Council,30/04/2020,Children and Families,Social Care,Third Party Payments,Independent Fostering Agencies,509,17/04/2020,2004-00415,0.00,570.00,R,Adolescent And Childrens Trust,No
Http://opendatacommunities.org/id/metropolitan-district-council/leeds,Leeds City Council,30/04/2020,Children and Families,Social Care,Third Party Payments,Independent Fostering Agencies,509,17/04/2020,2004-00416,0.00,3309.60,R,Adolescent And Childrens Trust,No
Http://opendatacommunities.org/id/metropolitan-district-council/leeds,Leeds City Council,30/04/2020,Children and Families,Social Care,Third Party Payments,Independent Fostering Agencies,509,17/04/2020,2004-00417,0.00,4185.00,R,Adolescent And Childrens Trust,No
Http://opendatacommunities.org/id/metropolitan-district-council/leeds,Leeds City Council,30/04/2020,Children and Families,Social Care,Third Party Payments,Independent Fostering Agencies,509,20/04/2020,2004-00418,0.00,3309.60,R,Adolescent And Childrens Trust,No
Http://opendatacommunities.org/id/metropolitan-district-council/leeds,Leeds City Council,30/04/2020,Children and Families,Social Care,Third Party Payments,Independent Fostering Agencies,509,20/04/2020,2004-00419,0.00,3309.60,R,Adolescent And Childrens Trust,No
Http://opendatacommunities.org/id/metropolitan-district-council/leeds,Leeds City Council,30/04/2020,Children and Families,Social Care,Third Party Payments,Independent Fostering Agencies,509,20/04/2020,2004-00420,0.00,3309.60,R,Adolescent And Childrens Trust,No
Http://opendatacommunities.org/id/metropolitan-district-council/leeds,Leeds City Council,30/04/2020,Children and Families,Social Care,Third Party Payments,Independent Fostering Agencies,509,20/04/2020,2004-00421,0.00,3345.44,R,Adolescent And Childrens Trust,No
Http://opendatacommunities.org/id/metropolitan-district-council/leeds,Leeds City Council,30/04/2020,Children and Families,Social Care,Third Party Payments,Independent Fostering Agencies,509,20/04/2020,2004-00422,0.00,3377.14,R,Adolescent And Childrens Trust,No
Http://opendatacommunities.org/id/metropolitan-district-council/leeds,Leeds City Council,30/04/2020,Children and Families,Social Care,Third Party Payments,Independent Fostering Agencies,509,20/04/2020,2004-00423,0.00,3309.60,R,Adolescent And Childrens Trust,No
Http://opendatacommunities.org/id/metropolitan-district-council/leeds,Leeds City Council,30/04/2020,Children and Families,Social Care,Third Party Payments,Independent Fostering Agencies,509,20/04/2020,2004-00424,0.00,3309.60,R,Adolescent And Childrens Trust,No
Http://opendatacommunities.org/id/metropolitan-district-council/leeds,Leeds City Council,30/04/2020,Children and Families,Social Care,Third Party Payments,Independent Fostering Agencies,509,20/04/2020,2004-00425,0.00,3576.16,R,Adolescent And Childrens Trust,No
Http://opendatacommunities.org/id/metropolitan-district-council/leeds,Leeds City Council,30/04/2020,Children and Families,Social Care,Third Party Payments,Independent Fostering Agencies,509,20/04/2020,2004-00426,0.00,3576.16,R,Adolescent And Childrens Trust,No
Http://opendatacommunities.org/id/metropolitan-district-council/leeds,Leeds City Council,30/04/2020,Children and Families,Social Care,Third Party Payments,Independent Fostering Agencies,509,20/04/2020,2004-00427,0.00,3309.60,R,Adolescent And Childrens Trust,No
Http://opendatacommunities.org/id/metropolitan-district-council/leeds,Leeds City Council As Accountable Body,30/04/2020,Social Services Pooled Budgets,Jcs For People With Learning Disabilitie,Third Party Payments,Residential,580,03/04/2020,2004-00428,0.00,2609.36,R,Adrian House,No
Http://opendatacommunities.org/id/metropolitan-district-council/leeds,Leeds City Council,30/04/2020,City Development,Libraries  Arts & Heritage,Income,Admissions  Booking Fees & Ticket Sales,933,23/04/2020,2004-00429,0.00,119.00,R,REDACTED PERSONAL DATA,No
Http://opendatacommunities.org/id/metropolitan-district-council/leeds,Leeds City Council As Accountable Body,30/04/2020,Social Services Pooled Budgets,Jcs For People With Learning Disabilitie,Third Party Payments,Residential,580,17/04/2020,2004-00430,0.00,1332.24,R,Adult Placement Services,No
Http://opendatacommunities.org/id/metropolitan-district-council/leeds,Leeds City Council,30/04/2020,City Development,Libraries  Arts & Heritage,Supplies and Services,External Audit Fees,261,14/04/2020,2004-00431,0.00,90.00,R,Advance Stocks Ltd,No
Http://opendatacommunities.org/id/metropolitan-district-council/leeds,Leeds City Council,30/04/2020,City Development,Recreation,Supplies and Services,External Audit Fees,261,14/04/2020,2004-00432,0.00,135.00,R,Advance Stocks Ltd,No
Http://opendatacommunities.org/id/metropolitan-district-council/leeds,Leeds City Council,30/04/2020,City Development,Recreation,Supplies and Services,External Audit Fees,261,14/04/2020,2004-00433,0.00,90.00,R,Advance Stocks Ltd,No
Http://opendatacommunities.org/id/metropolitan-district-council/leeds,Leeds City Council,30/04/2020,City Development,Libraries  Arts & Heritage,Supplies and Services,Other Hired And Contracted Services,265,16/04/2020,2004-00434,0.00,90.00,R,Advance Stocks Ltd,No
Http://opendatacommunities.org/id/metropolitan-district-council/leeds,Leeds City Council,30/04/2020,Children and Families,Social Care,Support Services,Legal Disbursements,411,03/04/2020,2004-00435,0.00,633.62,R,Advanced Child Care Assessments Ltd,No
Http://opendatacommunities.org/id/metropolitan-district-council/leeds,Leeds City Council,30/04/2020,Resources and Housing,Leeds Building Services,Supplies and Services,Other Hired And Contracted Services,265,16/04/2020,2004-00436,0.00,3354.75,R,Advanced Diesel Engineering,No
Http://opendatacommunities.org/id/metropolitan-district-council/leeds,Leeds City Council,30/04/2020,Resources and Housing,Leeds Building Services,Supplies and Services,Operational Materials,205,17/04/2020,2004-00437,0.00,196.00,R,Advanced Labelling Limited,No
Http://opendatacommunities.org/id/metropolitan-district-council/leeds,Leeds City Council,30/04/2020,Resources and Housing,Strategic Housing Partnerships,Capital,Construction,3,15/04/2020,2004-00438,0.00,7470.00,C,Advent Css Limited,No
Http://opendatacommunities.org/id/metropolitan-district-council/leeds,Leeds City Council As Accountable Body,30/04/2020,Social Services Pooled Budgets,Jcs For People With Learning Disabilitie,Third Party Payments,Residential,580,01/04/2020,2004-00439,0.00,17213.56,R,Advitam Ltd,No
Http://opendatacommunities.org/id/metropolitan-district-council/leeds,Leeds City Council As Accountable Body,30/04/2020,Social Services Pooled Budgets,Jcs For People With Learning Disabilitie,Third Party Payments,Residential,580,29/04/2020,2004-00440,0.00,17075.66,R,Advitam Ltd,No
Http://opendatacommunities.org/id/metropolitan-district-council/leeds,Leeds City Council,30/04/2020,Adults and Health,Services For Older People - 65 And Over,Third Party Payments,Payments To Voluntary Organisations,561,01/04/2020,2004-00441,0.00,103916.67,R,Advonet,No
Http://opendatacommunities.org/id/metropolitan-district-council/leeds,Leeds City Council,30/04/2020,Children and Families,Social Care,Third Party Payments,Placement Support,550,03/04/2020,2004-00442,0.00,150.00,R,Advonet,No
Http://opendatacommunities.org/id/metropolitan-district-council/leeds,Leeds City Council,30/04/2020,Children and Families,Social Care,Third Party Payments,Placement Support,550,06/04/2020,2004-00443,0.00,382.50,R,Advonet,No
Http://opendatacommunities.org/id/metropolitan-district-council/leeds,Leeds City Council,30/04/2020,Adults and Health,Services For Adults Under 65 Learn/Dis,Third Party Payments,Payments To Voluntary Organisations,561,06/04/2020,2004-00444,0.00,17944.96,R,Advonet,No
Http://opendatacommunities.org/id/metropolitan-district-council/leeds,Leeds City Council,30/04/2020,Children and Families,Social Care,Third Party Payments,Placement Support,550,06/04/2020,2004-00445,0.00,675.00,R,Advonet,No
Http://opendatacommunities.org/id/metropolitan-district-council/leeds,Leeds City Council,30/04/2020,Adults and Health,Services For Older People - 65 And Over,Third Party Payments,Payments To Voluntary Organisations,561,09/04/2020,2004-00446,0.00,103916.67,R,Advonet,No
Http://opendatacommunities.org/id/metropolitan-district-council/leeds,Leeds City Council,30/04/2020,Children and Families,Social Care,Third Party Payments,Placement Support,550,14/04/2020,2004-00447,0.00,258.00,R,Advonet,No
Http://opendatacommunities.org/id/metropolitan-district-council/leeds,Leeds City Council,30/04/2020,Children and Families,Social Care,Third Party Payments,Placement Support,550,14/04/2020,2004-00448,0.00,152.40,R,Advonet,No
Http://opendatacommunities.org/id/metropolitan-district-council/leeds,Leeds City Council,30/04/2020,Children and Families,Social Care,Third Party Payments,Placement Support,550,14/04/2020,2004-00449,0.00,360.00,R,Advonet,No
Http://opendatacommunities.org/id/metropolitan-district-council/leeds,Leeds City Council,30/04/2020,Children and Families,Social Care,Third Party Payments,Placement Support,550,14/04/2020,2004-00450,0.00,135.00,R,Advonet,No
Http://opendatacommunities.org/id/metropolitan-district-council/leeds,Leeds City Council,30/04/2020,Children and Families,Social Care,Third Party Payments,Placement Support,550,14/04/2020,2004-00451,0.00,195.00,R,Advonet,No
Http://opendatacommunities.org/id/metropolitan-district-council/leeds,Leeds City Council,30/04/2020,Children and Families,Social Care,Third Party Payments,Placement Support,550,14/04/2020,2004-00452,0.00,135.00,R,Advonet,No
Http://opendatacommunities.org/id/metropolitan-district-council/leeds,Leeds City Council,30/04/2020,Children and Families,Social Care,Third Party Payments,Placement Support,550,14/04/2020,2004-00453,0.00,217.50,R,Advonet,No
Http://opendatacommunities.org/id/metropolitan-district-council/leeds,Leeds City Council,30/04/2020,Children and Families,Social Care,Third Party Payments,Placement Support,550,14/04/2020,2004-00454,0.00,54.90,R,Advonet,No
Http://opendatacommunities.org/id/metropolitan-district-council/leeds,Leeds City Council,30/04/2020,Children and Families,Social Care,Third Party Payments,Placement Support,550,14/04/2020,2004-00455,0.00,30.00,R,Advonet,No
Http://opendatacommunities.org/id/metropolitan-district-council/leeds,Leeds City Council As Accountable Body,30/04/2020,Social Services Pooled Budgets,Jcs For People With Learning Disabilitie,Third Party Payments,Other Agency Services,561,14/04/2020,2004-00456,0.00,82.50,R,Advonet,No
Http://opendatacommunities.org/id/metropolitan-district-council/leeds,Leeds City Council,30/04/2020,Children and Families,Social Care,Third Party Payments,Placement Support,550,16/04/2020,2004-00457,0.00,120.00,R,Advonet,No
Http://opendatacommunities.org/id/metropolitan-district-council/leeds,Leeds City Council,30/04/2020,Children and Families,Social Care,Third Party Payments,Placement Support,550,17/04/2020,2004-00458,0.00,982.50,R,Advonet,No
Http://opendatacommunities.org/id/metropolitan-district-council/leeds,Leeds City Council,30/04/2020,Strategic Accounts,Miscellaneous,Supplies and Services,Non-Recurring Grants,227,27/04/2020,2004-00459,0.00,200.00,R,Adwalton Cricket Club,No
Http://opendatacommunities.org/id/metropolitan-district-council/leeds,Leeds City Council,30/04/2020,Adults and Health,Services For Adults Under 65 Mental/Dis,Third Party Payments,Home Care,568,01/04/2020,2004-00460,0.00,427.20,R,Aegis Care Solutions Ltd,No
Http://opendatacommunities.org/id/metropolitan-district-council/leeds,Leeds City Council,30/04/2020,Adults and Health,Services For Adults Under 65 Mental/Dis,Third Party Payments,Home Care,568,01/04/2020,2004-00461,0.00,1137.20,R,Aegis Care Solutions Ltd,No
Http://opendatacommunities.org/id/metropolitan-district-council/leeds,Leeds City Council,30/04/2020,Adults and Health,Services For Adults Under 65 Mental/Dis,Third Party Payments,Home Care,568,02/04/2020,2004-00462,0.00,504.00,R,Aegis Care Solutions Ltd,No
Http://opendatacommunities.org/id/metropolitan-district-council/leeds,Leeds City Council,30/04/2020,Adults and Health,Services For Adults Under 65 Mental/Dis,Third Party Payments,Home Care,568,02/04/2020,2004-00463,0.00,378.40,R,Aegis Care Solutions Ltd,No
Http://opendatacommunities.org/id/metropolitan-district-council/leeds,Leeds City Council,30/04/2020,Adults and Health,Services For Adults Under 65 Mental/Dis,Third Party Payments,Home Care,568,02/04/2020,2004-00464,0.00,877.00,R,Aegis Care Solutions Ltd,No
Http://opendatacommunities.org/id/metropolitan-district-council/leeds,Leeds City Council,30/04/2020,Adults and Health,Services For Adults Under 65 Mental/Dis,Third Party Payments,Home Care,568,02/04/2020,2004-00465,0.00,799.20,R,Aegis Care Solutions Ltd,No
Http://opendatacommunities.org/id/metropolitan-district-council/leeds,Leeds City Council,30/04/2020,Adults and Health,Services For Adults Under 65 Mental/Dis,Third Party Payments,Home Care,568,02/04/2020,2004-00466,0.00,427.20,R,Aegis Care Solutions Ltd,No
Http://opendatacommunities.org/id/metropolitan-district-council/leeds,Leeds City Council,30/04/2020,Adults and Health,Services For Adults Under 65 Mental/Dis,Third Party Payments,Home Care,568,02/04/2020,2004-00467,0.00,3969.60,R,Aegis Care Solutions Ltd,No
Http://opendatacommunities.org/id/metropolitan-district-council/leeds,Leeds City Council,30/04/2020,Adults and Health,Services For Older People - 65 And Over,Third Party Payments,Home Care,568,08/04/2020,2004-00468,0.00,1720.50,R,Aegis Care Solutions Ltd,No
Http://opendatacommunities.org/id/metropolitan-district-council/leeds,Leeds City Council,30/04/2020,Adults and Health,Services For Older People Under 65 P/Dis,Third Party Payments,Home Care,568,08/04/2020,2004-00469,0.00,470.40,R,Aegis Care Solutions Ltd,No
Http://opendatacommunities.org/id/metropolitan-district-council/leeds,Leeds City Council As Accountable Body,30/04/2020,Social Services Pooled Budgets,Jcs For People With Learning Disabilitie,Third Party Payments,Home Care,568,08/04/2020,2004-00470,0.00,1881.60,R,Aegis Care Solutions Ltd,No
Http://opendatacommunities.org/id/metropolitan-district-council/leeds,Leeds City Council,30/04/2020,Adults and Health,Services For Adults Under 65 Mental/Dis,Third Party Payments,Home Care,568,16/04/2020,2004-00471,0.00,1219.90,R,Aegis Care Solutions Ltd,No
Http://opendatacommunities.org/id/metropolitan-district-council/leeds,Leeds City Council,30/04/2020,Adults and Health,Services For Adults Under 65 Mental/Dis,Third Party Payments,Home Care,568,20/04/2020,2004-00472,0.00,1257.90,R,Aegis Care Solutions Ltd,No
Http://opendatacommunities.org/id/metropolitan-district-council/leeds,Leeds City Council,30/04/2020,Adults and Health,Services For Adults Under 65 Mental/Dis,Third Party Payments,Home Care,568,20/04/2020,2004-00473,0.00,939.80,R,Aegis Care Solutions Ltd,No
Http://opendatacommunities.org/id/metropolitan-district-council/leeds,Leeds City Council,30/04/2020,Adults and Health,Services For Adults Under 65 Mental/Dis,Third Party Payments,Home Care,568,20/04/2020,2004-00474,0.00,356.00,R,Aegis Care Solutions Ltd,No
Http://opendatacommunities.org/id/metropolitan-district-council/leeds,Leeds City Council,30/04/2020,Adults and Health,Services For Adults Under 65 Mental/Dis,Third Party Payments,Home Care,568,20/04/2020,2004-00475,0.00,1077.40,R,Aegis Care Solutions Ltd,No
Http://opendatacommunities.org/id/metropolitan-district-council/leeds,Leeds City Council,30/04/2020,Adults and Health,Services For Adults Under 65 Mental/Dis,Third Party Payments,Home Care,568,20/04/2020,2004-00476,0.00,201.60,R,Aegis Care Solutions Ltd,No
Http://opendatacommunities.org/id/metropolitan-district-council/leeds,Leeds City Council,30/04/2020,Adults and Health,Services For Older People - 65 And Over,Third Party Payments,Home Care,568,22/04/2020,2004-00477,0.00,2648.00,R,Aegis Care Solutions Ltd,No
Http://opendatacommunities.org/id/metropolitan-district-council/leeds,Leeds City Council,30/04/2020,Adults and Health,Services For Older People Under 65 P/Dis,Third Party Payments,Home Care,568,22/04/2020,2004-00478,0.00,3953.60,R,Aegis Care Solutions Ltd,No
Http://opendatacommunities.org/id/metropolitan-district-council/leeds,Leeds City Council As Accountable Body,30/04/2020,Social Services Pooled Budgets,Jcs For People With Learning Disabilitie,Third Party Payments,Home Care,568,22/04/2020,2004-00479,0.00,1881.60,R,Aegis Care Solutions Ltd,No
Http://opendatacommunities.org/id/metropolitan-district-council/leeds,Leeds City Council As Accountable Body,30/04/2020,Social Services Pooled Budgets,Jcs For People With Learning Disabilitie,Third Party Payments,Home Care,568,02/04/2020,2004-00480,0.00,575.28,R,Affinity Trust,No
Http://opendatacommunities.org/id/metropolitan-district-council/leeds,Leeds City Council,30/04/2020,Adults and Health,Services For Older People - 65 And Over,Third Party Payments,HCAIT Community Support,575,09/04/2020,2004-00481,0.00,575.28,R,Affinity Trust,No
Http://opendatacommunities.org/id/metropolitan-district-council/leeds,Leeds City Council,30/04/2020,Adults and Health,Services For Older People Under 65 P/Dis,Third Party Payments,Sheltered Accommodation,569,01/04/2020,2004-00482,0.00,7610.40,R,Affinity Trust North Divisional Office,No
Http://opendatacommunities.org/id/metropolitan-district-council/leeds,Leeds City Council As Accountable Body,30/04/2020,Social Services Pooled Budgets,Jcs For People With Learning Disabilitie,Third Party Payments,Sheltered Accommodation,569,01/04/2020,2004-00483,0.00,119573.36,R,Affinity Trust North Divisional Office,No
Http://opendatacommunities.org/id/metropolitan-district-council/leeds,Leeds City Council,30/04/2020,Adults and Health,Services For Older People Under 65 P/Dis,Third Party Payments,Sheltered Accommodation,569,29/04/2020,2004-00484,0.00,7610.40,R,Affinity Trust North Divisional Office,No
Http://opendatacommunities.org/id/metropolitan-district-council/leeds,Leeds City Council As Accountable Body,30/04/2020,Social Services Pooled Budgets,Jcs For People With Learning Disabilitie,Third Party Payments,Sheltered Accommodation,569,29/04/2020,2004-00485,0.00,109265.53,R,Affinity Trust North Divisional Office,No
Http://opendatacommunities.org/id/metropolitan-district-council/leeds,Leeds City Council,30/04/2020,Children and Families,Social Care,Third Party Payments,Services Rendered By Voluntary Sector,505,01/04/2020,2004-00486,0.00,45.96,R,Affinity Workforce Solutions Ltd,No
Http://opendatacommunities.org/id/metropolitan-district-council/leeds,Leeds City Council,30/04/2020,Children and Families,Social Care,Third Party Payments,Services Rendered By Voluntary Sector,505,01/04/2020,2004-00487,0.00,45.96,R,Affinity Workforce Solutions Ltd,No
Http://opendatacommunities.org/id/metropolitan-district-council/leeds,Leeds City Council,30/04/2020,Children and Families,Social Care,Third Party Payments,Services Rendered By Voluntary Sector,505,09/04/2020,2004-00488,0.00,45.96,R,Affinity Workforce Solutions Ltd,No
Http://opendatacommunities.org/id/metropolitan-district-council/leeds,Leeds City Council,30/04/2020,Communities and Environment,Parks And Countryside  ,Transport,Hire Of Movable Plant & Machinery,315,30/03/2020,2004-00489,0.00,100.00,R,Afi Uplift,Yes
Http://opendatacommunities.org/id/metropolitan-district-council/leeds,Leeds City Council,30/04/2020,Communities and Environment,Parks And Countryside  ,Transport,Hire Of Movable Plant & Machinery,315,30/03/2020,2004-00490,0.00,950.00,R,Afi Uplift,Yes
Http://opendatacommunities.org/id/metropolitan-district-council/leeds,Leeds City Council,30/04/2020,Communities and Environment,Parks And Countryside  ,Transport,Hire Of Movable Plant & Machinery,315,30/03/2020,2004-00491,0.00,950.00,R,Afi Uplift,Yes
Http://opendatacommunities.org/id/metropolitan-district-council/leeds,Leeds City Council,30/04/2020,Communities and Environment,Parks And Countryside  ,Transport,Hire Of Movable Plant & Machinery,315,30/03/2020,2004-00492,0.00,950.00,R,Afi Uplift,Yes
Http://opendatacommunities.org/id/metropolitan-district-council/leeds,Leeds City Council,30/04/2020,Communities and Environment,Parks And Countryside  ,Transport,Hire Of Movable Plant & Machinery,315,30/03/2020,2004-00493,0.00,950.00,R,Afi Uplift,Yes
Http://opendatacommunities.org/id/metropolitan-district-council/leeds,Leeds City Council,30/04/2020,Communities and Environment,Parks And Countryside  ,Transport,Hire Of Movable Plant & Machinery,315,30/03/2020,2004-00494,0.00,100.00,R,Afi Uplift,Yes
Http://opendatacommunities.org/id/metropolitan-district-council/leeds,Leeds City Council,30/04/2020,Communities and Environment,Parks And Countryside  ,Transport,Hire Of Movable Plant & Machinery,315,30/03/2020,2004-00495,0.00,950.00,R,Afi Uplift,Yes
Http://opendatacommunities.org/id/metropolitan-district-council/leeds,Leeds City Council,30/04/2020,Communities and Environment,Parks And Countryside  ,Transport,Hire Of Movable Plant & Machinery,315,30/03/2020,2004-00496,0.00,950.00,R,Afi Uplift,Yes
Http://opendatacommunities.org/id/metropolitan-district-council/leeds,Leeds City Council,30/04/2020,Communities and Environment,Parks And Countryside  ,Transport,Hire Of Movable Plant & Machinery,315,30/03/2020,2004-00497,0.00,115.00,R,Afi Uplift,Yes
Http://opendatacommunities.org/id/metropolitan-district-council/leeds,Leeds City Council,30/04/2020,Communities and Environment,Parks And Countryside  ,Transport,Hire Of Movable Plant & Machinery,315,30/03/2020,2004-00498,0.00,950.00,R,Afi Uplift,Yes
Http://opendatacommunities.org/id/metropolitan-district-council/leeds,Leeds City Council,30/04/2020,Communities and Environment,Parks And Countryside  ,Transport,Hire Of Movable Plant & Machinery,315,30/03/2020,2004-00499,0.00,950.00,R,Afi Uplift,Yes
Http://opendatacommunities.org/id/metropolitan-district-council/leeds,Leeds City Council,30/04/2020,Resources and Housing,Sustainable Energy & Climate Change,Capital,Other Costs,7,14/04/2020,2004-00500,0.00,1500.00,C,REDACTED COMMERCIAL CONFIDENTIALITY,No
Http://opendatacommunities.org/id/metropolitan-district-council/leeds,Leeds City Council,30/04/2020,Resources and Housing,Commercial Services,Supplies and Services,Compensation Claims,200,27/04/2020,2004-00501,0.00,468.00,R,REDACTED PERSONAL DATA,No
Http://opendatacommunities.org/id/metropolitan-district-council/leeds,Leeds City Council,30/04/2020,Adults and Health,Services For Older People - 65 And Over,Third Party Payments,Payments To Voluntary Organisations,561,01/04/2020,2004-00502,0.00,10599.75,R,Age Uk Leeds,No
Http://opendatacommunities.org/id/metropolitan-district-council/leeds,Leeds City Council,30/04/2020,Adults and Health,Public Health,Third Party Payments,Services Rendered By Voluntary Sector,505,15/04/2020,2004-00503,0.00,15000.00,R,Age Uk Leeds,No
Http://opendatacommunities.org/id/metropolitan-district-council/leeds,Leeds City Council,30/04/2020,Adults and Health,Public Health,Supplies and Services,Publication And Promotion,267,17/04/2020,2004-00504,0.00,145.00,R,Age Uk Leeds,No
Http://opendatacommunities.org/id/metropolitan-district-council/leeds,Leeds City Council,30/04/2020,City Development,Highways,Supplies and Services,Operational Materials,205,08/04/2020,2004-00505,0.00,7158.00,R,Aggregate Industries Uk Ltd,No
Http://opendatacommunities.org/id/metropolitan-district-council/leeds,Leeds City Council,30/04/2020,Resources and Housing,HRA Housing Leeds,Capital,Other Costs,7,15/04/2020,2004-00506,0.00,80.00,C,REDACTED PERSONAL DATA,No
Http://opendatacommunities.org/id/metropolitan-district-council/leeds,Leeds City Council,30/04/2020,Adults and Health,Services For Older People Under 65 P/Dis,Transfer Payments,Direct Payments,626,15/04/2020,2004-00507,0.00,592.00,R,REDACTED PERSONAL DATA,No
Http://opendatacommunities.org/id/metropolitan-district-council/leeds,Leeds City Council,30/04/2020,Resources and Housing,Sustainable Energy & Climate Change,Capital,Other Costs,7,14/04/2020,2004-00508,0.00,1500.00,C,REDACTED COMMERCIAL CONFIDENTIALITY,No
Http://opendatacommunities.org/id/metropolitan-district-council/leeds,Leeds City Council,30/04/2020,Communities and Environment,Customer Access,Supplies and Services,Bought In Professional Services,277,01/04/2020,2004-00509,0.00,18.00,R,Ahmed Moustafa Moustafa Mousa,No
Http://opendatacommunities.org/id/metropolitan-district-council/leeds,Leeds City Council,30/04/2020,Communities and Environment,Customer Access,Supplies and Services,Bought In Professional Services,277,01/04/2020,2004-00510,0.00,18.00,R,Ahmed Moustafa Moustafa Mousa,No
Http://opendatacommunities.org/id/metropolitan-district-council/leeds,Leeds City Council,30/04/2020,Children and Families,Learning,Supplies and Services,Teaching Materials,202,03/04/2020,2004-00511,0.00,33.53,R,Aid Training & Operations Ltd,No
Http://opendatacommunities.org/id/metropolitan-district-council/leeds,Leeds City Council,30/04/2020,Children and Families,Learning,Supplies and Services,Teaching Materials,202,16/04/2020,2004-00512,0.00,38.53,R,Aid Training & Operations Ltd,No
Http://opendatacommunities.org/id/metropolitan-district-council/leeds,Leeds City Council As Accountable Body,30/04/2020,Social Services Pooled Budgets,Leeds Community Equip Store Pooled Budgt,Supplies and Services,Other Equipment,203,01/04/2020,2004-00513,0.00,715.00,R,Aidapt Bathrooms Ltd,No
Http://opendatacommunities.org/id/metropolitan-district-council/leeds,Leeds City Council As Accountable Body,30/04/2020,Social Services Pooled Budgets,Leeds Community Equip Store Pooled Budgt,Supplies and Services,Other Equipment,203,01/04/2020,2004-00514,0.00,179.91,R,Aidapt Bathrooms Ltd,No
Http://opendatacommunities.org/id/metropolitan-district-council/leeds,Leeds City Council As Accountable Body,30/04/2020,Social Services Pooled Budgets,Leeds Community Equip Store Pooled Budgt,Supplies and Services,Other Equipment,203,09/04/2020,2004-00515,0.00,515.80,R,Aidapt Bathrooms Ltd,No
Http://opendatacommunities.org/id/metropolitan-district-council/leeds,Leeds City Council As Accountable Body,30/04/2020,Social Services Pooled Budgets,Leeds Community Equip Store Pooled Budgt,Supplies and Services,Other Equipment,203,09/04/2020,2004-00516,0.00,2461.60,R,Aidapt Bathrooms Ltd,No
Http://opendatacommunities.org/id/metropolitan-district-council/leeds,Leeds City Council As Accountable Body,30/04/2020,Social Services Pooled Budgets,Leeds Community Equip Store Pooled Budgt,Supplies and Services,Other Equipment,203,17/04/2020,2004-00517,0.00,1277.50,R,Aidapt Bathrooms Ltd,No
Http://opendatacommunities.org/id/metropolitan-district-council/leeds,Leeds City Council As Accountable Body,30/04/2020,Social Services Pooled Budgets,Leeds Community Equip Store Pooled Budgt,Supplies and Services,Other Equipment,203,17/04/2020,2004-00518,0.00,1274.50,R,Aidapt Bathrooms Ltd,No
Http://opendatacommunities.org/id/metropolitan-district-council/leeds,Leeds City Council As Accountable Body,30/04/2020,Social Services Pooled Budgets,Leeds Community Equip Store Pooled Budgt,Supplies and Services,Other Equipment,203,17/04/2020,2004-00519,0.00,515.80,R,Aidapt Bathrooms Ltd,No
Http://opendatacommunities.org/id/metropolitan-district-council/leeds,Leeds City Council,30/04/2020,Adults and Health,Other Generic Services,Supplies and Services,Operational Furniture And Equipment,203,24/04/2020,2004-00520,0.00,273.60,R,Aidapt Bathrooms Ltd,No
Http://opendatacommunities.org/id/metropolitan-district-council/leeds,Leeds City Council As Accountable Body,30/04/2020,Social Services Pooled Budgets,Leeds Community Equip Store Pooled Budgt,Supplies and Services,Other Equipment,203,29/04/2020,2004-00521,0.00,659.80,R,Aidapt Bathrooms Ltd,No
Http://opendatacommunities.org/id/metropolitan-district-council/leeds,Leeds City Council As Accountable Body,30/04/2020,Social Services Pooled Budgets,Leeds Community Equip Store Pooled Budgt,Supplies and Services,Other Equipment,203,29/04/2020,2004-00522,0.00,1026.00,R,Aidapt Bathrooms Ltd,No
Http://opendatacommunities.org/id/metropolitan-district-council/leeds,Leeds City Council,30/04/2020,Resources and Housing,Commercial Services  ,Supplies and Services,Operational Materials,205,17/03/2020,2004-00523,0.00,98.50,R,Air Force Pneumatics And,Yes
Http://opendatacommunities.org/id/metropolitan-district-council/leeds,Leeds City Council,30/04/2020,Insurance,Insurance,Supplies and Services,Insurance Claims,248,20/04/2020,2004-00524,0.00,40.00,R,REDACTED PERSONAL DATA,No
Http://opendatacommunities.org/id/metropolitan-district-council/leeds,Leeds City Council,30/04/2020,Resources and Housing,Technology,Supplies and Services,Computer Software & Equipment,214,23/04/2020,2004-00525,0.00,178680.00,R,Aire Logic Ltd,No
Http://opendatacommunities.org/id/metropolitan-district-council/leeds,Leeds City Council,30/04/2020,Communities and Environment,Parks and Countryside,Supplies and Services,Other Hired And Contracted Services,265,02/04/2020,2004-00526,0.00,325.00,R,Aire Valley Tree Services Ltd,No
Http://opendatacommunities.org/id/metropolitan-district-council/leeds,Leeds City Council,30/04/2020,Communities and Environment,Parks and Countryside,Supplies and Services,Other Hired And Contracted Services,265,03/04/2020,2004-00527,0.00,3210.00,R,Aire Valley Tree Services Ltd,No
Http://opendatacommunities.org/id/metropolitan-district-council/leeds,Leeds City Council,30/04/2020,Communities and Environment,Parks and Countryside,Supplies and Services,Other Hired And Contracted Services,265,17/04/2020,2004-00528,0.00,425.00,R,Aire Valley Tree Services Ltd,No
Http://opendatacommunities.org/id/metropolitan-district-council/leeds,Leeds City Council,30/04/2020,Communities and Environment,Parks and Countryside,Supplies and Services,Other Hired And Contracted Services,265,20/04/2020,2004-00529,0.00,80.00,R,Aire Valley Tree Services Ltd,No
Http://opendatacommunities.org/id/metropolitan-district-council/leeds,Leeds City Council,30/04/2020,Communities and Environment,Parks and Countryside,Supplies and Services,Other Hired And Contracted Services,265,20/04/2020,2004-00530,0.00,375.00,R,Aire Valley Tree Services Ltd,No
Http://opendatacommunities.org/id/metropolitan-district-council/leeds,Leeds City Council,30/04/2020,Communities and Environment,Parks and Countryside,Supplies and Services,Other Hired And Contracted Services,265,28/04/2020,2004-00531,0.00,290.00,R,Aire Valley Tree Services Ltd,No
Http://opendatacommunities.org/id/metropolitan-district-council/leeds,Leeds City Council,30/04/2020,Communities and Environment,Parks and Countryside,Supplies and Services,Other Hired And Contracted Services,265,30/04/2020,2004-00532,0.00,450.00,R,Aire Valley Tree Services Ltd,No
Http://opendatacommunities.org/id/metropolitan-district-council/leeds,Leeds City Council,30/04/2020,Communities and Environment,Parks and Countryside,Supplies and Services,Other Hired And Contracted Services,265,30/04/2020,2004-00533,0.00,475.00,R,Aire Valley Tree Services Ltd,No
Http://opendatacommunities.org/id/metropolitan-district-council/leeds,Leeds City Council,30/04/2020,Adults and Health,Services For Older People - 65 And Over,Third Party Payments,Residential Care Dementia,571,01/04/2020,2004-00534,0.00,40009.33,R,Aire View Residential Home,No
Http://opendatacommunities.org/id/metropolitan-district-council/leeds,Leeds City Council,30/04/2020,Adults and Health,Services For Older People - 65 And Over,Third Party Payments,Residential,580,01/04/2020,2004-00535,0.00,19312.40,R,Aire View Residential Home,No
Http://opendatacommunities.org/id/metropolitan-district-council/leeds,Leeds City Council,30/04/2020,Adults and Health,Services For Older People - 65 And Over,Third Party Payments,Residential Care Dementia,571,29/04/2020,2004-00536,0.00,78134.20,R,Aire View Residential Home,No
Http://opendatacommunities.org/id/metropolitan-district-council/leeds,Leeds City Council,30/04/2020,Adults and Health,Services For Older People - 65 And Over,Third Party Payments,Residential,580,29/04/2020,2004-00537,0.00,7772.76,R,Aire View Residential Home,No
Http://opendatacommunities.org/id/metropolitan-district-council/leeds,Leeds City Council,30/04/2020,Adults and Health,Public Health,Third Party Payments,Public Health Commissioned Services,526,16/04/2020,2004-00538,0.00,20.00,R,Aireborough Family Practice,No
Http://opendatacommunities.org/id/metropolitan-district-council/leeds,Leeds City Council,30/04/2020,Communities and Environment,Communities,Supplies and Services,'Well Being' Large Grants Projects,230,02/04/2020,2004-00539,0.00,1757.80,R,Aireborough Supported Activities Scheme,No
Http://opendatacommunities.org/id/metropolitan-district-council/leeds,Leeds City Council,30/04/2020,Communities and Environment,Communities,Supplies and Services,'Well Being' Large Grants Projects,230,08/04/2020,2004-00540,0.00,8518.56,R,Aireborough Supported Activities Scheme,No
Http://opendatacommunities.org/id/metropolitan-district-council/leeds,Leeds City Council,30/04/2020,Children and Families,Social Care,Third Party Payments,Services Rendered By Voluntary Sector,505,16/04/2020,2004-00541,0.00,25631.00,R,Aireborough Supported Activities Scheme,No
Http://opendatacommunities.org/id/metropolitan-district-council/leeds,Leeds City Council,30/04/2020,Children and Families,Social Care,Third Party Payments,Services Rendered By Voluntary Sector,505,16/04/2020,2004-00542,0.00,30000.00,R,Aireborough Supported Activities Scheme,No
Http://opendatacommunities.org/id/metropolitan-district-council/leeds,Leeds City Council,30/04/2020,Adults and Health,Services For Older People - 65 And Over,Third Party Payments,Residential Care Dementia,571,01/04/2020,2004-00543,0.00,1471.16,R,Airedale Care Home,No
Http://opendatacommunities.org/id/metropolitan-district-council/leeds,Leeds City Council,30/04/2020,Adults and Health,Services For Older People - 65 And Over,Third Party Payments,Residential,580,01/04/2020,2004-00544,0.00,18469.84,R,Airedale Care Home,No
Http://opendatacommunities.org/id/metropolitan-district-council/leeds,Leeds City Council,30/04/2020,Adults and Health,Services For Older People - 65 And Over,Third Party Payments,Residential Care Dementia,571,29/04/2020,2004-00545,0.00,1556.93,R,Airedale Care Home,No
Http://opendatacommunities.org/id/metropolitan-district-council/leeds,Leeds City Council,30/04/2020,Adults and Health,Services For Older People - 65 And Over,Third Party Payments,Residential,580,29/04/2020,2004-00546,0.00,15195.64,R,Airedale Care Home,No
Http://opendatacommunities.org/id/metropolitan-district-council/leeds,Leeds City Council,30/04/2020,Resources and Housing,Commercial Services,Premises,Fixtures & Fittings,131,02/04/2020,2004-00547,0.00,4320.00,R,Airedale Catering Equipment Ltd,No
Http://opendatacommunities.org/id/metropolitan-district-council/leeds,Leeds City Council,30/04/2020,Communities and Environment,Customer Access,Supplies and Services,Schools related grant expenditure,299,02/04/2020,2004-00548,0.00,107065.70,R,Airedale Catering Equipment Ltd,No
Http://opendatacommunities.org/id/metropolitan-district-council/leeds,Leeds City Council,30/04/2020,Communities and Environment,Customer Access,Supplies and Services,Schools related grant expenditure,299,15/04/2020,2004-00549,0.00,107065.70,R,Airedale Catering Equipment Ltd,No
Http://opendatacommunities.org/id/metropolitan-district-council/leeds,Leeds City Council,30/04/2020,Resources and Housing,Commercial Services,Premises,Fixtures & Fittings,131,22/04/2020,2004-00550,0.00,18142.00,R,Airedale Catering Equipment Ltd,No
Http://opendatacommunities.org/id/metropolitan-district-council/leeds,Leeds City Council,30/04/2020,Resources and Housing,Commercial Services,Supplies and Services,Operational Furniture And Equipment,203,29/04/2020,2004-00551,0.00,1677.00,R,Airedale Catering Equipment Ltd,No
Http://opendatacommunities.org/id/metropolitan-district-council/leeds,Leeds City Council,30/04/2020,Resources and Housing,Commercial Services,Premises,Fixtures & Fittings,131,29/04/2020,2004-00552,0.00,15762.00,R,Airedale Catering Equipment Ltd,No
Http://opendatacommunities.org/id/metropolitan-district-council/leeds,Leeds City Council,30/04/2020,Communities and Environment,Community Safety,Supplies and Services,Bought In Professional Services,277,29/04/2020,2004-00553,0.00,1044.80,R,Airwave Solutions Ltd,No
Http://opendatacommunities.org/id/metropolitan-district-council/leeds,Leeds City Council,30/04/2020,Adults and Health,Services For Adults Under 65 Mental/Dis,Third Party Payments,Services Provided By Other NHS Bodies,522,16/04/2020,2004-00554,0.00,175.00,R,Ait Mitra Limited,No
Http://opendatacommunities.org/id/metropolitan-district-council/leeds,Leeds City Council,30/04/2020,Adults and Health,Services For Adults Under 65 Mental/Dis,Third Party Payments,Services Provided By Other NHS Bodies,522,16/04/2020,2004-00555,0.00,175.00,R,Ait Mitra Limited,No
Http://opendatacommunities.org/id/metropolitan-district-council/leeds,Leeds City Council,30/04/2020,Adults and Health,Services For Adults Under 65 Mental/Dis,Third Party Payments,Services Provided By Other NHS Bodies,522,16/04/2020,2004-00556,0.00,175.00,R,Ait Mitra Limited,No
Http://opendatacommunities.org/id/metropolitan-district-council/leeds,Leeds City Council,30/04/2020,Adults and Health,Services For Adults Under 65 Mental/Dis,Third Party Payments,Services Provided By Other NHS Bodies,522,16/04/2020,2004-00557,0.00,175.00,R,Ait Mitra Limited,No
Http://opendatacommunities.org/id/metropolitan-district-council/leeds,Leeds City Council,30/04/2020,Adults and Health,Services For Adults Under 65 Mental/Dis,Third Party Payments,Services Provided By Other NHS Bodies,522,16/04/2020,2004-00558,0.00,239.50,R,Ait Mitra Limited,No
Http://opendatacommunities.org/id/metropolitan-district-council/leeds,Leeds City Council,30/04/2020,Adults and Health,Services For Adults Under 65 Mental/Dis,Third Party Payments,Services Provided By Other NHS Bodies,522,16/04/2020,2004-00559,0.00,175.00,R,Ait Mitra Limited,No
Http://opendatacommunities.org/id/metropolitan-district-council/leeds,Leeds City Council,30/04/2020,Adults and Health,Services For Adults Under 65 Mental/Dis,Third Party Payments,Services Provided By Other NHS Bodies,522,16/04/2020,2004-00560,0.00,175.00,R,Ait Mitra Limited,No
Http://opendatacommunities.org/id/metropolitan-district-council/leeds,Leeds City Council,30/04/2020,Adults and Health,Services For Adults Under 65 Mental/Dis,Third Party Payments,Services Provided By Other NHS Bodies,522,17/04/2020,2004-00561,0.00,239.50,R,Ait Mitra Limited,No
Http://opendatacommunities.org/id/metropolitan-district-council/leeds,Leeds City Council,30/04/2020,Adults and Health,Services For Adults Under 65 Mental/Dis,Third Party Payments,Services Provided By Other NHS Bodies,522,17/04/2020,2004-00562,0.00,175.00,R,Ait Mitra Limited,No
Http://opendatacommunities.org/id/metropolitan-district-council/leeds,Leeds City Council,30/04/2020,Adults and Health,Services For Adults Under 65 Mental/Dis,Third Party Payments,Services Provided By Other NHS Bodies,522,17/04/2020,2004-00563,0.00,175.00,R,Ait Mitra Limited,No
Http://opendatacommunities.org/id/metropolitan-district-council/leeds,Leeds City Council,30/04/2020,Adults and Health,Services For Adults Under 65 Mental/Dis,Third Party Payments,Services Provided By Other NHS Bodies,522,17/04/2020,2004-00564,0.00,175.00,R,Ait Mitra Limited,No
Http://opendatacommunities.org/id/metropolitan-district-council/leeds,Leeds City Council,30/04/2020,Adults and Health,Services For Adults Under 65 Mental/Dis,Third Party Payments,Services Provided By Other NHS Bodies,522,29/04/2020,2004-00565,0.00,175.00,R,Ait Mitra Limited,No
Http://opendatacommunities.org/id/metropolitan-district-council/leeds,Leeds City Council,30/04/2020,Adults and Health,Services For Adults Under 65 Mental/Dis,Third Party Payments,Services Provided By Other NHS Bodies,522,29/04/2020,2004-00566,0.00,175.00,R,Ait Mitra Limited,No
Http://opendatacommunities.org/id/metropolitan-district-council/leeds,Leeds City Council As Accountable Body,30/04/2020,Social Services Pooled Budgets,Jcs For People With Learning Disabilitie,Third Party Payments,Residential,580,01/04/2020,2004-00567,0.00,6464.04,R,Aitch Care Homes,No
Http://opendatacommunities.org/id/metropolitan-district-council/leeds,Leeds City Council As Accountable Body,30/04/2020,Social Services Pooled Budgets,Jcs For People With Learning Disabilitie,Third Party Payments,Residential,580,29/04/2020,2004-00568,0.00,6448.64,R,Aitch Care Homes,No
Http://opendatacommunities.org/id/metropolitan-district-council/leeds,Leeds City Council,30/04/2020,Resources and Housing,HRA Housing Leeds,Capital,Other Costs,7,08/04/2020,2004-00569,0.00,100.00,C,REDACTED PERSONAL DATA,No
Http://opendatacommunities.org/id/metropolitan-district-council/leeds,Leeds City Council,30/04/2020,Resources and Housing,Leeds Building Services,Supplies and Services,Operational Materials,205,17/04/2020,2004-00570,0.00,36.95,R,Ajm Fixings & Power Tools Ltd,No
Http://opendatacommunities.org/id/metropolitan-district-council/leeds,Leeds City Council,30/04/2020,Resources and Housing,Leeds Building Services,Supplies and Services,Stores - Central And Other Depots,5,17/04/2020,2004-00571,0.00,1487.20,R,Ajm Fixings & Power Tools Ltd,No
Http://opendatacommunities.org/id/metropolitan-district-council/leeds,Leeds City Council,30/04/2020,Children and Families,Social Care  ,Supplies and Services,Food & Drink,231,21/03/2020,2004-00572,0.00,5.58,R,Ajs Local Convenience Sto,Yes
Http://opendatacommunities.org/id/metropolitan-district-council/leeds,Leeds City Council,30/04/2020,Adults and Health,Social Services Support Services,Employees,Training & Development,70,01/04/2020,2004-00573,0.00,7500.00,R,Akd Solutions Ltd,No
Http://opendatacommunities.org/id/metropolitan-district-council/leeds,Leeds City Council,30/04/2020,Adults and Health,Service Strategy,Supplies and Services,Other Hired And Contracted Services,265,06/04/2020,2004-00574,0.00,2300.00,R,Akd Solutions Ltd,No
Http://opendatacommunities.org/id/metropolitan-district-council/leeds,Leeds City Council,30/04/2020,Resources and Housing,Strategic Housing Partnerships,Capital,Construction,3,02/04/2020,2004-00575,0.00,2000.00,C,Akr Construction Ltd,No
Http://opendatacommunities.org/id/metropolitan-district-council/leeds,Leeds City Council,30/04/2020,Resources and Housing,Strategic Housing Partnerships,Capital,Construction,3,02/04/2020,2004-00576,0.00,2000.00,C,Akr Construction Ltd,No
Http://opendatacommunities.org/id/metropolitan-district-council/leeds,Leeds City Council,30/04/2020,Resources and Housing,Strategic Housing Partnerships,Capital,Construction,3,09/04/2020,2004-00577,0.00,1000.00,C,Akr Construction Ltd,No
Http://opendatacommunities.org/id/metropolitan-district-council/leeds,Leeds City Council,30/04/2020,Resources and Housing,Strategic Housing Partnerships,Capital,Construction,3,09/04/2020,2004-00578,0.00,1000.00,C,Akr Construction Ltd,No
Http://opendatacommunities.org/id/metropolitan-district-council/leeds,Leeds City Council,30/04/2020,Children and Families,Social Care,Third Party Payments,Contact,548,30/04/2020,2004-00579,0.00,512.00,R,REDACTED PERSONAL DATA,No
Http://opendatacommunities.org/id/metropolitan-district-council/leeds,Leeds City Council,30/04/2020,Adults and Health,Services For Older People - 65 And Over,Third Party Payments,Payments To Voluntary Organisations,561,01/04/2020,2004-00580,0.00,3000.00,R,Al Khidmat Centre,No
Http://opendatacommunities.org/id/metropolitan-district-council/leeds,Leeds City Council,30/04/2020,Communities and Environment,Cleaner Neighbourhood Teams,Income,Other Income,973,02/04/2020,2004-00581,0.00,20.00,R,REDACTED PERSONAL DATA,No
Http://opendatacommunities.org/id/metropolitan-district-council/leeds,Leeds City Council,30/04/2020,City Development,Libraries  Arts & Heritage,Income,Admissions  Booking Fees & Ticket Sales,933,09/04/2020,2004-00582,0.00,105.40,R,REDACTED PERSONAL DATA,No
Http://opendatacommunities.org/id/metropolitan-district-council/leeds,Leeds City Council,30/04/2020,City Development,Libraries  Arts & Heritage,Supplies and Services,Other Hired And Contracted Services,265,03/04/2020,2004-00583,0.00,1125.00,R,Alan Keef Limited,No
Http://opendatacommunities.org/id/metropolitan-district-council/leeds,Leeds City Council,30/04/2020,City Development,Libraries  Arts & Heritage,Supplies and Services,Art Galleries Total Stores,3,01/04/2020,2004-00584,0.00,180.00,R,Alastair Laurence,No
Http://opendatacommunities.org/id/metropolitan-district-council/leeds,Leeds City Council,30/04/2020,Strategic Accounts,Miscellaneous,Supplies and Services,Non-Recurring Grants,227,17/04/2020,2004-00585,0.00,1275.70,R,Alba Trees Plc,No
Http://opendatacommunities.org/id/metropolitan-district-council/leeds,Leeds City Council,30/04/2020,Adults and Health,Services For Older People - 65 And Over,Third Party Payments,Residential Care Dementia,571,01/04/2020,2004-00586,0.00,1141.68,R,Albemarle,No
Http://opendatacommunities.org/id/metropolitan-district-council/leeds,Leeds City Council,30/04/2020,Children and Families,Social Care  ,Premises,Cleaning Maintenance & Toiletries,127,19/03/2020,2004-00587,0.00,35.16,R,Albert Harrison & Co L,Yes
Http://opendatacommunities.org/id/metropolitan-district-council/leeds,Leeds City Council,30/04/2020,Adults and Health,Services For Older People - 65 And Over,Third Party Payments,Residential,580,01/04/2020,2004-00588,0.00,1502.60,R,Albion Court Care Home,No
Http://opendatacommunities.org/id/metropolitan-district-council/leeds,Leeds City Council,30/04/2020,Adults and Health,Services For Older People - 65 And Over,Third Party Payments,Residential,580,29/04/2020,2004-00589,0.00,1457.10,R,Albion Court Care Home,No
Http://opendatacommunities.org/id/metropolitan-district-council/leeds,Leeds City Council,30/04/2020,Communities and Environment,Communities,Supplies and Services,Computer Software & Equipment,214,03/04/2020,2004-00590,0.00,1228.33,R,Alcium Software Ltd,No
Http://opendatacommunities.org/id/metropolitan-district-council/leeds,Leeds City Council,30/04/2020,Communities and Environment,Communities,Supplies and Services,Computer Software & Equipment,214,29/04/2020,2004-00591,0.00,1228.33,R,Alcium Software Ltd,No
Http://opendatacommunities.org/id/metropolitan-district-council/leeds,Leeds City Council,30/04/2020,Resources and Housing,Leeds Building Services,Supplies and Services,Memberships,226,09/04/2020,2004-00592,0.00,9515.00,R,Alcumus Sypol Limited,No
Http://opendatacommunities.org/id/metropolitan-district-council/leeds,Leeds City Council,30/04/2020,Communities and Environment,Customer Access  ,Supplies and Services,Schools related grant expenditure,299,11/03/2020,2004-00593,0.00,21.87,R,Aldi,Yes
Http://opendatacommunities.org/id/metropolitan-district-council/leeds,Leeds City Council,30/04/2020,Children and Families,Social Care  ,Third Party Payments,Placement Support,550,20/03/2020,2004-00594,0.00,27.08,R,Aldi 103 779,Yes
Http://opendatacommunities.org/id/metropolitan-district-council/leeds,Leeds City Council,30/04/2020,Communities and Environment,Customer Access  ,Supplies and Services,Food & Drink,231,07/03/2020,2004-00595,0.00,3.74,R,Aldi 40 779,Yes
Http://opendatacommunities.org/id/metropolitan-district-council/leeds,Leeds City Council,30/04/2020,Communities and Environment,Customer Access  ,Supplies and Services,Office Furniture & Equipment,201,11/03/2020,2004-00596,0.00,11.75,R,Aldi 40 779,Yes
Http://opendatacommunities.org/id/metropolitan-district-council/leeds,Leeds City Council,30/04/2020,Children and Families,Social Care  ,Premises,Cleaning Maintenance & Toiletries,127,12/03/2020,2004-00597,0.00,9.71,R,Aldi 40 779,Yes
Http://opendatacommunities.org/id/metropolitan-district-council/leeds,Leeds City Council,30/04/2020,Children and Families,Social Care  ,Supplies and Services,Food & Drink,231,12/03/2020,2004-00598,0.00,1.13,R,Aldi 40 779,Yes
Http://opendatacommunities.org/id/metropolitan-district-council/leeds,Leeds City Council,30/04/2020,Children and Families,Social Care  ,Transfer Payments,Leaving Care Allowances,634,16/03/2020,2004-00599,0.00,41.64,R,Aldi 40 779,Yes
Http://opendatacommunities.org/id/metropolitan-district-council/leeds,Leeds City Council,30/04/2020,Children and Families,Social Care  ,Supplies and Services,Food & Drink,231,26/03/2020,2004-00600,0.00,11.19,R,Aldi 40 779,Yes
Http://opendatacommunities.org/id/metropolitan-district-council/leeds,Leeds City Council,30/04/2020,Children and Families,Social Care  ,Transfer Payments,Leaving Care Allowances,634,29/02/2020,2004-00601,0.00,40.37,R,Aldi 49 779,Yes
Http://opendatacommunities.org/id/metropolitan-district-council/leeds,Leeds City Council,30/04/2020,Children and Families,Social Care  ,Supplies and Services,Food & Drink,231,18/03/2020,2004-00602,0.00,53.24,R,Aldi 49 779,Yes
Http://opendatacommunities.org/id/metropolitan-district-council/leeds,Leeds City Council,30/04/2020,Children and Families,Social Care  ,Supplies and Services,Food & Drink,231,21/03/2020,2004-00603,0.00,9.22,R,Aldi 49 779,Yes
Http://opendatacommunities.org/id/metropolitan-district-council/leeds,Leeds City Council,30/04/2020,Children and Families,Social Care  ,Supplies and Services,Food & Drink,231,26/03/2020,2004-00604,0.00,29.78,R,Aldi 49 779,Yes
Http://opendatacommunities.org/id/metropolitan-district-council/leeds,Leeds City Council,30/04/2020,Children and Families,Social Care  ,Transfer Payments,Leaving Care Allowances,634,11/03/2020,2004-00605,0.00,28.47,R,Aldi 71 779,Yes
Http://opendatacommunities.org/id/metropolitan-district-council/leeds,Leeds City Council,30/04/2020,Communities and Environment,Communities  ,Supplies and Services,Food & Drink,231,11/03/2020,2004-00606,0.00,1.25,R,Aldi 71 779,Yes
Http://opendatacommunities.org/id/metropolitan-district-council/leeds,Leeds City Council,30/04/2020,Children and Families,Social Care  ,Transfer Payments,Leaving Care Allowances,634,20/03/2020,2004-00607,0.00,45.79,R,Aldi 71 779,Yes
Http://opendatacommunities.org/id/metropolitan-district-council/leeds,Leeds City Council,30/04/2020,Children and Families,Social Care  ,Transfer Payments,Leaving Care Allowances,634,26/03/2020,2004-00608,0.00,29.60,R,Aldi 71 779,Yes
Http://opendatacommunities.org/id/metropolitan-district-council/leeds,Leeds City Council,30/04/2020,Children and Families,Social Care  ,Transfer Payments,Leaving Care Allowances,634,26/03/2020,2004-00609,0.00,7.85,R,Aldi 71 779,Yes
Http://opendatacommunities.org/id/metropolitan-district-council/leeds,Leeds City Council,30/04/2020,Communities and Environment,Parks And Countryside  ,Supplies and Services,Operational Materials,205,29/02/2020,2004-00610,0.00,3.33,R,Aldi 8 779,Yes
Http://opendatacommunities.org/id/metropolitan-district-council/leeds,Leeds City Council,30/04/2020,Children and Families,Social Care  ,Supplies and Services,Food & Drink,231,28/02/2020,2004-00611,0.00,28.15,R,Aldi 85 779,Yes
Http://opendatacommunities.org/id/metropolitan-district-council/leeds,Leeds City Council,30/04/2020,Children and Families,Social Care  ,Supplies and Services,Food & Drink,231,05/03/2020,2004-00612,0.00,38.53,R,Aldi 85 779,Yes
Http://opendatacommunities.org/id/metropolitan-district-council/leeds,Leeds City Council,30/04/2020,Children and Families,Social Care  ,Supplies and Services,Food & Drink,231,13/03/2020,2004-00613,0.00,94.86,R,Aldi 85 779,Yes
Http://opendatacommunities.org/id/metropolitan-district-council/leeds,Leeds City Council,30/04/2020,Children and Families,Social Care  ,Supplies and Services,Food & Drink,231,17/03/2020,2004-00614,0.00,47.23,R,Aldi 85 779,Yes
Http://opendatacommunities.org/id/metropolitan-district-council/leeds,Leeds City Council,30/04/2020,Children and Families,Social Care  ,Supplies and Services,Food & Drink,231,18/03/2020,2004-00615,0.00,46.47,R,Aldi 85 779,Yes
Http://opendatacommunities.org/id/metropolitan-district-council/leeds,Leeds City Council,30/04/2020,Children and Families,Social Care  ,Supplies and Services,Food & Drink,231,20/03/2020,2004-00616,0.00,6.80,R,Aldi 85 779,Yes
Http://opendatacommunities.org/id/metropolitan-district-council/leeds,Leeds City Council,30/04/2020,Children and Families,Social Care  ,Supplies and Services,Food & Drink,231,23/03/2020,2004-00617,0.00,29.70,R,Aldi 85 779,Yes
Http://opendatacommunities.org/id/metropolitan-district-council/leeds,Leeds City Council,30/04/2020,Children and Families,Social Care  ,Third Party Payments,Section 17,551,12/03/2020,2004-00618,0.00,12.87,R,Aldi 88 779,Yes
Http://opendatacommunities.org/id/metropolitan-district-council/leeds,Leeds City Council,30/04/2020,Communities and Environment,Community Safety  ,Supplies and Services,Operational Materials,205,16/03/2020,2004-00619,0.00,2.50,R,Aldi 88 779,Yes
Http://opendatacommunities.org/id/metropolitan-district-council/leeds,Leeds City Council,30/04/2020,Communities and Environment,Customer Access  ,Supplies and Services,Food & Drink,231,05/03/2020,2004-00620,0.00,7.62,R,Aldi 89 779,Yes
Http://opendatacommunities.org/id/metropolitan-district-council/leeds,Leeds City Council,30/04/2020,City Development,Libraries  Arts & Heritage  ,Supplies and Services,Food & Drink,231,11/03/2020,2004-00621,0.00,2.20,R,Aldi 89 779,Yes
Http://opendatacommunities.org/id/metropolitan-district-council/leeds,Leeds City Council,30/04/2020,Children and Families,Social Care  ,Transfer Payments,Leaving Care Allowances,634,11/03/2020,2004-00622,0.00,9.81,R,Aldi 89 779,Yes
Http://opendatacommunities.org/id/metropolitan-district-council/leeds,Leeds City Council,30/04/2020,Children and Families,Social Care  ,Supplies and Services,Food & Drink,231,13/03/2020,2004-00623,0.00,33.60,R,Aldi 89 779,Yes
Http://opendatacommunities.org/id/metropolitan-district-council/leeds,Leeds City Council,30/04/2020,Children and Families,Social Care  ,Supplies and Services,Food & Drink,231,17/03/2020,2004-00624,0.00,8.02,R,Aldi 89 779,Yes
Http://opendatacommunities.org/id/metropolitan-district-council/leeds,Leeds City Council,30/04/2020,Children and Families,Social Care  ,Supplies and Services,Food & Drink,231,19/03/2020,2004-00625,0.00,4.74,R,Aldi 89 779,Yes
Http://opendatacommunities.org/id/metropolitan-district-council/leeds,Leeds City Council,30/04/2020,Children and Families,Social Care  ,Third Party Payments,Placement Support,550,18/03/2020,2004-00626,0.00,18.06,R,Aldi Stores,Yes
Http://opendatacommunities.org/id/metropolitan-district-council/leeds,Leeds City Council,30/04/2020,Children and Families,Social Care  ,Transfer Payments,Leaving Care Allowances,634,24/03/2020,2004-00627,0.00,11.55,R,Aldi Stores,Yes
Http://opendatacommunities.org/id/metropolitan-district-council/leeds,Leeds City Council,30/04/2020,Children and Families,Social Care  ,Third Party Payments,Section 17,551,26/03/2020,2004-00628,0.00,32.52,R,Aldi Stores,Yes
Http://opendatacommunities.org/id/metropolitan-district-council/leeds,Leeds City Council,30/04/2020,Communities and Environment,Customer Access,Supplies and Services,Bought In Professional Services,277,01/04/2020,2004-00629,0.00,18.00,R,Alena Zueva,No
Http://opendatacommunities.org/id/metropolitan-district-council/leeds,Leeds City Council,30/04/2020,Communities and Environment,Customer Access,Supplies and Services,Bought In Professional Services,277,01/04/2020,2004-00630,0.00,25.50,R,Alena Zueva,No
Http://opendatacommunities.org/id/metropolitan-district-council/leeds,Leeds City Council,30/04/2020,Children and Families,Social Care,Support Services,Legal Disbursements,411,06/04/2020,2004-00631,0.00,92.00,R,Alere Toxicology Plc,No
Http://opendatacommunities.org/id/metropolitan-district-council/leeds,Leeds City Council,30/04/2020,Children and Families,Social Care,Support Services,Legal Disbursements,411,06/04/2020,2004-00632,0.00,164.00,R,Alere Toxicology Plc,No
Http://opendatacommunities.org/id/metropolitan-district-council/leeds,Leeds City Council,30/04/2020,Children and Families,Social Care,Support Services,Legal Disbursements,411,07/04/2020,2004-00633,0.00,69.00,R,Alere Toxicology Plc,No
Http://opendatacommunities.org/id/metropolitan-district-council/leeds,Leeds City Council,30/04/2020,Children and Families,Social Care,Third Party Payments,Section 17,551,03/04/2020,2004-00634,0.00,91.00,R,REDACTED PERSONAL DATA,No
Http://opendatacommunities.org/id/metropolitan-district-council/leeds,Leeds City Council,30/04/2020,Children and Families,Social Care,Support Services,Legal Disbursements,411,28/04/2020,2004-00635,0.00,19985.00,R,Alex Taylor,No
Http://opendatacommunities.org/id/metropolitan-district-council/leeds,Leeds City Council,30/04/2020,Children and Families,Social Care,Support Services,Legal Disbursements,411,28/04/2020,2004-00636,0.00,1215.00,R,Alex Taylor,No
Http://opendatacommunities.org/id/metropolitan-district-council/leeds,Leeds City Council,30/04/2020,Resources and Housing,Commercial Services,Supplies and Services,Other Hired And Contracted Services,265,02/04/2020,2004-00637,0.00,210.00,R,Alex Wagg,No
Http://opendatacommunities.org/id/metropolitan-district-council/leeds,Leeds City Council,30/04/2020,Resources and Housing,Commercial Services,Supplies and Services,Other Hired And Contracted Services,265,02/04/2020,2004-00638,0.00,40.00,R,Alex Wagg,No
Http://opendatacommunities.org/id/metropolitan-district-council/leeds,Leeds City Council,30/04/2020,Resources and Housing,Commercial Services,Supplies and Services,Other Hired And Contracted Services,265,07/04/2020,2004-00639,0.00,75.00,R,Alex Wagg,No
Http://opendatacommunities.org/id/metropolitan-district-council/leeds,Leeds City Council,30/04/2020,Resources and Housing,Commercial Services,Supplies and Services,Other Hired And Contracted Services,265,07/04/2020,2004-00640,0.00,60.00,R,Alex Wagg,No
Http://opendatacommunities.org/id/metropolitan-district-council/leeds,Leeds City Council,30/04/2020,Resources and Housing,Commercial Services,Supplies and Services,Other Hired And Contracted Services,265,07/04/2020,2004-00641,0.00,75.00,R,Alex Wagg,No
Http://opendatacommunities.org/id/metropolitan-district-council/leeds,Leeds City Council,30/04/2020,Resources and Housing,Commercial Services,Supplies and Services,Other Hired And Contracted Services,265,08/04/2020,2004-00642,0.00,120.00,R,Alex Wagg,No
Http://opendatacommunities.org/id/metropolitan-district-council/leeds,Leeds City Council,30/04/2020,Resources and Housing,Commercial Services,Supplies and Services,Other Hired And Contracted Services,265,15/04/2020,2004-00643,0.00,50.00,R,Alex Wagg,No
Http://opendatacommunities.org/id/metropolitan-district-council/leeds,Leeds City Council,30/04/2020,Resources and Housing,Commercial Services,Supplies and Services,Other Hired And Contracted Services,265,17/04/2020,2004-00644,0.00,160.00,R,Alex Wagg,No
Http://opendatacommunities.org/id/metropolitan-district-council/leeds,Leeds City Council,30/04/2020,Resources and Housing,Commercial Services,Transport,Vehicle Spares,345,23/04/2020,2004-00645,0.00,100.00,R,Alex Wagg,No
Http://opendatacommunities.org/id/metropolitan-district-council/leeds,Leeds City Council,30/04/2020,Insurance,Insurance,Supplies and Services,Other Hired And Contracted Services,265,03/04/2020,2004-00646,0.00,250.00,R,Alex Williams,No
Http://opendatacommunities.org/id/metropolitan-district-council/leeds,Leeds City Council,30/04/2020,Adults and Health,Services For Older People - 65 And Over,Third Party Payments,Residential Care Dementia,571,01/04/2020,2004-00647,0.00,21388.74,R,Alexander Residential Home,No
Http://opendatacommunities.org/id/metropolitan-district-council/leeds,Leeds City Council,30/04/2020,Adults and Health,Services For Older People - 65 And Over,Third Party Payments,Residential,580,01/04/2020,2004-00648,0.00,23274.98,R,Alexander Residential Home,No
Http://opendatacommunities.org/id/metropolitan-district-council/leeds,Leeds City Council,30/04/2020,Adults and Health,Services For Older People - 65 And Over,Third Party Payments,Residential Care Dementia,571,29/04/2020,2004-00649,0.00,21331.78,R,Alexander Residential Home,No
Http://opendatacommunities.org/id/metropolitan-district-council/leeds,Leeds City Council,30/04/2020,Adults and Health,Services For Older People - 65 And Over,Third Party Payments,Residential,580,29/04/2020,2004-00650,0.00,-21311.66,R,Alexander Residential Home,No
Http://opendatacommunities.org/id/metropolitan-district-council/leeds,Leeds City Council,30/04/2020,Communities and Environment,Customer Access,Supplies and Services,Bought In Professional Services,277,01/04/2020,2004-00651,0.00,36.00,R,Alexandra Costenco,No
Http://opendatacommunities.org/id/metropolitan-district-council/leeds,Leeds City Council,30/04/2020,Communities and Environment,Customer Access,Supplies and Services,Bought In Professional Services,277,22/04/2020,2004-00652,0.00,9.00,R,Alexandra Costenco,No
Http://opendatacommunities.org/id/metropolitan-district-council/leeds,Leeds City Council,30/04/2020,Communities and Environment,Customer Access,Supplies and Services,Bought In Professional Services,277,22/04/2020,2004-00653,0.00,36.00,R,Alexandra Costenco,No
Http://opendatacommunities.org/id/metropolitan-district-council/leeds,Leeds City Council,30/04/2020,Adults and Health,Services For Older People - 65 And Over,Third Party Payments,Residential Care Dementia,571,01/04/2020,2004-00654,0.00,3640.24,R,Alexandra Court,No
Http://opendatacommunities.org/id/metropolitan-district-council/leeds,Leeds City Council,30/04/2020,Adults and Health,Services For Older People - 65 And Over,Third Party Payments,Residential,580,01/04/2020,2004-00655,0.00,11118.60,R,Alexandra Court,No
Http://opendatacommunities.org/id/metropolitan-district-council/leeds,Leeds City Council,30/04/2020,Adults and Health,Services For Older People - 65 And Over,Third Party Payments,Residential Care Dementia,571,29/04/2020,2004-00656,0.00,3893.35,R,Alexandra Court,No
Http://opendatacommunities.org/id/metropolitan-district-council/leeds,Leeds City Council,30/04/2020,Adults and Health,Services For Older People - 65 And Over,Third Party Payments,Residential,580,29/04/2020,2004-00657,0.00,8915.83,R,Alexandra Court,No
Http://opendatacommunities.org/id/metropolitan-district-council/leeds,Leeds City Council,30/04/2020,Children and Families,Social Care,Third Party Payments,Services Rendered By Other Organisations,511,03/04/2020,2004-00658,0.00,630.72,R,REDACTED PERSONAL DATA,No
Http://opendatacommunities.org/id/metropolitan-district-council/leeds,Leeds City Council,30/04/2020,Adults and Health,Services For Older People - 65 And Over  ,Supplies and Services,Clothing & Uniforms,241,28/02/2020,2004-00659,0.00,699.85,R,Alexandra Website,Yes
Http://opendatacommunities.org/id/metropolitan-district-council/leeds,Leeds City Council,30/04/2020,Resources and Housing,Corporate Property Management,Capital,Construction,3,03/04/2020,2004-00660,0.00,4500.00,C,Alfred Bagnall & Sons (Leeds) Ltd,No
Http://opendatacommunities.org/id/metropolitan-district-council/leeds,Leeds City Council,30/04/2020,Resources and Housing,Corporate Property Management,Capital,Construction,3,03/04/2020,2004-00661,0.00,9336.17,C,Alfred Bagnall & Sons (Leeds) Ltd,No
Http://opendatacommunities.org/id/metropolitan-district-council/leeds,Leeds City Council,30/04/2020,Resources and Housing,Leeds Building Services,Supplies and Services,Other Hired And Contracted Services,265,03/04/2020,2004-00662,0.00,1378.50,R,Alfred Bagnall & Sons (Leeds) Ltd,No
Http://opendatacommunities.org/id/metropolitan-district-council/leeds,Leeds City Council,30/04/2020,Resources and Housing,Leeds Building Services,Supplies and Services,Other Hired And Contracted Services,265,03/04/2020,2004-00663,0.00,1378.50,R,Alfred Bagnall & Sons (Leeds) Ltd,No
Http://opendatacommunities.org/id/metropolitan-district-council/leeds,Leeds City Council,30/04/2020,City Development,Culture and Sport,Capital,Furniture And Equipment,5,06/04/2020,2004-00664,0.00,7400.00,C,Alfred Bagnall & Sons (Leeds) Ltd,No
Http://opendatacommunities.org/id/metropolitan-district-council/leeds,Leeds City Council,30/04/2020,Resources and Housing,Leeds Building Services,Supplies and Services,Other Hired And Contracted Services,265,08/04/2020,2004-00665,0.00,1378.50,R,Alfred Bagnall & Sons (Leeds) Ltd,No
Http://opendatacommunities.org/id/metropolitan-district-council/leeds,Leeds City Council,30/04/2020,Resources and Housing,Leeds Building Services,Supplies and Services,Other Hired And Contracted Services,265,09/04/2020,2004-00666,0.00,2730.00,R,Alfred Bagnall & Sons (Leeds) Ltd,No
Http://opendatacommunities.org/id/metropolitan-district-council/leeds,Leeds City Council,30/04/2020,Resources and Housing,Corporate Property Management,Capital,Construction,3,17/04/2020,2004-00667,0.00,9336.17,C,Alfred Bagnall & Sons (Leeds) Ltd,No
Http://opendatacommunities.org/id/metropolitan-district-council/leeds,Leeds City Council,30/04/2020,Resources and Housing,Leeds Building Services,Supplies and Services,Other Hired And Contracted Services,265,17/04/2020,2004-00668,0.00,1378.50,R,Alfred Bagnall & Sons (Leeds) Ltd,No
Http://opendatacommunities.org/id/metropolitan-district-council/leeds,Leeds City Council,30/04/2020,Resources and Housing,Leeds Building Services,Supplies and Services,Other Hired And Contracted Services,265,17/04/2020,2004-00669,0.00,400.00,R,Alfred Bagnall & Sons (Leeds) Ltd,No
Http://opendatacommunities.org/id/metropolitan-district-council/leeds,Leeds City Council,30/04/2020,Resources and Housing,Leeds Building Services,Supplies and Services,Other Hired And Contracted Services,265,17/04/2020,2004-00670,0.00,1378.50,R,Alfred Bagnall & Sons (Leeds) Ltd,No
Http://opendatacommunities.org/id/metropolitan-district-council/leeds,Leeds City Council,30/04/2020,Resources and Housing,Leeds Building Services,Supplies and Services,Other Hired And Contracted Services,265,17/04/2020,2004-00671,0.00,1378.50,R,Alfred Bagnall & Sons (Leeds) Ltd,No
Http://opendatacommunities.org/id/metropolitan-district-council/leeds,Leeds City Council,30/04/2020,Resources and Housing,Leeds Building Services,Supplies and Services,Other Hired And Contracted Services,265,17/04/2020,2004-00672,0.00,1378.50,R,Alfred Bagnall & Sons (Leeds) Ltd,No
Http://opendatacommunities.org/id/metropolitan-district-council/leeds,Leeds City Council,30/04/2020,Resources and Housing,Facilities Management,Premises,Maintenance Of Buildings,101,17/04/2020,2004-00673,0.00,470.00,R,Alfred Bagnall & Sons (Leeds) Ltd,No
Http://opendatacommunities.org/id/metropolitan-district-council/leeds,Leeds City Council,30/04/2020,Resources and Housing,Leeds Building Services,Supplies and Services,Other Hired And Contracted Services,265,24/04/2020,2004-00674,0.00,5360.00,R,Alfred Bagnall & Sons (Leeds) Ltd,No
Http://opendatacommunities.org/id/metropolitan-district-council/leeds,Leeds City Council,30/04/2020,Adults and Health,Services For Older People - 65 And Over,Supplies and Services,Operational Furniture And Equipment,203,24/04/2020,2004-00675,0.00,2238.00,R,Alfred Bagnall & Sons (Leeds) Ltd,No
Http://opendatacommunities.org/id/metropolitan-district-council/leeds,Leeds City Council,30/04/2020,Resources and Housing,Leeds Building Services,Supplies and Services,Other Hired And Contracted Services,265,27/04/2020,2004-00676,0.00,2150.00,R,Alfred Bagnall & Sons (Leeds) Ltd,No
Http://opendatacommunities.org/id/metropolitan-district-council/leeds,Leeds City Council,30/04/2020,Communities and Environment,Customer Access,Supplies and Services,Bought In Professional Services,277,01/04/2020,2004-00677,0.00,18.00,R,Ali Pourakaberian,No
Http://opendatacommunities.org/id/metropolitan-district-council/leeds,Leeds City Council,30/04/2020,Communities and Environment,Customer Access,Supplies and Services,Bought In Professional Services,277,01/04/2020,2004-00678,0.00,18.00,R,Ali Pourakaberian,No
Http://opendatacommunities.org/id/metropolitan-district-council/leeds,Leeds City Council,30/04/2020,Communities and Environment,Customer Access,Supplies and Services,Bought In Professional Services,277,01/04/2020,2004-00679,0.00,18.00,R,Ali Pourakaberian,No
Http://opendatacommunities.org/id/metropolitan-district-council/leeds,Leeds City Council,30/04/2020,Communities and Environment,Customer Access,Supplies and Services,Bought In Professional Services,277,01/04/2020,2004-00680,0.00,18.00,R,Ali Pourakaberian,No
Http://opendatacommunities.org/id/metropolitan-district-council/leeds,Leeds City Council,30/04/2020,Children and Families,Social Care  ,Supplies and Services,Books & Audio-Visual Materials,206,28/02/2020,2004-00681,0.00,18.80,R,Alibris Books,Yes
Http://opendatacommunities.org/id/metropolitan-district-council/leeds,Leeds City Council,30/04/2020,City Development,Libraries  Arts & Heritage,Supplies and Services,Bought In Professional Services,277,07/04/2020,2004-00682,0.00,1196.80,R,Alice Mary Duggan,No
Http://opendatacommunities.org/id/metropolitan-district-council/leeds,Leeds City Council,30/04/2020,Children and Families,Social Care,Third Party Payments,Placement Support,550,24/04/2020,2004-00683,0.00,50.00,R,REDACTED PERSONAL DATA,No
Http://opendatacommunities.org/id/metropolitan-district-council/leeds,Leeds City Council,30/04/2020,Adults and Health,Social Services Support Services,Employees,Training & Development,70,09/04/2020,2004-00684,0.00,13.00,R,REDACTED PERSONAL DATA,No
Http://opendatacommunities.org/id/metropolitan-district-council/leeds,Leeds City Council,30/04/2020,Children and Families,Social Care,Transfer Payments,Leaving Care Allowances,634,24/04/2020,2004-00685,0.00,60.00,R,REDACTED PERSONAL DATA,No
Http://opendatacommunities.org/id/metropolitan-district-council/leeds,Leeds City Council,30/04/2020,Children and Families,Social Care,Third Party Payments,Services Rendered By Other Organisations,511,03/04/2020,2004-00686,0.00,788.40,R,REDACTED PERSONAL DATA,No
Http://opendatacommunities.org/id/metropolitan-district-council/leeds,Leeds City Council,30/04/2020,Children and Families,Social Care,Employees,Agency Staff,8,09/04/2020,2004-00687,0.00,2082.22,R,Alison Tribe,No
Http://opendatacommunities.org/id/metropolitan-district-council/leeds,Leeds City Council,30/04/2020,Children and Families,Learning,Supplies and Services,Other Hired And Contracted Services,265,03/04/2020,2004-00688,0.00,128.00,R,All Hallows Church,No
Http://opendatacommunities.org/id/metropolitan-district-council/leeds,Leeds City Council,30/04/2020,Children and Families,Learning,Supplies and Services,Other Hired And Contracted Services,265,06/04/2020,2004-00689,0.00,192.00,R,All Hallows Church,No
Http://opendatacommunities.org/id/metropolitan-district-council/leeds,Leeds City Council,30/04/2020,Adults and Health,Services For Adults Under 65 Mental/Dis,Third Party Payments,Home Care,568,01/04/2020,2004-00690,0.00,282.00,R,All Seasons Home Care,No
Http://opendatacommunities.org/id/metropolitan-district-council/leeds,Leeds City Council,30/04/2020,Adults and Health,Services For Older People - 65 And Over,Third Party Payments,Home Care,568,09/04/2020,2004-00691,0.00,187.00,R,All Seasons Home Care,No
Http://opendatacommunities.org/id/metropolitan-district-council/leeds,Leeds City Council,30/04/2020,Adults and Health,Services For Adults Under 65 Mental/Dis,Third Party Payments,Home Care,568,28/04/2020,2004-00692,0.00,301.00,R,All Seasons Home Care,No
Http://opendatacommunities.org/id/metropolitan-district-council/leeds,Leeds City Council,30/04/2020,Adults and Health,Services For Older People - 65 And Over,Third Party Payments,Home Care,568,29/04/2020,2004-00693,0.00,153.00,R,All Seasons Home Care,No
Http://opendatacommunities.org/id/metropolitan-district-council/leeds,Leeds City Council,30/04/2020,Children and Families,Social Care,Third Party Payments,Services Rendered By Other Organisations,511,01/04/2020,2004-00694,0.00,570.24,R,All Stars Childcare,No
Http://opendatacommunities.org/id/metropolitan-district-council/leeds,Leeds City Council,30/04/2020,Children and Families,Social Care,Third Party Payments,Services Rendered By Other Organisations,511,03/04/2020,2004-00695,0.00,9460.80,R,All Stars Childcare,No
Http://opendatacommunities.org/id/metropolitan-district-council/leeds,Leeds City Council,30/04/2020,Children and Families,Social Care,Third Party Payments,Services Rendered By Voluntary Sector,505,30/04/2020,2004-00696,0.00,2052.63,R,All Stars Childcare,No
Http://opendatacommunities.org/id/metropolitan-district-council/leeds,Leeds City Council,30/04/2020,Resources and Housing,Sustainable Energy & Climate Change,Capital,Other Costs,7,23/04/2020,2004-00697,0.00,16000.00,C,REDACTED COMMERCIAL CONFIDENTIALITY,No
Http://opendatacommunities.org/id/metropolitan-district-council/leeds,Leeds City Council As Accountable Body,30/04/2020,Social Services Pooled Budgets,Jcs For People With Learning Disabilitie,Third Party Payments,Sheltered Accommodation,569,01/04/2020,2004-00698,0.00,16863.00,R,Allerton Avenue,No
Http://opendatacommunities.org/id/metropolitan-district-council/leeds,Leeds City Council As Accountable Body,30/04/2020,Social Services Pooled Budgets,Jcs For People With Learning Disabilitie,Third Party Payments,Sheltered Accommodation,569,29/04/2020,2004-00699,0.00,22281.16,R,Allerton Avenue,No
Http://opendatacommunities.org/id/metropolitan-district-council/leeds,Leeds City Council,30/04/2020,Children and Families,Social Care,Supplies and Services,Training Allowances,257,03/04/2020,2004-00700,0.00,20.00,R,Allerton Bywater Community Partnership,No
Http://opendatacommunities.org/id/metropolitan-district-council/leeds,Leeds City Council,30/04/2020,Children and Families,Social Care,Supplies and Services,Conference Meetings,253,06/04/2020,2004-00701,0.00,30.00,R,Allerton Bywater Community Partnership,No
Http://opendatacommunities.org/id/metropolitan-district-council/leeds,Leeds City Council,30/04/2020,Strategic Accounts,Strategic,Supplies and Services,Non-Recurring Grants,227,01/04/2020,2004-00702,0.00,2042.00,R,Allerton Bywater Parish Council,No
Http://opendatacommunities.org/id/metropolitan-district-council/leeds,Leeds City Council,30/04/2020,Strategic Accounts,Strategic,Supplies and Services,Office Consumables,210,01/04/2020,2004-00703,0.00,40500.00,R,Allerton Bywater Parish Council,No
Http://opendatacommunities.org/id/metropolitan-district-council/leeds,Leeds City Council,30/04/2020,Communities and Environment,Parks and Countryside,Supplies and Services,Operational Materials,205,23/04/2020,2004-00704,0.00,180.00,R,Allerton Bywater Parish Council,No
Http://opendatacommunities.org/id/metropolitan-district-council/leeds,Leeds City Council,30/04/2020,Resources and Housing,Leeds Building Services,Supplies and Services,Other Hired And Contracted Services,265,01/04/2020,2004-00705,0.00,4570.00,R,Allerton Damp Proofing Ltd,No
Http://opendatacommunities.org/id/metropolitan-district-council/leeds,Leeds City Council,30/04/2020,Resources and Housing,Leeds Building Services,Supplies and Services,Other Hired And Contracted Services,265,01/04/2020,2004-00706,0.00,1510.00,R,Allerton Damp Proofing Ltd,No
Http://opendatacommunities.org/id/metropolitan-district-council/leeds,Leeds City Council,30/04/2020,Adults and Health,Services For Older People - 65 And Over,Third Party Payments,Nursing Care Dementia,574,01/04/2020,2004-00707,0.00,2224.00,R,Allerton Park N H,No
Http://opendatacommunities.org/id/metropolitan-district-council/leeds,Leeds City Council,30/04/2020,Adults and Health,Services For Older People - 65 And Over,Third Party Payments,Nursing Care Dementia,574,29/04/2020,2004-00708,0.00,2392.63,R,Allerton Park N H,No
Http://opendatacommunities.org/id/metropolitan-district-council/leeds,Leeds City Council,30/04/2020,Resources and Housing,Finance,Supplies and Services,Bank Charges,263,01/04/2020,2004-00709,0.00,-61.75,R,Alliance & Leicester Commercial Bank,No
Http://opendatacommunities.org/id/metropolitan-district-council/leeds,Leeds City Council,30/04/2020,Resources and Housing,Commercial Services,Supplies and Services,Operational Materials,205,03/04/2020,2004-00710,0.00,119.41,R,Alliance Disposables Ltd,No
Http://opendatacommunities.org/id/metropolitan-district-council/leeds,Leeds City Council,30/04/2020,Resources and Housing,Commercial Services,Supplies and Services,Operational Materials,205,09/04/2020,2004-00711,0.00,168.78,R,Alliance Disposables Ltd,No
Http://opendatacommunities.org/id/metropolitan-district-council/leeds,Leeds City Council,30/04/2020,Resources and Housing,Commercial Services,Supplies and Services,Operational Furniture And Equipment,203,15/04/2020,2004-00712,0.00,79.15,R,Alliance Disposables Ltd,No
Http://opendatacommunities.org/id/metropolitan-district-council/leeds,Leeds City Council,30/04/2020,Resources and Housing,Commercial Services,Supplies and Services,Teaching Furniture & Equipment,207,24/04/2020,2004-00713,0.00,12.96,R,Alliance Disposables Ltd,No
Http://opendatacommunities.org/id/metropolitan-district-council/leeds,Leeds City Council,30/04/2020,Insurance,Insurance,Supplies and Services,Insurance Claims,248,15/04/2020,2004-00714,0.00,5624.00,R,Alliance Law Solicitors,No
Http://opendatacommunities.org/id/metropolitan-district-council/leeds,Leeds City Council,30/04/2020,Insurance,Insurance,Supplies and Services,Insurance Claims,248,15/04/2020,2004-00715,0.00,6000.00,R,Alliance Law Solicitors,No
Http://opendatacommunities.org/id/metropolitan-district-council/leeds,Leeds City Council,30/04/2020,City Development,Recreation,Third Party Payments,Services Rendered By Other Organisations,511,23/04/2020,2004-00716,0.00,28562.00,R,Alliance Leisure Service Ltd,No
Http://opendatacommunities.org/id/metropolitan-district-council/leeds,Leeds City Council,30/04/2020,City Development,Highways,Capital,Other Costs,7,08/04/2020,2004-00717,0.00,15733.89,C,Allied Exploration & Geotechnics Ltd,No
Http://opendatacommunities.org/id/metropolitan-district-council/leeds,Leeds City Council,30/04/2020,City Development,Highways,Capital,Other Costs,7,29/04/2020,2004-00718,0.00,83032.05,C,Allied Exploration & Geotechnics Ltd,No
Http://opendatacommunities.org/id/metropolitan-district-council/leeds,Leeds City Council,30/04/2020,Children and Families,Social Care,Third Party Payments,Services Rendered By Voluntary Sector,505,01/04/2020,2004-00719,0.00,570.00,R,Allied Healthcare,No
Http://opendatacommunities.org/id/metropolitan-district-council/leeds,Leeds City Council As Accountable Body,30/04/2020,Social Services Pooled Budgets,Jcs For People With Learning Disabilitie,Third Party Payments,Home Care,568,07/04/2020,2004-00720,0.00,166.80,R,Allied Healthcare,No
Http://opendatacommunities.org/id/metropolitan-district-council/leeds,Leeds City Council,30/04/2020,Adults and Health,Other Generic Services,Third Party Payments,Home Care,568,09/04/2020,2004-00721,0.00,4892.45,R,Allied Healthcare,No
Http://opendatacommunities.org/id/metropolitan-district-council/leeds,Leeds City Council,30/04/2020,Adults and Health,Other Generic Services,Third Party Payments,Home Care,568,09/04/2020,2004-00722,0.00,3758.40,R,Allied Healthcare,No
Http://opendatacommunities.org/id/metropolitan-district-council/leeds,Leeds City Council,30/04/2020,Adults and Health,Other Generic Services,Third Party Payments,Home Care,568,09/04/2020,2004-00723,0.00,4876.20,R,Allied Healthcare,No
Http://opendatacommunities.org/id/metropolitan-district-council/leeds,Leeds City Council,30/04/2020,Adults and Health,Other Generic Services,Third Party Payments,Home Care,568,09/04/2020,2004-00724,0.00,3969.00,R,Allied Healthcare,No
Http://opendatacommunities.org/id/metropolitan-district-council/leeds,Leeds City Council,30/04/2020,Adults and Health,Other Generic Services,Third Party Payments,Home Care,568,09/04/2020,2004-00725,0.00,3207.60,R,Allied Healthcare,No
Http://opendatacommunities.org/id/metropolitan-district-council/leeds,Leeds City Council As Accountable Body,30/04/2020,Social Services Pooled Budgets,Jcs For People With Learning Disabilitie,Third Party Payments,Home Care,568,09/04/2020,2004-00726,0.00,-211.28,R,Allied Healthcare,No
Http://opendatacommunities.org/id/metropolitan-district-council/leeds,Leeds City Council As Accountable Body,30/04/2020,Social Services Pooled Budgets,Jcs For People With Learning Disabilitie,Third Party Payments,Home Care,568,09/04/2020,2004-00727,0.00,-15210.16,R,Allied Healthcare,No
Http://opendatacommunities.org/id/metropolitan-district-council/leeds,Leeds City Council As Accountable Body,30/04/2020,Social Services Pooled Budgets,Jcs For People With Learning Disabilitie,Third Party Payments,Home Care,568,09/04/2020,2004-00728,0.00,15095.68,R,Allied Healthcare,No
Http://opendatacommunities.org/id/metropolitan-district-council/leeds,Leeds City Council,30/04/2020,Adults and Health,Services For Older People - 65 And Over,Third Party Payments,Home Care,568,09/04/2020,2004-00729,0.00,643.37,R,Allied Healthcare,No
Http://opendatacommunities.org/id/metropolitan-district-council/leeds,Leeds City Council,30/04/2020,Adults and Health,Services For Older People - 65 And Over,Third Party Payments,Home Care,568,09/04/2020,2004-00730,0.00,845.21,R,Allied Healthcare,No
Http://opendatacommunities.org/id/metropolitan-district-council/leeds,Leeds City Council,30/04/2020,Adults and Health,Services For Older People - 65 And Over,Third Party Payments,Home Care,568,09/04/2020,2004-00731,0.00,11243.45,R,Allied Healthcare,No
Http://opendatacommunities.org/id/metropolitan-district-council/leeds,Leeds City Council,30/04/2020,Adults and Health,Services For Older People Under 65 P/Dis,Third Party Payments,Home Care,568,09/04/2020,2004-00732,0.00,2713.67,R,Allied Healthcare,No
Http://opendatacommunities.org/id/metropolitan-district-council/leeds,Leeds City Council As Accountable Body,30/04/2020,Social Services Pooled Budgets,Jcs For People With Learning Disabilitie,Third Party Payments,Home Care,568,09/04/2020,2004-00733,0.00,333.09,R,Allied Healthcare,No
Http://opendatacommunities.org/id/metropolitan-district-council/leeds,Leeds City Council,30/04/2020,Adults and Health,Services For Adults Under 65 Mental/Dis,Third Party Payments,Home Care,568,09/04/2020,2004-00734,0.00,593.01,R,Allied Healthcare,No
Http://opendatacommunities.org/id/metropolitan-district-council/leeds,Leeds City Council,30/04/2020,Adults and Health,Services For Older People - 65 And Over,Third Party Payments,Home Care,568,09/04/2020,2004-00735,0.00,7371.80,R,Allied Healthcare,No
Http://opendatacommunities.org/id/metropolitan-district-council/leeds,Leeds City Council,30/04/2020,Adults and Health,Services For Older People Under 65 P/Dis,Third Party Payments,Home Care,568,09/04/2020,2004-00736,0.00,1513.39,R,Allied Healthcare,No
Http://opendatacommunities.org/id/metropolitan-district-council/leeds,Leeds City Council,30/04/2020,Adults and Health,Services For Older People - 65 And Over,Third Party Payments,Home Care,568,09/04/2020,2004-00737,0.00,17103.02,R,Allied Healthcare,No
Http://opendatacommunities.org/id/metropolitan-district-council/leeds,Leeds City Council,30/04/2020,Adults and Health,Services For Older People - 65 And Over,Third Party Payments,HCAIT Other,577,09/04/2020,2004-00738,0.00,638.81,R,Allied Healthcare,No
Http://opendatacommunities.org/id/metropolitan-district-council/leeds,Leeds City Council,30/04/2020,Adults and Health,Services For Older People Under 65 P/Dis,Third Party Payments,Home Care,568,09/04/2020,2004-00739,0.00,4224.03,R,Allied Healthcare,No
Http://opendatacommunities.org/id/metropolitan-district-council/leeds,Leeds City Council,30/04/2020,Adults and Health,Other Generic Services,Third Party Payments,Home Care,568,14/04/2020,2004-00740,0.00,4665.60,R,Allied Healthcare,No
Http://opendatacommunities.org/id/metropolitan-district-council/leeds,Leeds City Council,30/04/2020,Adults and Health,Other Generic Services,Third Party Payments,Home Care,568,15/04/2020,2004-00741,0.00,2713.50,R,Allied Healthcare,No
Http://opendatacommunities.org/id/metropolitan-district-council/leeds,Leeds City Council,30/04/2020,Adults and Health,Other Generic Services,Third Party Payments,Home Care,568,15/04/2020,2004-00742,0.00,3272.40,R,Allied Healthcare,No
Http://opendatacommunities.org/id/metropolitan-district-council/leeds,Leeds City Council As Accountable Body,30/04/2020,Social Services Pooled Budgets,Jcs For People With Learning Disabilitie,Third Party Payments,Home Care,568,15/04/2020,2004-00743,0.00,786.68,R,Allied Healthcare,No
Http://opendatacommunities.org/id/metropolitan-district-council/leeds,Leeds City Council,30/04/2020,Adults and Health,Other Generic Services,Third Party Payments,Home Care,568,23/04/2020,2004-00744,0.00,5149.17,R,Allied Healthcare,No
Http://opendatacommunities.org/id/metropolitan-district-council/leeds,Leeds City Council,30/04/2020,Adults and Health,Other Generic Services,Third Party Payments,Home Care,568,23/04/2020,2004-00745,0.00,5006.14,R,Allied Healthcare,No
Http://opendatacommunities.org/id/metropolitan-district-council/leeds,Leeds City Council,30/04/2020,Adults and Health,Other Generic Services,Third Party Payments,Home Care,568,27/04/2020,2004-00746,0.00,4374.00,R,Allied Healthcare,No
Http://opendatacommunities.org/id/metropolitan-district-council/leeds,Leeds City Council,30/04/2020,Adults and Health,Other Generic Services,Third Party Payments,Home Care,568,27/04/2020,2004-00747,0.00,3304.80,R,Allied Healthcare,No
Http://opendatacommunities.org/id/metropolitan-district-council/leeds,Leeds City Council As Accountable Body,30/04/2020,Social Services Pooled Budgets,Jcs For People With Learning Disabilitie,Third Party Payments,Home Care,568,27/04/2020,2004-00748,0.00,15079.73,R,Allied Healthcare,No
Http://opendatacommunities.org/id/metropolitan-district-council/leeds,Leeds City Council As Accountable Body,30/04/2020,Social Services Pooled Budgets,Jcs For People With Learning Disabilitie,Third Party Payments,Home Care,568,27/04/2020,2004-00749,0.00,177.92,R,Allied Healthcare,No
Http://opendatacommunities.org/id/metropolitan-district-council/leeds,Leeds City Council,30/04/2020,Adults and Health,Services For Older People - 65 And Over,Third Party Payments,Home Care,568,29/04/2020,2004-00750,0.00,637.17,R,Allied Healthcare,No
Http://opendatacommunities.org/id/metropolitan-district-council/leeds,Leeds City Council,30/04/2020,Adults and Health,Services For Older People - 65 And Over,Third Party Payments,Home Care,568,29/04/2020,2004-00751,0.00,1193.73,R,Allied Healthcare,No
Http://opendatacommunities.org/id/metropolitan-district-council/leeds,Leeds City Council,30/04/2020,Adults and Health,Services For Older People - 65 And Over,Third Party Payments,Home Care,568,29/04/2020,2004-00752,0.00,17300.00,R,Allied Healthcare,No
Http://opendatacommunities.org/id/metropolitan-district-council/leeds,Leeds City Council,30/04/2020,Adults and Health,Services For Older People - 65 And Over,Third Party Payments,HCAIT Other,577,29/04/2020,2004-00753,0.00,276.71,R,Allied Healthcare,No
Http://opendatacommunities.org/id/metropolitan-district-council/leeds,Leeds City Council,30/04/2020,Adults and Health,Services For Older People Under 65 P/Dis,Third Party Payments,Home Care,568,29/04/2020,2004-00754,0.00,4026.70,R,Allied Healthcare,No
Http://opendatacommunities.org/id/metropolitan-district-council/leeds,Leeds City Council,30/04/2020,Communities and Environment,Customer Access,Supplies and Services,Printing,215,16/04/2020,2004-00755,0.00,3473.14,R,Allied Publicity Services,No
Http://opendatacommunities.org/id/metropolitan-district-council/leeds,Leeds City Council,30/04/2020,Children and Families,Social Care,Third Party Payments,Services Rendered By Other Organisations,511,03/04/2020,2004-00756,0.00,315.36,R,REDACTED PERSONAL DATA,No
Http://opendatacommunities.org/id/metropolitan-district-council/leeds,Leeds City Council,30/04/2020,Children and Families,Social Care  ,Transfer Payments,Leaving Care Allowances,634,17/03/2020,2004-00757,0.00,40.00,R,Allpay *robin Hood Energy,Yes
Http://opendatacommunities.org/id/metropolitan-district-council/leeds,Leeds City Council,30/04/2020,Children and Families,Social Care  ,Transfer Payments,Leaving Care Allowances,634,13/03/2020,2004-00758,0.00,753.24,R,Allpay *the Hyde Group,Yes
Http://opendatacommunities.org/id/metropolitan-district-council/leeds,Leeds City Council,30/04/2020,Resources and Housing,Finance,Supplies and Services,Bank Charges,263,16/04/2020,2004-00759,0.00,7094.36,R,Allpay Limted,No
Http://opendatacommunities.org/id/metropolitan-district-council/leeds,Leeds City Council,30/04/2020,Adults and Health,Services For Older People Under 65 P/Dis,Supplies and Services,Operational Materials,205,17/04/2020,2004-00760,0.00,100.65,R,Allpay Limted,No
Http://opendatacommunities.org/id/metropolitan-district-council/leeds,Leeds City Council,30/04/2020,Resources and Housing,Finance,Supplies and Services,Bank Charges,263,21/04/2020,2004-00761,0.00,3672.94,R,Allpay Limted,No
Http://opendatacommunities.org/id/metropolitan-district-council/leeds,Leeds City Council,30/04/2020,Resources and Housing,Finance,Supplies and Services,Bank Charges,263,21/04/2020,2004-00762,0.00,329.19,R,Allpay Limted,No
Http://opendatacommunities.org/id/metropolitan-district-council/leeds,Leeds City Council,30/04/2020,Resources and Housing,Finance,Supplies and Services,Bank Charges,263,21/04/2020,2004-00763,0.00,10.41,R,Allpay Limted,No
Http://opendatacommunities.org/id/metropolitan-district-council/leeds,Leeds City Council,30/04/2020,Resources and Housing,Finance,Supplies and Services,Bank Charges,263,21/04/2020,2004-00764,0.00,131.97,R,Allpay Limted,No
Http://opendatacommunities.org/id/metropolitan-district-council/leeds,Leeds City Council,30/04/2020,Resources and Housing,Finance,Supplies and Services,Bank Charges,263,21/04/2020,2004-00765,0.00,3166.88,R,Allpay Limted,No
Http://opendatacommunities.org/id/metropolitan-district-council/leeds,Leeds City Council,30/04/2020,Strategic Landlord,Housing Management,Supplies and Services,Other Hired And Contracted Services,265,24/04/2020,2004-00766,0.00,0.88,R,Allpay Limted,No
Http://opendatacommunities.org/id/metropolitan-district-council/leeds,Leeds City Council,30/04/2020,Strategic Landlord,Housing Management,Supplies and Services,Other Hired And Contracted Services,265,24/04/2020,2004-00767,0.00,28.15,R,Allpay Limted,No
Http://opendatacommunities.org/id/metropolitan-district-council/leeds,Leeds City Council,30/04/2020,Strategic Landlord,Housing Management,Supplies and Services,Other Hired And Contracted Services,265,24/04/2020,2004-00768,0.00,417.97,R,Allpay Limted,No
Http://opendatacommunities.org/id/metropolitan-district-council/leeds,Leeds City Council,30/04/2020,Communities and Environment,Parks and Countryside,Transport,Fuel (Non LCC Supplies),321,07/04/2020,2004-00769,0.00,948.07,R,Allstar Business Solutions Ltd,No
Http://opendatacommunities.org/id/metropolitan-district-council/leeds,Leeds City Council,30/04/2020,Children and Families,Learning,Transport,Fuel (Non LCC Supplies),321,07/04/2020,2004-00770,0.00,1113.46,R,Allstar Business Solutions Ltd,No
Http://opendatacommunities.org/id/metropolitan-district-council/leeds,Leeds City Council,30/04/2020,City Development,Highways,Transport,Fuel (Non LCC Supplies),321,07/04/2020,2004-00771,0.00,127.43,R,Allstar Business Solutions Ltd,No
Http://opendatacommunities.org/id/metropolitan-district-council/leeds,Leeds City Council,30/04/2020,Resources and Housing,Sustainable Energy & Air Quality,Supplies and Services,Bought In Professional Services,277,23/04/2020,2004-00772,0.00,9100.00,R,Alma Economics Ltd,No
Http://opendatacommunities.org/id/metropolitan-district-council/leeds,Leeds City Council,30/04/2020,Resources and Housing,Strategic Housing Partnerships,Capital,Construction,3,08/04/2020,2004-00773,0.00,9738.65,C,Aln Building Services,No
Http://opendatacommunities.org/id/metropolitan-district-council/leeds,Leeds City Council,30/04/2020,Adults and Health,Services For Older People Under 65 P/Dis,Third Party Payments,Residential,580,01/04/2020,2004-00774,0.00,3346.44,R,Alne Hall,No
Http://opendatacommunities.org/id/metropolitan-district-council/leeds,Leeds City Council,30/04/2020,Adults and Health,Services For Older People Under 65 P/Dis,Third Party Payments,Residential,580,29/04/2020,2004-00775,0.00,3333.14,R,Alne Hall,No
Http://opendatacommunities.org/id/metropolitan-district-council/leeds,Leeds City Council,30/04/2020,Adults and Health,Public Health,Supplies and Services,Publication And Promotion,267,17/04/2020,2004-00776,0.00,2821.00,R,Alpha Card Compact Media Ltd,No
Http://opendatacommunities.org/id/metropolitan-district-council/leeds,Leeds City Council,30/04/2020,Children and Families,Social Care,Support Services,Legal Disbursements,411,03/04/2020,2004-00777,0.00,270.00,R,Alphabiolabs,No
